VENDOR NAME,EXPENSE CATEGORY,PAYMENT AMOUNT,PAYMENT DATE
"ABC HUMANE WILDLIFE CONTROL & PREVENTION, INC.",Revenue Vehicle General Servicing,"$27,852 ",12/10/2015
"ALL CHICAGO, INC.",Maintenance of Buildings,"$13,990 ",4/15/2015
"ALL CHICAGO, INC.",Maintenance of Buildings,"$11,260 ",5/13/2015
"ALVAREZ, INC.",Maintenance of Buildings,"$7,433.02 ",1/8/2015
"ALVAREZ, INC.",Maintenance of Buildings,"$22,246.30 ",6/15/2015
"ALVAREZ, INC.",Landscaping,"$16,459.69 ",7/29/2015
"ALVAREZ, INC.",Maintenance of Buildings,$217.82 ,8/6/2015
"ALVAREZ, INC.",Landscaping,"$20,308.05 ",8/18/2015
"ALVAREZ, INC.",Maintenance of Buildings,"$2,813.81 ",8/18/2015
"ALVAREZ, INC.",Maintenance of Buildings,"$20,414.67 ",9/24/2015
"ALVAREZ, INC.",Maintenance of Buildings,$190 ,10/5/2015
"ALVAREZ, INC.",Maintenance of Buildings,"$18,043.24 ",11/20/2015
"ALVAREZ, INC.",Maintenance of Buildings,"$18,904.85 ",11/25/2015
"ALVAREZ, INC.",Maintenance of Equipment,$895.71 ,12/4/2015
"AMERICAN SURVEYING & ENGINEERING, PC",Professional / Technical,"$7,358.01 ",3/13/2015
"AMERICAN SURVEYING & ENGINEERING, PC",Professional / Technical,"$19,821.81 ",4/29/2015
"AMERICAN SURVEYING & ENGINEERING, PC",Professional / Technical,"$1,484.34 ",5/1/2015
"ANDERSON & SHAH ROOFING, INC.",Contract Construction,"$449,045.85 ",11/16/2015
"ANDERSON & SHAH ROOFING, INC.",Contract Construction,"$239,103.60 ",12/23/2015
"B & L DISTRIBUTORS, INC.",Facilities Cleaning,"$6,600 ",4/9/2015
"B & L DISTRIBUTORS, INC.",Administrative Support,"$4,900 ",9/29/2015
"BRONNER GROUP, LLC",Administrative Support,$300 ,8/31/2015
"CALDWELL LETTER SERVICE, INC.",Open Fare,$569 ,10/29/2015
CHICAGO ADVISORS LLC,Professional / Technical,"$10,750 ",1/23/2015
CHICAGO ADVISORS LLC,Professional / Technical,"$20,750 ",1/27/2015
CHICAGO ADVISORS LLC,Professional / Technical,"$18,500 ",1/29/2015
"DATA MEDIA PRODUCTS, INC.",Administrative Support,$328.15 ,2/17/2015
"DATA MEDIA PRODUCTS, INC.",Administrative Support,$414.91 ,7/29/2015
"DATA MEDIA PRODUCTS, INC.",Administrative Support,$16.38 ,8/4/2015
"DATA MEDIA PRODUCTS, INC.",Administrative Support,$268.60 ,10/28/2015
"DIGBY'S DETECTIVE & SECURITY AGENCY, INC.",Security Rail,"$34,442.51 ",1/6/2015
"DIGBY'S DETECTIVE & SECURITY AGENCY, INC.",Security Rail,"$34,116.05 ",1/20/2015
"DIGBY'S DETECTIVE & SECURITY AGENCY, INC.",Security Rail,"$34,271.98 ",1/22/2015
"DIGBY'S DETECTIVE & SECURITY AGENCY, INC.",Security Rail,"$36,774.80 ",2/3/2015
"DIGBY'S DETECTIVE & SECURITY AGENCY, INC.",Security Rail,"$33,835.77 ",2/23/2015
"DIGBY'S DETECTIVE & SECURITY AGENCY, INC.",Security Rail,"$34,100.23 ",3/11/2015
"DIGBY'S DETECTIVE & SECURITY AGENCY, INC.",Security Rail,"$34,360.77 ",3/18/2015
"DIGBY'S DETECTIVE & SECURITY AGENCY, INC.",Security Rail,"$33,688.81 ",4/16/2015
"DIGBY'S DETECTIVE & SECURITY AGENCY, INC.",Security Rail,"$33,940.05 ",5/6/2015
"DIGBY'S DETECTIVE & SECURITY AGENCY, INC.",Security Rail,"$67,586.31 ",5/18/2015
"DIGBY'S DETECTIVE & SECURITY AGENCY, INC.",Security Rail,"$67,403.47 ",6/10/2015
"DIGBY'S DETECTIVE & SECURITY AGENCY, INC.",Security Rail,"$32,981.53 ",7/2/2015
"DIGBY'S DETECTIVE & SECURITY AGENCY, INC.",Security Rail,"$32,682.89 ",7/9/2015
"DIGBY'S DETECTIVE & SECURITY AGENCY, INC.",Security Rail,"$34,244.64 ",7/21/2015
"DIGBY'S DETECTIVE & SECURITY AGENCY, INC.",Security Rail,"$39,387.61 ",9/10/2015
"DIGBY'S DETECTIVE & SECURITY AGENCY, INC.",Security Rail,"$36,733.11 ",9/18/2015
"DIGBY'S DETECTIVE & SECURITY AGENCY, INC.",Security Rail,"$76,406.52 ",9/29/2015
"DIGBY'S DETECTIVE & SECURITY AGENCY, INC.",Security Rail,"$40,637.07 ",10/20/2015
"DIGBY'S DETECTIVE & SECURITY AGENCY, INC.",Security Rail,"$52,849.76 ",10/28/2015
"DIGBY'S DETECTIVE & SECURITY AGENCY, INC.",Security Rail,"$94,458.04 ",11/30/2015
"DIGBY'S DETECTIVE & SECURITY AGENCY, INC.",Security Rail,"$47,372.71 ",12/15/2015
"DIRECTIONS TRAINING CENTER, INC.",Computer Operations,"$6,990 ",2/12/2015
"DIRECTIONS TRAINING CENTER, INC.",Training - Students,"$4,125 ",12/30/2015
"ENVIROPLUS, INC.",Environmental Safety,"$5,716 ",2/5/2015
"ENVIROPLUS, INC.",Consulting Services,"$21,757.50 ",3/3/2015
"ENVIROPLUS, INC.",Environmental Safety,"$1,594 ",3/3/2015
"ENVIROPLUS, INC.",Consulting Services,"$37,418.75 ",3/10/2015
"ENVIROPLUS, INC.",Environmental Safety,"$21,951 ",3/24/2015
"ENVIROPLUS, INC.",Maintenance of Buildings,"$18,003.50 ",6/30/2015
"ENVIROPLUS, INC.",Maintenance of Buildings,"$13,120 ",10/28/2015
"ENVIROPLUS, INC.",Maintenance of Buildings,"$4,671 ",11/25/2015
"ENVIROPLUS, INC.",Maintenance of Buildings,"$10,835 ",12/23/2015
"FLOOD TESTING LABORATORIES, INC.",Equipment Purchases,$310 ,3/25/2015
GREAT LAKES METALS CORPORATION,Equipment Purchases,"$15,731.67 ",1/12/2015
HBM ENGINEERING GROUP LLC,"Training- Retraining,Refresher,Training for Change","$15,750 ",4/23/2015
HBM ENGINEERING GROUP LLC,Engineering,"$1,900 ",8/3/2015
"INDUSTRIAL FENCE, INC.",Collision/Damage Repairs,$964.45 ,1/2/2015
"INDUSTRIAL FENCE, INC.",Maintenance of Buildings,"$19,920.22 ",1/2/2015
"INDUSTRIAL FENCE, INC.","Paving / Cement (Parking Lots, etc)","$5,811.18 ",1/2/2015
"INDUSTRIAL FENCE, INC.",Collision/Damage Repairs,"$13,686.09 ",1/7/2015
"INDUSTRIAL FENCE, INC.",Maintenance of Buildings,"$2,280 ",1/7/2015
"INDUSTRIAL FENCE, INC.","Paving / Cement (Parking Lots, etc)","$2,919.55 ",1/7/2015
"INDUSTRIAL FENCE, INC.",Collision/Damage Repairs,$552.30 ,1/22/2015
"INDUSTRIAL FENCE, INC.",Maintenance of Rail Stations,$717.20 ,1/22/2015
"INDUSTRIAL FENCE, INC.",Collision/Damage Repairs,$788.48 ,1/23/2015
"INDUSTRIAL FENCE, INC.",Maintenance of Rail Stations,$547.74 ,1/23/2015
"INDUSTRIAL FENCE, INC.",Maintenance of Substations,"$4,445.64 ",1/23/2015
"INDUSTRIAL FENCE, INC.",Collision/Damage Repairs,"$4,654.79 ",1/28/2015
"INDUSTRIAL FENCE, INC.",Vandalism Repairs (includes graffiti removal),$333.22 ,1/28/2015
"INDUSTRIAL FENCE, INC.",Collision/Damage Repairs,"$7,853.77 ",1/29/2015
"INDUSTRIAL FENCE, INC.",Collision/Damage Repairs,"$3,625.81 ",1/30/2015
"INDUSTRIAL FENCE, INC.",Collision/Damage Repairs,"$1,426.88 ",2/2/2015
"INDUSTRIAL FENCE, INC.",Collision/Damage Repairs,$639.10 ,2/11/2015
"INDUSTRIAL FENCE, INC.",Collision/Damage Repairs,"$18,273.64 ",2/18/2015
"INDUSTRIAL FENCE, INC.",Maintenance of Buildings,$720.50 ,2/18/2015
"INDUSTRIAL FENCE, INC.",Collision/Damage Repairs,"$3,865.57 ",2/19/2015
"INDUSTRIAL FENCE, INC.",Vandalism Repairs (includes graffiti removal),$68.46 ,2/19/2015
"INDUSTRIAL FENCE, INC.",Maintenance of Rail Stations,$345.40 ,2/25/2015
"INDUSTRIAL FENCE, INC.",Maintenance of Rail Stations,"$2,557.20 ",2/27/2015
"INDUSTRIAL FENCE, INC.",Collision/Damage Repairs,"$1,810.55 ",3/4/2015
"INDUSTRIAL FENCE, INC.",Collision/Damage Repairs,$149.70 ,3/5/2015
"INDUSTRIAL FENCE, INC.",Vandalism Repairs (includes graffiti removal),"$1,561.42 ",3/5/2015
"INDUSTRIAL FENCE, INC.",Collision/Damage Repairs,$803.65 ,3/6/2015
"INDUSTRIAL FENCE, INC.",Maintenance of Buildings,"$1,693 ",3/6/2015
"INDUSTRIAL FENCE, INC.",Maintenance of Buildings,"$1,399.55 ",3/17/2015
"INDUSTRIAL FENCE, INC.",Maintenance of Buildings,"$13,769.92 ",3/19/2015
"INDUSTRIAL FENCE, INC.",Maintenance of Buildings,$349.12 ,3/24/2015
"INDUSTRIAL FENCE, INC.",Maintenance of Buildings,"$1,030 ",3/25/2015
"INDUSTRIAL FENCE, INC.",Collision/Damage Repairs,$444.40 ,3/26/2015
"INDUSTRIAL FENCE, INC.",Maintenance of Buildings,$590.48 ,3/26/2015
"INDUSTRIAL FENCE, INC.",Maintenance of Buildings,"$1,851.18 ",4/2/2015
"INDUSTRIAL FENCE, INC.",Maintenance of Buildings,"$3,353.43 ",4/7/2015
"INDUSTRIAL FENCE, INC.",Maintenance of Rail Stations,"$4,175.21 ",4/9/2015
"INDUSTRIAL FENCE, INC.",Maintenance of Buildings,$430.72 ,4/10/2015
"INDUSTRIAL FENCE, INC.",Maintenance of Buildings,"$9,059.45 ",4/29/2015
"INDUSTRIAL FENCE, INC.",Collision/Damage Repairs,"$1,305.36 ",5/4/2015
"INDUSTRIAL FENCE, INC.",Maintenance of Buildings,"$4,175.96 ",5/7/2015
"INDUSTRIAL FENCE, INC.",Maintenance of Buildings,$452.32 ,5/14/2015
"INDUSTRIAL FENCE, INC.",Vandalism Repairs (includes graffiti removal),"$2,230.82 ",5/14/2015
"INDUSTRIAL FENCE, INC.",Collision/Damage Repairs,"$4,324.54 ",5/28/2015
"INDUSTRIAL FENCE, INC.",Maintenance of Buildings,"$8,257.32 ",5/29/2015
"INDUSTRIAL FENCE, INC.",Maintenance of Buildings,"$6,836.22 ",7/9/2015
"INDUSTRIAL FENCE, INC.",Maintenance of Equipment,"$1,418.32 ",7/9/2015
"INDUSTRIAL FENCE, INC.",Maintenance of Buildings,"$2,162.50 ",7/15/2015
"INDUSTRIAL FENCE, INC.",Collision/Damage Repairs,"$1,949.51 ",8/3/2015
"INDUSTRIAL FENCE, INC.",Maintenance of Buildings,$925.20 ,8/3/2015
"INDUSTRIAL FENCE, INC.",Maintenance of Buildings,$349.12 ,8/4/2015
"INDUSTRIAL FENCE, INC.",Maintenance of Buildings,"$4,036.15 ",8/21/2015
"INDUSTRIAL FENCE, INC.",Maintenance of Buildings,$345 ,8/24/2015
"INDUSTRIAL FENCE, INC.",Maintenance of Buildings,"$1,179.60 ",8/27/2015
"INDUSTRIAL FENCE, INC.",Maintenance of Buildings,$700 ,9/10/2015
"INDUSTRIAL FENCE, INC.",Maintenance of Buildings,"$25,061.06 ",10/5/2015
"INDUSTRIAL FENCE, INC.",Maintenance of Buildings,"$3,479.30 ",10/12/2015
"INDUSTRIAL FENCE, INC.",Maintenance of Buildings,"$6,047.78 ",10/28/2015
"INDUSTRIAL FENCE, INC.",Maintenance of Buildings,$332.39 ,11/9/2015
"INDUSTRIAL FENCE, INC.",Maintenance of Buildings,"$9,200.88 ",11/18/2015
"INDUSTRIAL FENCE, INC.",Maintenance of Buildings,"$1,566.14 ",11/19/2015
"INDUSTRIAL FENCE, INC.",Maintenance of Buildings,"$3,670.41 ",11/25/2015
"INDUSTRIAL FENCE, INC.",Maintenance of Buildings,"$17,817.35 ",12/4/2015
"INDUSTRIAL FENCE, INC.",Maintenance of Buildings,"$10,514.50 ",12/10/2015
"INDUSTRIAL FENCE, INC.",Maintenance of Buildings,"$8,524.20 ",12/28/2015
"J-TEC METAL PRODUCTS, INC",Equipment Purchases,$540.18 ,12/11/2015
J.P. SIMONS & COMPANY,Maintenance of Equipment,$208.53 ,1/6/2015
J.P. SIMONS & COMPANY,Maintenance of Equipment,"$1,094.99 ",1/8/2015
J.P. SIMONS & COMPANY,Maintenance of Equipment,"$4,496.97 ",1/12/2015
J.P. SIMONS & COMPANY,Energy rebates,"$146,903 ",1/14/2015
J.P. SIMONS & COMPANY,Equipment Purchases,$255 ,1/14/2015
J.P. SIMONS & COMPANY,Maintenance of Buildings,"$4,427.80 ",1/14/2015
J.P. SIMONS & COMPANY,Maintenance of Equipment,"$6,757.40 ",1/14/2015
J.P. SIMONS & COMPANY,Maintenance of Lighting,$950.37 ,1/14/2015
J.P. SIMONS & COMPANY,Maintenance of Equipment,"$73,196.10 ",1/16/2015
J.P. SIMONS & COMPANY,Maintenance of Lighting,"$3,494.20 ",1/16/2015
J.P. SIMONS & COMPANY,Maintenance of Escalators,"$1,522.90 ",1/20/2015
J.P. SIMONS & COMPANY,Maintenance of Equipment,"$13,673.50 ",2/3/2015
J.P. SIMONS & COMPANY,Maintenance of Lighting,"$3,491.10 ",2/9/2015
J.P. SIMONS & COMPANY,Maintenance of Substations,$258 ,2/9/2015
J.P. SIMONS & COMPANY,Maintenance of Track & Roadway-Electrical,"$4,061.44 ",2/9/2015
J.P. SIMONS & COMPANY,Maintenance of Equipment,"$1,714.25 ",2/12/2015
J.P. SIMONS & COMPANY,Maintenance of Equipment,"$7,081 ",2/18/2015
J.P. SIMONS & COMPANY,Equipment Purchases,"$1,598.40 ",2/20/2015
J.P. SIMONS & COMPANY,Maintainance of Signal & Control Equipment,"$3,225 ",2/23/2015
J.P. SIMONS & COMPANY,Maintenance of Buildings,$970 ,2/23/2015
J.P. SIMONS & COMPANY,Ind/Envir Safety & Fire Prevention  (Non-Safety  Areas),$187.50 ,2/27/2015
J.P. SIMONS & COMPANY,Maintenance of Equipment,"$5,224.68 ",2/27/2015
J.P. SIMONS & COMPANY,Maintenance of Escalators,"$1,756 ",2/27/2015
J.P. SIMONS & COMPANY,Equipment Purchases,"$1,149.20 ",3/4/2015
J.P. SIMONS & COMPANY,Maintenance of Buildings,"$2,012.56 ",3/4/2015
J.P. SIMONS & COMPANY,Maintenance of Equipment,"$2,292.24 ",3/4/2015
J.P. SIMONS & COMPANY,Maintenance of Lighting,"$4,077.80 ",3/4/2015
J.P. SIMONS & COMPANY,Maintenance of Equipment,"$1,783.19 ",3/5/2015
J.P. SIMONS & COMPANY,Maintenance of Buildings,"$3,770.17 ",3/6/2015
J.P. SIMONS & COMPANY,Maintenance of Equipment,"$17,076.46 ",3/6/2015
J.P. SIMONS & COMPANY,Maintenance of Lighting,$152.80 ,3/6/2015
J.P. SIMONS & COMPANY,Maintainance of Signal & Control Equipment,$778.04 ,3/11/2015
J.P. SIMONS & COMPANY,Maintenance of Buildings,"$2,295.52 ",3/17/2015
J.P. SIMONS & COMPANY,Maintenance of Equipment,"$9,015.80 ",3/17/2015
J.P. SIMONS & COMPANY,Maintenance of Lighting,"$2,031 ",3/17/2015
J.P. SIMONS & COMPANY,Equipment Purchases,"$37,260 ",3/18/2015
J.P. SIMONS & COMPANY,Maintenance of Buildings,$944.87 ,3/19/2015
J.P. SIMONS & COMPANY,Maintenance of Escalators,"$1,358.40 ",3/19/2015
J.P. SIMONS & COMPANY,Maintenance of Buildings,"$2,289.56 ",3/30/2015
J.P. SIMONS & COMPANY,Maintenance of Equipment,"$20,393.56 ",3/30/2015
J.P. SIMONS & COMPANY,Maintenance of Lighting,"$284,076.85 ",3/30/2015
J.P. SIMONS & COMPANY,Maintenance of Rail Stations,"$3,860.82 ",3/30/2015
J.P. SIMONS & COMPANY,Maintenance of Substations,"$4,420.50 ",3/30/2015
J.P. SIMONS & COMPANY,Maintenance of Buildings,$733.20 ,4/2/2015
J.P. SIMONS & COMPANY,Maintenance of Equipment,"$19,840 ",4/2/2015
J.P. SIMONS & COMPANY,Maintenance of Lighting,"$2,091.45 ",4/2/2015
J.P. SIMONS & COMPANY,Maintenance of Track & Roadway-Electrical,"$2,782 ",4/2/2015
J.P. SIMONS & COMPANY,Equipment Purchases,$752 ,4/8/2015
J.P. SIMONS & COMPANY,Maintenance of Equipment,"$3,201.26 ",4/8/2015
J.P. SIMONS & COMPANY,Maintenance of Lighting,"$2,826.60 ",4/8/2015
J.P. SIMONS & COMPANY,Maintenance of Rail Stations,"$1,674.60 ",4/8/2015
J.P. SIMONS & COMPANY,Maintenance of Track & Roadway-Electrical,"$1,300.08 ",4/8/2015
J.P. SIMONS & COMPANY,Maintenance of Equipment,$749.56 ,4/9/2015
J.P. SIMONS & COMPANY,Maintenance of Lighting,"$3,090.64 ",4/9/2015
J.P. SIMONS & COMPANY,Maintenance of Track & Roadway-Electrical,$874.10 ,4/9/2015
J.P. SIMONS & COMPANY,Maintenance of Equipment,"$7,908.25 ",4/15/2015
J.P. SIMONS & COMPANY,Maintenance of Equipment,$378 ,4/16/2015
J.P. SIMONS & COMPANY,Maintenance of Buildings,"$1,255.10 ",4/17/2015
J.P. SIMONS & COMPANY,Maintenance of Equipment,"$4,252.80 ",4/20/2015
J.P. SIMONS & COMPANY,Maintenance of Lighting,"$4,228.16 ",4/20/2015
J.P. SIMONS & COMPANY,Maintenance of Buildings,"$4,938.39 ",4/23/2015
J.P. SIMONS & COMPANY,Maintenance of Equipment,"$5,206.13 ",4/23/2015
J.P. SIMONS & COMPANY,Maintenance of Lighting,"$8,871.75 ",4/23/2015
J.P. SIMONS & COMPANY,Maintenance of Equipment,"$22,255.20 ",5/4/2015
J.P. SIMONS & COMPANY,Maintenance of Buildings,$475.60 ,5/7/2015
J.P. SIMONS & COMPANY,Maintenance of Elevators,"$2,500 ",5/7/2015
J.P. SIMONS & COMPANY,Maintenance of Equipment,"$5,629.70 ",5/7/2015
J.P. SIMONS & COMPANY,Maintenance of Buildings,"$4,189.30 ",5/8/2015
J.P. SIMONS & COMPANY,Maintenance of Buildings,"$3,044.40 ",5/12/2015
J.P. SIMONS & COMPANY,Maintenance of Equipment,"$1,978.87 ",5/12/2015
J.P. SIMONS & COMPANY,Maintenance of Lighting,"$5,568 ",5/12/2015
J.P. SIMONS & COMPANY,Equipment Purchases,"$6,823.95 ",5/13/2015
J.P. SIMONS & COMPANY,Maintenance of Buildings,"$3,396.10 ",5/14/2015
J.P. SIMONS & COMPANY,Maintenance of Equipment,"$2,328.84 ",5/14/2015
J.P. SIMONS & COMPANY,Maintenance of Lighting,"$85,700 ",5/14/2015
J.P. SIMONS & COMPANY,Equipment Purchases,"$4,494.88 ",5/15/2015
J.P. SIMONS & COMPANY,Maintenance of Buildings,$537.90 ,5/20/2015
J.P. SIMONS & COMPANY,Maintenance of Equipment,"$2,376.96 ",5/20/2015
J.P. SIMONS & COMPANY,Maintenance of Track & Roadway-Electrical,"$1,298.25 ",5/20/2015
J.P. SIMONS & COMPANY,Maintenance of Buildings,"$2,613.10 ",5/22/2015
J.P. SIMONS & COMPANY,Maintenance of Equipment,"$8,108.38 ",5/22/2015
J.P. SIMONS & COMPANY,Equipment Purchases,"$190,326.44 ",5/28/2015
J.P. SIMONS & COMPANY,Maintenance of Buildings,"$25,537.60 ",5/28/2015
J.P. SIMONS & COMPANY,Maintenance of Equipment,"$6,618.73 ",5/28/2015
J.P. SIMONS & COMPANY,Maintenance of Lighting,"$17,140 ",5/28/2015
J.P. SIMONS & COMPANY,Maintenance of Buildings,"$1,425.75 ",6/8/2015
J.P. SIMONS & COMPANY,Maintenance of Equipment,"$7,154.70 ",6/8/2015
J.P. SIMONS & COMPANY,Maintenance of Lighting,"$2,310.90 ",6/8/2015
J.P. SIMONS & COMPANY,Maintenance of Track & Roadway-Electrical,$556 ,6/8/2015
J.P. SIMONS & COMPANY,Equipment Purchases,"$6,524.27 ",6/10/2015
J.P. SIMONS & COMPANY,Maintenance of Equipment,$371.64 ,6/11/2015
J.P. SIMONS & COMPANY,Maintenance of Buildings,"$1,599 ",6/16/2015
J.P. SIMONS & COMPANY,Maintenance of Equipment,"$8,747.37 ",6/16/2015
J.P. SIMONS & COMPANY,Maintenance of Lighting,$58.56 ,6/16/2015
J.P. SIMONS & COMPANY,Maintenance of Buildings,$119.20 ,6/18/2015
J.P. SIMONS & COMPANY,Maintenance of Equipment,"$2,992 ",6/18/2015
J.P. SIMONS & COMPANY,Maintenance of Lighting,"$2,897.90 ",6/18/2015
J.P. SIMONS & COMPANY,Maintenance of Rail Stations,$552.50 ,6/18/2015
J.P. SIMONS & COMPANY,Maintenance of Track & Roadway,"$6,324.08 ",6/18/2015
J.P. SIMONS & COMPANY,Maintenance of Track & Roadway-Electrical,"$2,806 ",6/18/2015
J.P. SIMONS & COMPANY,Maintenance of Track & Roadway-Electrical,$705.30 ,6/25/2015
J.P. SIMONS & COMPANY,Equipment Purchases,"$10,908.11 ",6/30/2015
J.P. SIMONS & COMPANY,Maintenance of Equipment,"$2,167.05 ",6/30/2015
J.P. SIMONS & COMPANY,Maintenance of Buildings,$282.48 ,7/7/2015
J.P. SIMONS & COMPANY,Maintenance of Equipment,"$1,350.39 ",7/7/2015
J.P. SIMONS & COMPANY,Maintenance of Lighting,$368.44 ,7/7/2015
J.P. SIMONS & COMPANY,Maintenance of Buildings,$89.70 ,7/9/2015
J.P. SIMONS & COMPANY,Maintenance of Equipment,"$2,492.68 ",7/9/2015
J.P. SIMONS & COMPANY,Equipment Purchases,"$1,458.91 ",7/10/2015
J.P. SIMONS & COMPANY,Maintenance of Buildings,$852.60 ,7/14/2015
J.P. SIMONS & COMPANY,Maintenance of Equipment,$696 ,7/14/2015
J.P. SIMONS & COMPANY,Maintenance of Rail Stations,$735.50 ,7/14/2015
J.P. SIMONS & COMPANY,Maintenance of Escalators,"$18,604.10 ",7/16/2015
J.P. SIMONS & COMPANY,Maintenance of Equipment,$154 ,7/20/2015
J.P. SIMONS & COMPANY,Maintenance of Lighting,"$3,744.60 ",7/20/2015
J.P. SIMONS & COMPANY,Maintenance of Buildings,$470 ,7/23/2015
J.P. SIMONS & COMPANY,Maintenance of Equipment,"$2,841.20 ",7/23/2015
J.P. SIMONS & COMPANY,Maintenance of Buildings,"$1,374.80 ",7/27/2015
J.P. SIMONS & COMPANY,Maintenance of Equipment,"$3,022.50 ",7/27/2015
J.P. SIMONS & COMPANY,Maintenance of Rail Stations,"$3,177.27 ",7/27/2015
J.P. SIMONS & COMPANY,Maintenance of Track & Roadway-Electrical,"$8,779.42 ",7/27/2015
J.P. SIMONS & COMPANY,Ind/Envir Safety & Fire Prevention  (Non-Safety  Areas),"$1,064.55 ",8/6/2015
J.P. SIMONS & COMPANY,Maintenance of Buildings,"$2,140.37 ",8/6/2015
J.P. SIMONS & COMPANY,Maintenance of Equipment,$430 ,8/6/2015
J.P. SIMONS & COMPANY,Equipment Purchases,"$1,041.92 ",8/7/2015
J.P. SIMONS & COMPANY,Maintenance of Buildings,"$1,455 ",8/13/2015
J.P. SIMONS & COMPANY,Maintenance of Equipment,"$7,200.07 ",8/13/2015
J.P. SIMONS & COMPANY,Maintenance of Buildings,"$2,675.42 ",8/19/2015
J.P. SIMONS & COMPANY,Maintenance of Equipment,"$2,096.20 ",8/19/2015
J.P. SIMONS & COMPANY,Maintenance of Buildings,"$1,248.18 ",8/24/2015
J.P. SIMONS & COMPANY,Maintenance of Track & Roadway-Electrical,"$9,528.75 ",8/24/2015
J.P. SIMONS & COMPANY,Maintenance of Equipment,$411 ,8/25/2015
J.P. SIMONS & COMPANY,Maintenance of Rail Stations,"$2,847.15 ",8/25/2015
J.P. SIMONS & COMPANY,Maintenance of Buildings,$437.55 ,8/27/2015
J.P. SIMONS & COMPANY,Maintenance of Equipment,$679.36 ,8/27/2015
J.P. SIMONS & COMPANY,Equipment Purchases,"$42,900 ",8/28/2015
J.P. SIMONS & COMPANY,Maintenance of Buildings,"$3,130.47 ",9/2/2015
J.P. SIMONS & COMPANY,Maintenance of Equipment,"$2,732.60 ",9/2/2015
J.P. SIMONS & COMPANY,Maintenance of Lighting,"$8,620 ",9/2/2015
J.P. SIMONS & COMPANY,Maintenance of Track & Roadway-Electrical,"$4,610 ",9/2/2015
J.P. SIMONS & COMPANY,Equipment Purchases,"$3,704.90 ",9/4/2015
J.P. SIMONS & COMPANY,Maintenance of Buildings,"$3,989.22 ",9/4/2015
J.P. SIMONS & COMPANY,Maintenance of Equipment,"$2,067.64 ",9/4/2015
J.P. SIMONS & COMPANY,Maintenance of Lighting,"$1,516.77 ",9/4/2015
J.P. SIMONS & COMPANY,Equipment Purchases,"$7,110 ",9/9/2015
J.P. SIMONS & COMPANY,Equipment Purchases,"$34,990.11 ",9/11/2015
J.P. SIMONS & COMPANY,Maintenance of Buildings,"$2,348.85 ",9/14/2015
J.P. SIMONS & COMPANY,Maintenance of Equipment,"$1,117 ",9/14/2015
J.P. SIMONS & COMPANY,Maintenance of Equipment,"$2,190.45 ",9/16/2015
J.P. SIMONS & COMPANY,Maintenance of Buildings,$715 ,9/21/2015
J.P. SIMONS & COMPANY,Maintenance of Buildings,$300.30 ,9/24/2015
J.P. SIMONS & COMPANY,Maintenance of Equipment,"$3,938.60 ",9/24/2015
J.P. SIMONS & COMPANY,Maintenance of Substations,$259.50 ,9/24/2015
J.P. SIMONS & COMPANY,Maintenance of Track & Roadway-Electrical,"$2,043.40 ",9/24/2015
J.P. SIMONS & COMPANY,Maintenance of Buildings,"$2,435.29 ",10/2/2015
J.P. SIMONS & COMPANY,Maintenance of Equipment,"$8,566 ",10/2/2015
J.P. SIMONS & COMPANY,Equipment Purchases,"$31,500 ",10/7/2015
J.P. SIMONS & COMPANY,Maintenance of Lighting,$535 ,10/8/2015
J.P. SIMONS & COMPANY,Maintenance of Track & Roadway-Electrical,"$7,256 ",10/8/2015
J.P. SIMONS & COMPANY,Maintenance of Equipment,"$7,497 ",10/13/2015
J.P. SIMONS & COMPANY,Maintenance of Buildings,$296.85 ,10/15/2015
J.P. SIMONS & COMPANY,Maintenance of Equipment,"$3,954.42 ",10/15/2015
J.P. SIMONS & COMPANY,Maintenance of Buildings,"$1,743.48 ",10/20/2015
J.P. SIMONS & COMPANY,Maintenance of Equipment,$202.48 ,10/20/2015
J.P. SIMONS & COMPANY,Maintenance of Lighting,"$1,126.40 ",10/20/2015
J.P. SIMONS & COMPANY,Maintenance of Substations,"$1,407 ",10/20/2015
J.P. SIMONS & COMPANY,Maintenance of Equipment,"$2,552.53 ",10/22/2015
J.P. SIMONS & COMPANY,Equipment Purchases,"$27,280 ",10/28/2015
J.P. SIMONS & COMPANY,Maintenance of Buildings,"$3,219.88 ",10/28/2015
J.P. SIMONS & COMPANY,Maintenance of Equipment,"$18,994.56 ",10/28/2015
J.P. SIMONS & COMPANY,Maintenance of Buildings,"$2,372.40 ",11/4/2015
J.P. SIMONS & COMPANY,Maintenance of Equipment,"$1,129.40 ",11/4/2015
J.P. SIMONS & COMPANY,Maintenance of Lighting,"$2,486.16 ",11/4/2015
J.P. SIMONS & COMPANY,Maintenance of Track & Roadway-Electrical,"$6,021.70 ",11/4/2015
J.P. SIMONS & COMPANY,Maintenance of Buildings,$274.46 ,11/5/2015
J.P. SIMONS & COMPANY,Maintenance of Equipment,$168 ,11/5/2015
J.P. SIMONS & COMPANY,Maintenance of Lighting,$844.50 ,11/5/2015
J.P. SIMONS & COMPANY,Maintenance of Rail Stations,"$1,165.92 ",11/5/2015
J.P. SIMONS & COMPANY,Maintenance of Buildings,"$2,548.44 ",11/12/2015
J.P. SIMONS & COMPANY,Vandalism Repairs (includes graffiti removal),$148.08 ,11/12/2015
J.P. SIMONS & COMPANY,Maintenance of Buildings,$304.80 ,11/16/2015
J.P. SIMONS & COMPANY,Maintenance of Equipment,"$2,549.40 ",11/16/2015
J.P. SIMONS & COMPANY,Maintenance of Lighting,"$2,434.14 ",11/16/2015
J.P. SIMONS & COMPANY,Maintenance of Buildings,$710.16 ,11/19/2015
J.P. SIMONS & COMPANY,Maintenance of Equipment,"$2,796.75 ",11/19/2015
J.P. SIMONS & COMPANY,Maintenance of Lighting,"$2,032.88 ",11/19/2015
J.P. SIMONS & COMPANY,Maintenance of Rail Stations,$792 ,11/19/2015
J.P. SIMONS & COMPANY,Equipment Purchases,"$5,693.50 ",11/20/2015
J.P. SIMONS & COMPANY,Maintenance of Buildings,"$2,811.84 ",11/25/2015
J.P. SIMONS & COMPANY,Maintenance of Lighting,$337.40 ,11/25/2015
J.P. SIMONS & COMPANY,Maintenance of Track & Roadway-Electrical,"$21,078 ",11/25/2015
J.P. SIMONS & COMPANY,Maintenance of Equipment,"$4,679.08 ",12/1/2015
J.P. SIMONS & COMPANY,Maintenance of Lighting,"$9,144.30 ",12/1/2015
J.P. SIMONS & COMPANY,Equipment Purchases,"$150,022.75 ",12/2/2015
J.P. SIMONS & COMPANY,Maintenance of Buildings,"$2,425.76 ",12/3/2015
J.P. SIMONS & COMPANY,Maintenance of Equipment,$490 ,12/3/2015
J.P. SIMONS & COMPANY,Maintenance of Buildings,"$5,291.78 ",12/14/2015
J.P. SIMONS & COMPANY,Maintenance of Equipment,$693.70 ,12/14/2015
J.P. SIMONS & COMPANY,Maintenance of Rail Stations,"$3,602.50 ",12/14/2015
J.P. SIMONS & COMPANY,Maintenance of Buildings,"$2,709.03 ",12/17/2015
J.P. SIMONS & COMPANY,Maintenance of Equipment,"$8,698.44 ",12/17/2015
J.P. SIMONS & COMPANY,Equipment Purchases,"$5,093.75 ",12/18/2015
J.P. SIMONS & COMPANY,Maintenance of Equipment,$511.34 ,12/22/2015
J.P. SIMONS & COMPANY,Maintenance of Lighting,"$1,855.52 ",12/22/2015
J.P. SIMONS & COMPANY,Maintenance of Buildings,"$1,983.72 ",12/28/2015
J.P. SIMONS & COMPANY,Maintenance of Equipment,"$2,635.23 ",12/28/2015
J.P. SIMONS & COMPANY,Maintenance of Lighting,"$1,078.32 ",12/28/2015
J.P. SIMONS & COMPANY,Maintenance of Rail Stations,$968.91 ,12/28/2015
J.P. SIMONS & COMPANY,Maintenance of Buildings,$337.50 ,12/30/2015
J.P. SIMONS & COMPANY,Maintenance of Equipment,"$9,386.24 ",12/30/2015
J.P. SIMONS & COMPANY,Maintenance of Lighting,$495.80 ,12/30/2015
J.P. SIMONS & COMPANY,Maintenance of Rail Stations,$579.93 ,12/30/2015
KGI LANDSCAPING CO.,Landscaping,"$6,080 ",5/22/2015
KGI LANDSCAPING CO.,Landscaping,"$6,000 ",5/26/2015
KGI LANDSCAPING CO.,Landscaping,"$2,200 ",5/28/2015
KGI LANDSCAPING CO.,Landscaping,"$6,800 ",5/29/2015
KGI LANDSCAPING CO.,Landscaping,"$12,908 ",6/3/2015
KGI LANDSCAPING CO.,Maintenance of Buildings,"$2,000 ",6/3/2015
KGI LANDSCAPING CO.,Landscaping,"$1,255 ",6/17/2015
KGI LANDSCAPING CO.,Landscaping,$120 ,6/18/2015
KOI COMPUTERS,Equipment Purchases,"$4,844 ",1/27/2015
KOI COMPUTERS,Equipment Purchases,"$3,268 ",2/5/2015
KOI COMPUTERS,Equipment Purchases,"$6,525 ",3/17/2015
"KOPICO, INC.",Accounting,$92 ,1/12/2015
"KOPICO, INC.",Accounting,"$2,100 ",1/15/2015
"KOPICO, INC.",Administrative Support,"$2,109.46 ",2/25/2015
"KOPICO, INC.",Marketing,"$74,433.86 ",3/10/2015
"KOPICO, INC.",Computer Operations,"$1,236 ",4/2/2015
"KOPICO, INC.",Computer Operations,"$1,236 ",8/6/2015
"KOPICO, INC.",Administrative Support,$794.90 ,10/6/2015
"KOPICO, INC.",Administrative Support,"$1,127 ",10/8/2015
"KOPICO, INC.",Computer Operations,"$1,236 ",11/2/2015
"LADY LIFT, INC.",Equipment Purchases,"$17,150 ",3/13/2015
"LADY LIFT, INC.",Maintenance of Track & Roadway,"$10,400 ",3/13/2015
"LADY LIFT, INC.",Maintenance of Structures,"$34,274.27 ",3/23/2015
"LADY LIFT, INC.",Maintenance of Track & Roadway,"$5,400 ",3/23/2015
"LADY LIFT, INC.",Maintenance of Track & Roadway-Electrical,"$5,550 ",3/24/2015
"LADY LIFT, INC.",Maintenance of Track & Roadway,"$1,146.45 ",3/30/2015
"LADY LIFT, INC.",Equipment Purchases,"$14,592 ",4/1/2015
"LADY LIFT, INC.",Maintenance of Track & Roadway,"$1,592.73 ",4/10/2015
"LADY LIFT, INC.",Maintenance of Track & Roadway,"$2,700 ",4/16/2015
"LADY LIFT, INC.",Maintenance of Track & Roadway,"$1,150 ",4/20/2015
"LADY LIFT, INC.",Maintenance of Track & Roadway,"$2,500 ",5/1/2015
"LADY LIFT, INC.",Maintenance of Track & Roadway,"$4,667.21 ",7/6/2015
"LADY LIFT, INC.",Maintenance of Structures,"$12,900 ",7/9/2015
"LADY LIFT, INC.",Equipment Purchases,"$10,450 ",7/10/2015
"LADY LIFT, INC.",Equipment Purchases,"$5,400 ",7/15/2015
"LADY LIFT, INC.",Maintenance of Track & Roadway,"$3,900 ",7/22/2015
"LADY LIFT, INC.",Maintenance of Structures,"$19,721.49 ",8/3/2015
"LADY LIFT, INC.",Maintenance of Structures,"$23,821.08 ",8/6/2015
"LADY LIFT, INC.",Maintenance of Track & Roadway,"$5,200 ",8/24/2015
"LADY LIFT, INC.",Maintenance of Structures,"$16,750 ",9/10/2015
"LADY LIFT, INC.",Maintenance of Track & Roadway,"$5,250 ",9/22/2015
"LADY LIFT, INC.",Maintenance of Buildings,"$1,340 ",9/28/2015
"LADY LIFT, INC.",Equipment Purchases,"$17,700 ",10/7/2015
"LADY LIFT, INC.",Maintenance of Track & Roadway,"$4,953.31 ",10/26/2015
"LADY LIFT, INC.",Maintenance of Buildings,"$2,200 ",11/6/2015
"LADY LIFT, INC.",Maintenance of Buildings,"$1,100 ",11/18/2015
"LADY LIFT, INC.",Equipment Purchases,"$17,400 ",11/25/2015
"LADY LIFT, INC.",Equipment Purchases,"$5,800 ",11/27/2015
"LADY LIFT, INC.",Maintenance of Track & Roadway,"$5,200 ",12/2/2015
"LADY LIFT, INC.",Maintenance of Structures,"$15,800 ",12/11/2015
"LADY LIFT, INC.",Maintenance of Buildings,"$1,540 ",12/22/2015
"LADY LIFT, INC.",Maintenance of Track & Roadway,"$5,200 ",12/23/2015
"LADY LIFT, INC.",Maintenance of Buildings,"$1,100 ",12/28/2015
"MARJ HALPERIN CONSULTING, INC.",Tops Trapeze Timekeeping,"$14,012 ",7/28/2015
"MARJ HALPERIN CONSULTING, INC.",Tops Trapeze Timekeeping,"$11,325.16 ",8/7/2015
"MARJ HALPERIN CONSULTING, INC.",Tops Trapeze Timekeeping,"$2,952.50 ",8/27/2015
"MARJ HALPERIN CONSULTING, INC.",Tops Trapeze Timekeeping,"$1,140.05 ",9/8/2015
"MARJ HALPERIN CONSULTING, INC.",Tops Trapeze Timekeeping,"$2,772.50 ",10/1/2015
"MARJ HALPERIN CONSULTING, INC.",Tops Trapeze Timekeeping,$886.25 ,11/2/2015
"MIDWAY OVERHEAD DOOR, INC.",Maintenance of Buildings,"$19,717.70 ",2/4/2015
"MIDWAY OVERHEAD DOOR, INC.",Maintenance of Equipment,$200 ,2/4/2015
"MIDWAY OVERHEAD DOOR, INC.",Maintenance of Buildings,"$26,374.20 ",2/23/2015
"MIDWAY OVERHEAD DOOR, INC.",Maintenance of Buildings,"$10,344.66 ",2/25/2015
"MIDWAY OVERHEAD DOOR, INC.",Maintenance of Buildings,"$22,680 ",3/17/2015
"MIDWAY OVERHEAD DOOR, INC.",Maintenance of Buildings,"$29,258.50 ",3/31/2015
"MIDWAY OVERHEAD DOOR, INC.",Maintenance of Buildings,"$4,232.50 ",4/1/2015
"MIDWAY OVERHEAD DOOR, INC.",Maintenance of Buildings,"$1,300 ",4/2/2015
"MIDWAY OVERHEAD DOOR, INC.",Maintenance of Equipment,$430 ,4/7/2015
"MIDWAY OVERHEAD DOOR, INC.",Maintenance of Buildings,"$12,544 ",4/10/2015
"MIDWAY OVERHEAD DOOR, INC.",Maintenance of Buildings,"$8,908.82 ",5/5/2015
"MIDWAY OVERHEAD DOOR, INC.",Maintenance of Buildings,"$26,374.20 ",5/18/2015
"MIDWAY OVERHEAD DOOR, INC.",Maintenance of Buildings,"$1,900 ",5/19/2015
"MIDWAY OVERHEAD DOOR, INC.",Maintenance of Buildings,"$2,293.85 ",5/20/2015
"MIDWAY OVERHEAD DOOR, INC.",Maintenance of Buildings,$500 ,5/21/2015
"MIDWAY OVERHEAD DOOR, INC.",Maintenance of Buildings,"$10,521.85 ",6/10/2015
"MIDWAY OVERHEAD DOOR, INC.",Maintenance of Buildings,"$2,623.85 ",6/15/2015
"MIDWAY OVERHEAD DOOR, INC.",Maintenance of Buildings,"$3,348.12 ",6/24/2015
"MIDWAY OVERHEAD DOOR, INC.",Maintenance of Buildings,"$2,450 ",7/29/2015
"MIDWAY OVERHEAD DOOR, INC.",Maintenance of Buildings,"$18,997.36 ",8/3/2015
"MIDWAY OVERHEAD DOOR, INC.",Maintenance of Buildings,"$9,928.50 ",8/10/2015
"MIDWAY OVERHEAD DOOR, INC.",Maintenance of Buildings,$240 ,8/12/2015
"MIDWAY OVERHEAD DOOR, INC.",Maintenance of Buildings,"$7,495.25 ",8/13/2015
"MIDWAY OVERHEAD DOOR, INC.",Maintenance of Buildings,"$5,488.43 ",9/22/2015
"MIDWAY OVERHEAD DOOR, INC.",Maintenance of Buildings,"$1,176.80 ",9/24/2015
"MIDWAY OVERHEAD DOOR, INC.",Maintenance of Buildings,"$1,660 ",11/2/2015
"MIDWAY OVERHEAD DOOR, INC.",Maintenance of Buildings,"$14,878.75 ",12/15/2015
NAK-MAN CORPORATION,Equipment Purchases,"$54,492.48 ",2/3/2015
NAK-MAN CORPORATION,Equipment Purchases,"$46,857.13 ",3/24/2015
NAK-MAN CORPORATION,Equipment Purchases,"$6,548.94 ",4/29/2015
NAK-MAN CORPORATION,Equipment Purchases,"$28,878.49 ",9/23/2015
NAK-MAN CORPORATION,Equipment Purchases,"$47,564.39 ",11/9/2015
NAK-MAN CORPORATION,Equipment Purchases,"$45,544.05 ",11/16/2015
NAK-MAN CORPORATION,Equipment Purchases,"$109,019.59 ",12/7/2015
"PW ASSOCIATES, INC.",Drug & Alcohol Testing,"$7,344 ",1/8/2015
"PW ASSOCIATES, INC.",Drug & Alcohol Testing,"$1,800 ",1/20/2015
"PW ASSOCIATES, INC.",Drug & Alcohol Testing,"$2,268 ",3/9/2015
"PW ASSOCIATES, INC.",Drug & Alcohol Testing,"$5,268.50 ",3/30/2015
"PW ASSOCIATES, INC.",Drug & Alcohol Testing,"$3,060.50 ",4/29/2015
"PW ASSOCIATES, INC.",Drug & Alcohol Testing,"$1,017.50 ",6/22/2015
"PW ASSOCIATES, INC.",Drug & Alcohol Testing,"$1,202.50 ",6/30/2015
"PW ASSOCIATES, INC.",Drug & Alcohol Testing,"$3,737 ",8/18/2015
"PW ASSOCIATES, INC.",Drug & Alcohol Testing,"$4,120 ",9/2/2015
"PW ASSOCIATES, INC.",Drug & Alcohol Testing,$777 ,10/28/2015
"PW ASSOCIATES, INC.",Drug & Alcohol Testing,"$4,051.50 ",11/3/2015
"PW ASSOCIATES, INC.",Drug & Alcohol Testing,$666 ,12/18/2015
"QUANTUM CROSSINGS, LLC",Maintain/Repair Communications  Equip,"$540,248.90 ",3/13/2015
"QUANTUM CROSSINGS, LLC",Maintain/Repair Communications  Equip,"$496,201.40 ",4/1/2015
"QUANTUM CROSSINGS, LLC",Maintain/Repair Communications  Equip,"$397,508.70 ",5/7/2015
"QUANTUM CROSSINGS, LLC",Maintain/Repair Communications  Equip,"$393,600.70 ",5/15/2015
"QUANTUM CROSSINGS, LLC",Maintain/Repair Communications  Equip,"$819,845.82 ",8/4/2015
"QUANTUM CROSSINGS, LLC",Maintain/Repair Communications  Equip,"$87,381.56 ",8/6/2015
"QUANTUM CROSSINGS, LLC",Equipment Purchases,"$51,973.55 ",8/14/2015
"QUANTUM CROSSINGS, LLC",Maintain/Repair Communications  Equip,"$307,808.30 ",8/18/2015
"QUANTUM CROSSINGS, LLC",Maintain/Repair Communications  Equip,"$308,707.80 ",11/18/2015
"QUANTUM CROSSINGS, LLC",Maintain/Repair Communications  Equip,"$257,357.80 ",11/19/2015
"QUANTUM CROSSINGS, LLC",Maintain/Repair Communications  Equip,"$238,610.60 ",11/20/2015
"QUANTUM CROSSINGS, LLC",Maintain/Repair Communications  Equip,"$233,822.40 ",12/2/2015
RAE PRODUCTS AND CHEMICALS CORPORATION,Maintenance of Buildings,$441.90 ,2/17/2015
RAE PRODUCTS AND CHEMICALS CORPORATION,Maintenance of Equipment,"$1,871.99 ",3/18/2015
RAE PRODUCTS AND CHEMICALS CORPORATION,Maintenance of Buildings,$649.48 ,5/27/2015
RAE PRODUCTS AND CHEMICALS CORPORATION,Maintenance of Equipment,$289.30 ,5/27/2015
RAE PRODUCTS AND CHEMICALS CORPORATION,Maintenance of Buildings,$367.70 ,9/28/2015
RAE PRODUCTS AND CHEMICALS CORPORATION,Maintenance of Rail Stations,$898.99 ,12/4/2015
"SEVILLE STAFFING, LLC",Administrative Support,"$2,930.55 ",1/7/2015
"SEVILLE STAFFING, LLC",I&D Claims (Damage Reserve),"$2,302.92 ",1/7/2015
"SEVILLE STAFFING, LLC",Administrative Support,"$2,398.38 ",1/20/2015
"SEVILLE STAFFING, LLC",I&D Claims (Damage Reserve),"$2,849.07 ",1/20/2015
"SEVILLE STAFFING, LLC",Administrative Support,"$2,608.97 ",2/5/2015
"SEVILLE STAFFING, LLC",I&D Claims (Damage Reserve),"$7,550.57 ",2/5/2015
"SEVILLE STAFFING, LLC",Administrative Support,"$2,401.56 ",3/6/2015
"SEVILLE STAFFING, LLC",I&D Claims (Damage Reserve),"$6,739.98 ",3/6/2015
"SEVILLE STAFFING, LLC",Administrative Support,"$1,703.65 ",4/1/2015
"SEVILLE STAFFING, LLC",I&D Claims (Damage Reserve),"$5,949.89 ",4/1/2015
"SEVILLE STAFFING, LLC",I&D Claims (Damage Reserve),"$6,323.95 ",5/5/2015
"SEVILLE STAFFING, LLC",Consulting Services,"$49,145.15 ",5/20/2015
"SEVILLE STAFFING, LLC",I&D Claims (Damage Reserve),"$5,367.09 ",7/22/2015
"SEVILLE STAFFING, LLC",I&D Claims (Damage Reserve),"$2,796.20 ",7/23/2015
"SEVILLE STAFFING, LLC",Professional / Technical,"$96,743.98 ",8/12/2015
"SEVILLE STAFFING, LLC",Professional / Technical,"$23,230.88 ",8/27/2015
"SEVILLE STAFFING, LLC",Administrative Support,"$5,569.85 ",9/2/2015
"SEVILLE STAFFING, LLC",Tops Trapeze Timekeeping,"$14,000.65 ",9/4/2015
"SEVILLE STAFFING, LLC",Tops Trapeze Timekeeping,"$6,435.55 ",9/8/2015
"SEVILLE STAFFING, LLC",Professional / Technical,"$86,826.82 ",9/15/2015
"SEVILLE STAFFING, LLC",Professional / Technical,"$6,490.30 ",9/16/2015
"SEVILLE STAFFING, LLC",Professional / Technical,"$6,490.30 ",9/23/2015
"SEVILLE STAFFING, LLC",Tops Trapeze Timekeeping,$836.81 ,9/23/2015
"SEVILLE STAFFING, LLC",Professional / Technical,"$6,030.30 ",9/30/2015
"SEVILLE STAFFING, LLC",Professional / Technical,"$4,720.26 ",10/13/2015
"SEVILLE STAFFING, LLC",Professional / Technical,"$4,948.44 ",10/14/2015
"SEVILLE STAFFING, LLC",Tops Trapeze Timekeeping,"$3,368 ",10/14/2015
"SEVILLE STAFFING, LLC",Professional / Technical,"$5,685.30 ",10/21/2015
"SEVILLE STAFFING, LLC",Tops Trapeze Timekeeping,$637.88 ,10/21/2015
"SEVILLE STAFFING, LLC",Administrative Support,"$5,452.59 ",10/26/2015
"SEVILLE STAFFING, LLC",Administrative Support,$730.62 ,10/28/2015
"SEVILLE STAFFING, LLC",Professional / Technical,"$6,591.14 ",10/28/2015
"SEVILLE STAFFING, LLC",Tops Trapeze Timekeeping,$654.89 ,10/28/2015
"SEVILLE STAFFING, LLC",Tops Trapeze Timekeeping,"$1,892.36 ",11/23/2015
"SEVILLE STAFFING, LLC",Tops Trapeze Timekeeping,$671.90 ,11/24/2015
"SEVILLE STAFFING, LLC",Professional / Technical,"$20,170.58 ",11/25/2015
"SEVILLE STAFFING, LLC",Administrative Support,"$2,620.31 ",11/30/2015
"SEVILLE STAFFING, LLC",Administrative Support,"$5,391.98 ",12/17/2015
"SEVILLE STAFFING, LLC",I&D Claims (Damage Reserve),$902.20 ,12/17/2015
"SEVILLE STAFFING, LLC",Tops Trapeze Timekeeping,"$1,790.31 ",12/17/2015
"SEVILLE STAFFING, LLC",Administrative Support,$791.78 ,12/18/2015
"SEVILLE STAFFING, LLC",Tops Trapeze Timekeeping,$633.62 ,12/23/2015
"SEVILLE STAFFING, LLC",Tops Trapeze Timekeeping,$459.27 ,12/30/2015
"SEVILLE STAFFING, LLC",Administrative Support,"$3,427.60 ",12/31/2015
"SMART TECHNOLOGY SERVICES., INC.",Equipment Purchases,"$69,150.98 ",7/8/2015
"SMART TECHNOLOGY SERVICES., INC.",Cashiering,$555 ,8/13/2015
SOUTH SUBURBAN PEST CONTROL,Maintenance of Equipment,"$4,800.60 ",1/21/2015
SOUTH SUBURBAN PEST CONTROL,Maintenance of Equipment,"$9,285.30 ",2/27/2015
SOUTH SUBURBAN PEST CONTROL,Maintenance of Equipment,"$4,722.30 ",3/27/2015
SOUTH SUBURBAN PEST CONTROL,Maintenance of Equipment,"$4,716.90 ",4/17/2015
SOUTH SUBURBAN PEST CONTROL,Maintenance of Equipment,"$4,622.40 ",6/1/2015
SOUTH SUBURBAN PEST CONTROL,Maintenance of Equipment,"$4,455 ",7/1/2015
SOUTH SUBURBAN PEST CONTROL,Maintenance of Equipment,"$4,560.30 ",8/11/2015
SOUTH SUBURBAN PEST CONTROL,Maintenance of Equipment,"$4,411.80 ",9/8/2015
SOUTH SUBURBAN PEST CONTROL,Maintenance of Equipment,"$4,749.30 ",10/1/2015
SOUTH SUBURBAN PEST CONTROL,Maintenance of Equipment,"$4,719.60 ",11/6/2015
SOUTH SUBURBAN PEST CONTROL,Maintenance of Equipment,"$4,592.70 ",11/16/2015
SOUTH SUBURBAN PEST CONTROL,Maintenance of Equipment,"$4,533.30 ",12/28/2015
SULLIVAN REPORTING COMPANY,I&D Claims (Damage Reserve),$565.25 ,1/20/2015
SULLIVAN REPORTING COMPANY,I&D Claims (Damage Reserve),$79.75 ,1/27/2015
SULLIVAN REPORTING COMPANY,I&D Claims (Damage Reserve),$356.80 ,3/6/2015
SULLIVAN REPORTING COMPANY,I&D Claims (Damage Reserve),$114.75 ,4/1/2015
SULLIVAN REPORTING COMPANY,I&D Claims (Damage Reserve),$152 ,4/27/2015
SULLIVAN REPORTING COMPANY,I&D Claims (Damage Reserve),$134.50 ,6/8/2015
SULLIVAN REPORTING COMPANY,I&D Claims (Damage Reserve),$652.15 ,8/27/2015
SULLIVAN REPORTING COMPANY,I&D Claims (Damage Reserve),$193.80 ,10/13/2015
SULLIVAN REPORTING COMPANY,I&D Claims (Damage Reserve),$95.70 ,10/26/2015
SULLIVAN REPORTING COMPANY,I&D Claims (Damage Reserve),$71 ,11/5/2015
SULLIVAN REPORTING COMPANY,I&D Claims (Damage Reserve),$152.55 ,12/23/2015
SULLIVAN REPORTING COMPANY,I&D Claims (Damage Reserve),$377.80 ,12/24/2015
THE BLUEPRINT SHOPPE,Administrative Support,$327.32 ,2/17/2015
THE BLUEPRINT SHOPPE,Administrative Support,$267.82 ,2/20/2015
THE BLUEPRINT SHOPPE,Administrative Support,$25.20 ,2/23/2015
THE BLUEPRINT SHOPPE,Administrative Support,$495.74 ,3/18/2015
THE BLUEPRINT SHOPPE,Administrative Support,$22.82 ,3/19/2015
THE BLUEPRINT SHOPPE,Administrative Support,$191.80 ,3/24/2015
THE BLUEPRINT SHOPPE,Administrative Support,$65.94 ,3/30/2015
THE BLUEPRINT SHOPPE,Administrative Support,$540.96 ,5/4/2015
THE BLUEPRINT SHOPPE,Administrative Support,$762.86 ,5/13/2015
THE BLUEPRINT SHOPPE,Administrative Support,$77 ,5/21/2015
THE BLUEPRINT SHOPPE,Administrative Support,$724.78 ,7/15/2015
THE BLUEPRINT SHOPPE,Administrative Support,"$1,511.44 ",8/7/2015
THE BLUEPRINT SHOPPE,Administrative Support,$627.34 ,9/9/2015
THE BLUEPRINT SHOPPE,Administrative Support,"$1,177.68 ",10/6/2015
THE BLUEPRINT SHOPPE,Administrative Support,$353.50 ,10/9/2015
THE BLUEPRINT SHOPPE,Administrative Support,$512.82 ,11/25/2015
THE BLUEPRINT SHOPPE,Administrative Support,$908.04 ,12/16/2015
THE BLUEPRINT SHOPPE,Administrative Support,$56.70 ,12/17/2015
THE BLUEPRINT SHOPPE,Administrative Support,$125.44 ,12/28/2015
THE BLUEPRINT SHOPPE,Administrative Support,$33.60 ,12/29/2015
VIVA USA INC,Tops Trapeze Timekeeping,"$3,511.20 ",10/7/2015
VIVA USA INC,Administrative Support,"$4,743 ",10/14/2015
VIVA USA INC,Administrative Support,"$11,475 ",10/28/2015
VIVA USA INC,Administrative Support,"$11,798 ",11/25/2015
VIVA USA INC,Tops Trapeze Timekeeping,"$7,504 ",11/25/2015
VIVA USA INC,Tops Trapeze Timekeeping,"$7,005.60 ",12/23/2015
VIVA USA INC,Tops Trapeze Timekeeping,"$6,272 ",12/28/2015
"WE'RE CLEANING, INC.",Maintenance of Buildings,"$1,600 ",3/3/2015
"WE'RE CLEANING, INC.",Maintenance of Buildings,"$1,600 ",3/27/2015
"WE'RE CLEANING, INC.",Maintenance of Buildings,"$1,600 ",4/28/2015
"WE'RE CLEANING, INC.",Maintenance of Buildings,"$1,600 ",5/28/2015
"WE'RE CLEANING, INC.",Maintenance of Buildings,"$1,600 ",6/26/2015
"WE'RE CLEANING, INC.",Maintenance of Buildings,"$1,600 ",8/7/2015
",MAMTA SWAROOP M.D.",I&D Claims (Damage Reserve),$750 ,8/7/2015
"108 NORTH STATE ST. (CHICAGO) OWNER,LLC",Administrative Support,"$24,600 ",1/2/2015
"108 NORTH STATE ST. (CHICAGO) OWNER,LLC",Administrative Support,"$24,600 ",2/6/2015
"108 NORTH STATE ST. (CHICAGO) OWNER,LLC",Administrative Support,"$24,600 ",3/2/2015
"108 NORTH STATE ST. (CHICAGO) OWNER,LLC",Maintenance of Buildings,"$34,176.02 ",4/2/2015
"108 NORTH STATE ST. (CHICAGO) OWNER,LLC",Maintenance of Buildings,"$24,600 ",4/29/2015
"108 NORTH STATE ST. (CHICAGO) OWNER,LLC",Maintenance of Buildings,"$24,600 ",6/2/2015
"108 NORTH STATE ST. (CHICAGO) OWNER,LLC",Maintenance of Buildings,"$24,600 ",7/2/2015
"108 NORTH STATE ST. (CHICAGO) OWNER,LLC",Maintenance of Buildings,"$24,600 ",8/26/2015
"108 NORTH STATE ST. (CHICAGO) OWNER,LLC",Maintenance of Buildings,"$24,600 ",9/24/2015
"108 NORTH STATE ST. (CHICAGO) OWNER,LLC",Maintenance of Buildings,"$24,600 ",10/28/2015
"108 NORTH STATE ST. (CHICAGO) OWNER,LLC",Maintenance of Buildings,"$24,600 ",11/3/2015
"108 NORTH STATE ST. (CHICAGO) OWNER,LLC","Facilities Operating Expenses (Rent,Utilities,etc)","$24,600 ",12/28/2015
"1ST METROPOLITAN TRANSLATION SERVICES, INC.",Marketing,$75 ,1/28/2015
"1ST METROPOLITAN TRANSLATION SERVICES, INC.",Marketing,$75 ,4/28/2015
"1ST METROPOLITAN TRANSLATION SERVICES, INC.",Administrative Support,$957.50 ,6/8/2015
"1ST METROPOLITAN TRANSLATION SERVICES, INC.",Marketing,$150 ,9/28/2015
"1ST METROPOLITAN TRANSLATION SERVICES, INC.",Marketing,$150 ,11/3/2015
"1ST METROPOLITAN TRANSLATION SERVICES, INC.",Marketing,$395.25 ,12/11/2015
"22ND CENTURY TECHNOLOGIES, INC.",Tops Trapeze Timekeeping,"$1,655.05 ",10/8/2015
"22ND CENTURY TECHNOLOGIES, INC.",Administrative Support,"$5,070.63 ",11/23/2015
"22ND CENTURY TECHNOLOGIES, INC.",Administrative Support,"$5,852 ",12/2/2015
3-D PRINTING EXPERIENCE,Budget & Analysis,$478 ,1/21/2015
3252 N WILTON CONDOMINIUM ASS. INC,Real Estate,$281.28 ,8/13/2015
3252 N WILTON CONDOMINIUM ASS. INC,Real Estate,$281.28 ,8/26/2015
3252 N WILTON CONDOMINIUM ASS. INC,Real Estate,$281.28 ,9/30/2015
3252 N WILTON CONDOMINIUM ASS. INC,Real Estate,$281.28 ,11/16/2015
3252 N WILTON CONDOMINIUM ASS. INC,Real Estate,$281.28 ,12/9/2015
3252 N WILTON CONDOMINIUM ASS. INC,Real Estate,$281.28 ,12/21/2015
5353 W ARMSTRONG L.L.C,Real Estate,"$17,058.92 ",8/28/2015
89TH STREET PARTNERS LLC,Administrative Support,"$27,968.92 ",1/2/2015
89TH STREET PARTNERS LLC,Administrative Support,"$27,968.92 ",2/6/2015
89TH STREET PARTNERS LLC,Administrative Support,"$27,968.92 ",3/2/2015
89TH STREET PARTNERS LLC,"Facilities Operating Expenses (Rent,Utilities,etc)","$27,968.92 ",4/2/2015
89TH STREET PARTNERS LLC,"Facilities Operating Expenses (Rent,Utilities,etc)","$27,968.92 ",4/29/2015
89TH STREET PARTNERS LLC,"Facilities Operating Expenses (Rent,Utilities,etc)","$27,968.92 ",6/1/2015
89TH STREET PARTNERS LLC,"Facilities Operating Expenses (Rent,Utilities,etc)","$27,968.92 ",7/2/2015
89TH STREET PARTNERS LLC,"Facilities Operating Expenses (Rent,Utilities,etc)","$27,968.92 ",8/4/2015
89TH STREET PARTNERS LLC,"Facilities Operating Expenses (Rent,Utilities,etc)","$27,968.92 ",9/2/2015
89TH STREET PARTNERS LLC,"Facilities Operating Expenses (Rent,Utilities,etc)","$27,968.92 ",10/2/2015
89TH STREET PARTNERS LLC,"Facilities Operating Expenses (Rent,Utilities,etc)","$27,968.92 ",11/3/2015
89TH STREET PARTNERS LLC,"Facilities Operating Expenses (Rent,Utilities,etc)","$27,968.92 ",12/17/2015
89TH STREET PARTNERS LLC,"Facilities Operating Expenses (Rent,Utilities,etc)","$27,968.92 ",12/31/2015
95TH ST CURRENCY EXCHANGE INC,Real Estate,"$57,496.52 ",7/22/2015
A-1 TELETRONICS,Maintain/Repair Communications  Equip,"$3,446.34 ",5/28/2015
A-1 TELETRONICS,Maintain/Repair Communications  Equip,$362.33 ,9/14/2015
A.R.D.C.,Administrative Support,"$19,100 ",12/11/2015
A1 TELETRONICS INC,Maintain/Repair Communications  Equip,$367.94 ,3/2/2015
A1 TELETRONICS INC,Maintain/Repair Communications  Equip,"$1,074.96 ",3/26/2015
A1 TELETRONICS INC,Maintain/Repair Communications  Equip,"$1,272.40 ",3/31/2015
AARON DIXON,I&D Claims (Damage Reserve),$75 ,4/7/2015
AARON S. WOLFF,Administrative Support,$550 ,3/6/2015
AARON S. WOLFF,Administrative Support,"$3,025 ",6/9/2015
AARON S. WOLFF,Administrative Support,"$3,575 ",9/17/2015
AARON S. WOLFF,Administrative Support,"$2,750 ",11/27/2015
ABB INC.,Maintenance of Substations,$865.07 ,7/10/2015
ABBOTT COURT REPORTING CSR,I&D Claims (Damage Reserve),$599.40 ,5/22/2015
ABBOTT COURT REPORTING CSR,I&D Claims (Damage Reserve),$647.50 ,6/2/2015
ABIGAIL THOMAS,I&D Claims (Damage Reserve),$25 ,3/2/2015
ABNER WILLIAMS,Reimb for lost tools/badges,$50 ,10/23/2015
ABSOLUTE REPORTERS,I&D Claims (Damage Reserve),$153.40 ,3/6/2015
ABUSE CONTROL ASSOCIATES,Drug & Alcohol Testing,$249.60 ,1/26/2015
ABUSE CONTROL ASSOCIATES,Drug & Alcohol Testing,$249.60 ,2/25/2015
ABUSE CONTROL ASSOCIATES,Drug & Alcohol Testing,$249.60 ,3/26/2015
ABUSE CONTROL ASSOCIATES,Drug & Alcohol Testing,$249.60 ,4/23/2015
ABUSE CONTROL ASSOCIATES,Drug & Alcohol Testing,$499.20 ,7/7/2015
ABUSE CONTROL ASSOCIATES,Drug & Alcohol Testing,$249.60 ,7/13/2015
ABUSE CONTROL ASSOCIATES,Drug & Alcohol Testing,$249.60 ,8/27/2015
ABUSE CONTROL ASSOCIATES,Drug & Alcohol Testing,$249.60 ,10/8/2015
ABUSE CONTROL ASSOCIATES,Drug & Alcohol Testing,$249.60 ,11/12/2015
ABUSE CONTROL ASSOCIATES,Drug & Alcohol Testing,$249.60 ,11/19/2015
ABUSE CONTROL ASSOCIATES,Drug & Alcohol Testing,$249.60 ,12/23/2015
ABUSE CONTROL ASSOCIATES,Drug & Alcohol Testing,$249.60 ,12/30/2015
AC MEDTRAN INC,I&D Claims (Damage Reserve),$130 ,8/26/2015
ACCO BRANDS USA LLC,Computer Operations,$171.53 ,4/2/2015
ACCO BRANDS USA LLC,Computer Operations,$915.77 ,4/22/2015
ACCOUNTEMPS/DIV. ROBERT HALF,Professional / Technical,"$7,845.65 ",1/6/2015
ACCOUNTEMPS/DIV. ROBERT HALF,Professional / Technical,"$8,399.90 ",1/13/2015
ACCOUNTEMPS/DIV. ROBERT HALF,Professional / Technical,"$3,188.14 ",1/20/2015
ACCOUNTEMPS/DIV. ROBERT HALF,Professional / Technical,"$3,410.74 ",2/5/2015
ACCOUNTEMPS/DIV. ROBERT HALF,Professional / Technical,"$5,096.48 ",2/26/2015
ACCOUNTEMPS/DIV. ROBERT HALF,Professional / Technical,"$11,000 ",3/2/2015
ACCOUNTEMPS/DIV. ROBERT HALF,Professional / Technical,"$8,786.37 ",3/11/2015
ACCOUNTEMPS/DIV. ROBERT HALF,Professional / Technical,"$42,621.65 ",3/19/2015
ACCOUNTEMPS/DIV. ROBERT HALF,Professional / Technical,"$3,932.80 ",3/24/2015
ACCOUNTEMPS/DIV. ROBERT HALF,Professional / Technical,"$2,403.20 ",3/26/2015
ACCOUNTEMPS/DIV. ROBERT HALF,Professional / Technical,"$4,171.92 ",3/31/2015
ACCOUNTEMPS/DIV. ROBERT HALF,Professional / Technical,"$6,000.34 ",4/7/2015
ACCOUNTEMPS/DIV. ROBERT HALF,Professional / Technical,"$5,594.80 ",4/14/2015
ACCOUNTEMPS/DIV. ROBERT HALF,Professional / Technical,"$6,305.16 ",4/21/2015
ACCOUNTEMPS/DIV. ROBERT HALF,Professional / Technical,"$1,302 ",4/28/2015
ACCOUNTEMPS/DIV. ROBERT HALF,Professional / Technical,"$9,209.96 ",5/12/2015
ACCOUNTEMPS/DIV. ROBERT HALF,Professional / Technical,"$6,275.92 ",5/13/2015
ACCOUNTEMPS/DIV. ROBERT HALF,Professional / Technical,"$6,080.50 ",5/19/2015
ACCOUNTEMPS/DIV. ROBERT HALF,Professional / Technical,"$7,702.40 ",5/29/2015
ACCOUNTEMPS/DIV. ROBERT HALF,Professional / Technical,"$3,480 ",6/2/2015
ACCOUNTEMPS/DIV. ROBERT HALF,Professional / Technical,"$2,125.12 ",6/3/2015
ACCOUNTEMPS/DIV. ROBERT HALF,Professional / Technical,"$3,040.26 ",6/10/2015
ACCOUNTEMPS/DIV. ROBERT HALF,Professional / Technical,"$6,203.84 ",6/16/2015
ACCOUNTEMPS/DIV. ROBERT HALF,Professional / Technical,"$3,880.46 ",6/22/2015
ACCOUNTEMPS/DIV. ROBERT HALF,Professional / Technical,"$3,567.20 ",6/24/2015
ACCOUNTEMPS/DIV. ROBERT HALF,Professional / Technical,"$1,032.64 ",6/29/2015
ACCOUNTEMPS/DIV. ROBERT HALF,Professional / Technical,"$4,957.76 ",6/30/2015
ACCOUNTEMPS/DIV. ROBERT HALF,Professional / Technical,"$6,238.25 ",7/7/2015
ACCOUNTEMPS/DIV. ROBERT HALF,Professional / Technical,"$1,164 ",7/13/2015
ACCOUNTEMPS/DIV. ROBERT HALF,Professional / Technical,"$3,700.72 ",7/14/2015
ACCOUNTEMPS/DIV. ROBERT HALF,Professional / Technical,"$2,605.92 ",7/15/2015
ACCOUNTEMPS/DIV. ROBERT HALF,Professional / Technical,"$5,829.17 ",7/21/2015
ACCOUNTEMPS/DIV. ROBERT HALF,Professional / Technical,"$11,421.81 ",8/13/2015
ACCOUNTEMPS/DIV. ROBERT HALF,Professional / Technical,$931.20 ,9/1/2015
ACCOUNTEMPS/DIV. ROBERT HALF,Professional / Technical,"$89,495.46 ",11/25/2015
ACCOUNTEMPS/DIV. ROBERT HALF,Professional / Technical,"$10,174.91 ",12/3/2015
ACCOUNTEMPS/DIV. ROBERT HALF,Professional / Technical,"$5,073.25 ",12/8/2015
ACCOUNTEMPS/DIV. ROBERT HALF,Professional / Technical,"$1,388.24 ",12/16/2015
ACCOUNTEMPS/DIV. ROBERT HALF,Professional / Technical,"$8,673.54 ",12/24/2015
ACCOUNTEMPS/DIV. ROBERT HALF,Professional / Technical,"$1,130.74 ",12/28/2015
ACCOUNTEMPS/DIV. ROBERT HALF,Professional / Technical,"$3,151.68 ",12/29/2015
"ACTION K-9 SECURITY, INC.",Security Rail,"$115,438.57 ",2/2/2015
ADIANEZ ALBELO M.D.,I&D Claims (Damage Reserve),$250 ,5/8/2015
ADORAMA,Administrative Support,"$2,835.40 ",1/27/2015
ADORAMA,Administrative Support,$589.68 ,10/2/2015
"ADP, INC.",Recruiting / Hiring,"$6,400 ",10/15/2015
ADR SYSYEMS,I&D Claims (Damage Reserve),"$3,702 ",8/21/2015
ADRIAN McGEE,I&D Claims (Damage Reserve),$75 ,12/24/2015
ADULT & PEDIATRIC ORTHOPEDICS,I&D Claims (Damage Reserve),$750 ,1/12/2015
ADVANCED MACHINE & ENGINEERING CO.,Steel Fabrication,"$6,384.07 ",10/6/2015
ADVANCED PAIN MANAGEMENT SC,I&D Claims (Damage Reserve),"$4,000 ",5/12/2015
ADVANCED SPINE AND PAIN SPECIALISTS,I&D Claims (Damage Reserve),$750 ,2/13/2015
ADVANCED SPINE AND PAIN SPECIALISTS,I&D Claims (Damage Reserve),$750 ,2/13/2015
ADVANCED SPINE AND PAIN SPECIALISTS,I&D Claims (Damage Reserve),$750 ,10/9/2015
ADVISA,Administrative Support,"$1,500 ",6/10/2015
ADVISA,Professional / Technical,"$2,350 ",10/12/2015
ADVISA,Professional / Technical,"$11,858 ",11/24/2015
ADVOCATE MEDICAL GROUP.,I&D Claims (Damage Reserve),$600 ,6/24/2015
AHMED RAZIUDDIN,I&D Claims (Damage Reserve),$500 ,3/24/2015
AHMER FAROOQ DO,I&D Claims (Damage Reserve),$750 ,10/19/2015
AICPA,Cash Management,$245 ,7/13/2015
AICPA,Administrative Support,$245 ,7/20/2015
AICPA,Dues & Memberships,$245 ,9/25/2015
AIRCRAFT & COMMERCIAL ENTERPRISES,Equipment Purchases,$496 ,2/13/2015
"AIRWAYS SYSTEMS, INC.",Contract Construction,"$86,584 ",12/16/2015
AISC(AMERICAN INST OF STEEL CONS,Engineering,$200 ,4/3/2015
ALBANY STEEL & BRASS CORP.,Maintenance of Track & Roadway,$671.56 ,1/22/2015
ALBANY STEEL & BRASS CORP.,Equipment Purchases,$292.50 ,6/12/2015
ALBANY STEEL & BRASS CORP.,Maintenance of Track & Roadway,$548.40 ,8/28/2015
ALBANY STEEL & BRASS CORP.,Maintenance of Track & Roadway-Electrical,$130.74 ,10/20/2015
"ALDON COMPANY, INC.",Maintenance of Track & Roadway,"$2,280 ",4/22/2015
"ALDRIDGE ELECTRIC, INC.",Contract Construction,"$982,763.05 ",2/12/2015
"ALDRIDGE ELECTRIC, INC.",Contract Construction,"$1,462,447.10 ",3/19/2015
"ALDRIDGE ELECTRIC, INC.",Contract Construction,"$1,454,625.70 ",5/13/2015
"ALDRIDGE ELECTRIC, INC.",Equipment Purchases,"$6,943,311.60 ",5/13/2015
"ALDRIDGE ELECTRIC, INC.",Contract Construction,"$2,201,862.50 ",6/19/2015
"ALDRIDGE ELECTRIC, INC.",Contract Construction,"$2,376,197 ",7/29/2015
"ALDRIDGE ELECTRIC, INC.",Contract Construction,"$950,671 ",8/20/2015
"ALDRIDGE ELECTRIC, INC.",Contract Construction,"$7,532,074.90 ",8/25/2015
"ALDRIDGE ELECTRIC, INC.",Contract Construction,"$2,471,597.75 ",10/14/2015
"ALDRIDGE ELECTRIC, INC.",Equipment Purchases,"$2,368,900 ",11/17/2015
"ALDRIDGE ELECTRIC, INC.",Contract Construction,"$93,372.65 ",11/23/2015
ALEX KESSLER,Administrative Support,$90 ,12/21/2015
ALEX ORTHOPEDICS,I&D Claims (Damage Reserve),$750 ,10/21/2015
ALEX ORTHOPEDICS,I&D Claims (Damage Reserve),$750 ,11/16/2015
ALEXANDER J GHANAYEM,I&D Claims (Damage Reserve),"$2,000 ",1/13/2015
ALEXANDER JOHNSON,Reimb for lost tools/badges,$30 ,6/10/2015
ALEXANDER LOVE,I&D Claims (Damage Reserve),$75 ,9/30/2015
ALEXANDRA ROTH,Administrative Support,$276.45 ,3/24/2015
ALFRED BENESCH & COMPANY,Consulting Services,"$14,843.66 ",10/16/2015
ALFRED BENESCH & COMPANY,Consulting Services,"$18,129.52 ",10/23/2015
ALFRED BENESCH & COMPANY,Yellow Line Incident 18-MAY-2015,"$141,601 ",10/30/2015
ALFRED BENESCH & COMPANY,Consulting Services,"$27,366.80 ",12/9/2015
ALFRED BENESCH & COMPANY,Yellow Line Incident 18-MAY-2015,"$65,179.69 ",12/16/2015
ALFRED BENESCH & COMPANY,Yellow Line Incident 18-MAY-2015,"$34,112.24 ",12/24/2015
ALHAJI IBRAHIM,Legal Defense (Non-Damage Reserve),"$75,000 ",9/15/2015
ALLIANCE CLINICAL ASSOCIATES,I&D Claims (Damage Reserve),"$1,000 ",9/21/2015
ALLIANCE CLINICAL ASSOCIATES,I&D Claims (Damage Reserve),$100 ,10/29/2015
ALLIANCE CLINICAL ASSOCIATES S.C,I&D Claims (Damage Reserve),"$1,200 ",6/24/2015
ALLIANCE CLINICAL ASSOCIATES S.C,I&D Claims (Damage Reserve),$400 ,7/30/2015
ALLIANCE CLINICAL ASSOCIATES S.C,I&D Claims (Damage Reserve),$500 ,9/18/2015
"ALLIANCE PRINTERS & PUBLISHERS, INC. d/b/a POLISH DAILY NEWS",Publications & Subscriptions,$168 ,4/17/2015
"ALLIANCE PRINTERS & PUBLISHERS, INC. d/b/a POLISH DAILY NEWS",Administrative Support,$80 ,11/27/2015
"ALLIED ELECTRONICS, INC.",Maintenance of Track & Roadway-Electrical,$79.74 ,1/7/2015
"ALLIED ELECTRONICS, INC.",Maintenance of Track & Roadway-Electrical,$84 ,4/27/2015
"ALLIED ELECTRONICS, INC.",Maintenance of Track & Roadway-Electrical,$435 ,4/30/2015
"ALLIED ELECTRONICS, INC.",Maintenance of Track & Roadway-Electrical,$176.50 ,6/17/2015
"ALLIED ELECTRONICS, INC.",Equipment Purchases,"$10,195 ",8/26/2015
ALLSTATE SAWS & MACHINING LLC,Steel Fabrication,$988 ,5/26/2015
ALLSTATE SAWS & MACHINING LLC,Steel Fabrication,$937 ,10/13/2015
"ALOHA DOCUMENT SERVICES, INC.",Administrative Support,$26.15 ,4/6/2015
"ALOHA DOCUMENT SERVICES, INC.",Administrative Support,$117.95 ,11/6/2015
"ALPINA MANUFACTURING, LLC",Administrative Support,"$7,167.60 ",9/28/2015
ALTERNATIVE WIRELESS.COM INC,Engineering,$594.44 ,3/26/2015
ALVIN MOTEN,Reimb for lost tools/badges,$20 ,6/4/2015
ALYCIA HALL,I&D Claims (Damage Reserve),$75 ,1/21/2015
AMALGAMATED BANK OF CHICAGO,Cash Management,$302.14 ,2/4/2015
AMALGAMATED BANK OF CHICAGO,Cash Management,$548.71 ,2/17/2015
AMALGAMATED BANK OF CHICAGO,Cash Management,$595.97 ,3/13/2015
AMALGAMATED BANK OF CHICAGO,Cash Management,$573.57 ,4/22/2015
AMALGAMATED BANK OF CHICAGO,Cash Management,"$5,617.67 ",5/21/2015
AMALGAMATED BANK OF CHICAGO,Cash Management,"$6,236.73 ",6/5/2015
AMALGAMATED BANK OF CHICAGO,Cash Management,$409.60 ,6/24/2015
AMALGAMATED BANK OF CHICAGO,Cash Management,$353.95 ,7/22/2015
AMALGAMATED BANK OF CHICAGO,Cash Management,$337.99 ,8/12/2015
AMALGAMATED BANK OF CHICAGO,Cash Management,"$10,656.17 ",9/1/2015
AMALGAMATED BANK OF CHICAGO,Cash Management,$386.33 ,9/14/2015
AMALGAMATED BANK OF CHICAGO,Cash Management,$387.13 ,10/21/2015
AMALGAMATED BANK OF CHICAGO,Cash Management,"$11,662.63 ",12/21/2015
AMALGAMATED BANK OF CHICAGO.,Cash Management,"$10,074.85 ",3/16/2015
AMALGAMATED BANK OF CHICAGO.,Cash Management,"$10,000 ",4/22/2015
AMALGAMATED BANK OF CHICAGO.,Cash Management,"$10,000 ",6/5/2015
AMALGAMATED BANK OF CHICAGO.,Cash Management,"$2,500 ",11/23/2015
AMALGAMATED BANK OF CHICAGO.,Cash Management,"$20,833.33 ",12/21/2015
"AMALGAMATED TRANSIT UNION, 308",Legal Defense (Non-Damage Reserve),"$15,000 ",1/5/2015
"AMAZON WEB SERVICES, INC.",Professional / Technical,"$1,124.55 ",5/1/2015
"AMAZON WEB SERVICES, INC.",Professional / Technical,"$1,248.93 ",6/15/2015
"AMAZON WEB SERVICES, INC.",Professional / Technical,"$1,338.60 ",7/1/2015
"AMAZON WEB SERVICES, INC.",Professional / Technical,"$1,322.73 ",7/30/2015
"AMAZON WEB SERVICES, INC.",Professional / Technical,$43.89 ,8/4/2015
"AMAZON WEB SERVICES, INC.",Professional / Technical,"$1,410.48 ",12/15/2015
AMELIA FULLMER R.N,I&D Claims (Damage Reserve),$100 ,11/2/2015
"AMERESCO, INC.",Professional / Technical,"$75,725 ",5/12/2015
"AMERESCO, INC.",Professional / Technical,"$15,145 ",6/1/2015
"AMERESCO, INC.",Professional / Technical,"$15,145 ",6/30/2015
"AMERESCO, INC.",Professional / Technical,"$15,145 ",7/30/2015
"AMERESCO, INC.",Professional / Technical,"$15,145 ",9/1/2015
"AMERESCO, INC.",Professional / Technical,"$15,145 ",10/1/2015
"AMERESCO, INC.",Professional / Technical,"$15,145 ",10/29/2015
"AMERESCO, INC.",Professional / Technical,"$15,145 ",12/7/2015
"AMERICAN BUILDING SERVICES, LLC",Maintenance of Buildings,"$26,541.52 ",2/17/2015
"AMERICAN BUILDING SERVICES, LLC",Maintenance of Buildings,"$1,499 ",4/6/2015
"AMERICAN BUILDING SERVICES, LLC",Maintenance of Buildings,"$9,554.85 ",4/22/2015
"AMERICAN BUILDING SERVICES, LLC",Maintenance of Buildings,"$35,457.47 ",4/29/2015
"AMERICAN BUILDING SERVICES, LLC",Maintenance of Buildings,"$22,070.80 ",5/7/2015
"AMERICAN BUILDING SERVICES, LLC",Maintenance of Buildings,$317.59 ,5/14/2015
"AMERICAN BUILDING SERVICES, LLC",Maintenance of Buildings,"$3,229.47 ",6/3/2015
"AMERICAN BUILDING SERVICES, LLC",Maintenance of Buildings,$387.50 ,7/9/2015
"AMERICAN BUILDING SERVICES, LLC",Maintenance of Buildings,"$16,150 ",7/27/2015
"AMERICAN BUILDING SERVICES, LLC",Maintenance of Buildings,"$4,907.70 ",7/28/2015
"AMERICAN BUILDING SERVICES, LLC",Maintenance of Buildings,"$10,833.73 ",9/4/2015
"AMERICAN BUILDING SERVICES, LLC",Maintenance of Buildings,$251.75 ,9/8/2015
"AMERICAN BUILDING SERVICES, LLC (M-D BUILDING MATERIALS)",Maintenance of Buildings,$299.04 ,10/1/2015
"AMERICAN BUILDING SERVICES, LLC (M-D BUILDING MATERIALS)",Maintenance of Buildings,"$3,196.80 ",10/27/2015
"AMERICAN BUILDING SERVICES, LLC (M-D BUILDING MATERIALS)",Maintenance of Buildings,"$1,256.30 ",11/17/2015
"AMERICAN BUILDING SERVICES, LLC (M-D BUILDING MATERIALS)",Maintenance of Buildings,"$1,056.23 ",12/22/2015
AMERICAN CENTER FOR SPINE &,I&D Claims (Damage Reserve),$800 ,12/24/2015
AMERICAN CONCRETE INSTITUTE,Engineering,$230 ,7/16/2015
AMERICAN CONCRETE INSTITUTE,Engineering,$458 ,7/16/2015
AMERICAN INSURANCE SERVICES GROUP,I&D Claims (Damage Reserve),"$1,644.95 ",1/28/2015
AMERICAN INSURANCE SERVICES GROUP,I&D Claims (Damage Reserve),$653.35 ,3/6/2015
AMERICAN INSURANCE SERVICES GROUP,I&D Claims (Damage Reserve),$912.90 ,6/10/2015
AMERICAN INSURANCE SERVICES GROUP,I&D Claims (Damage Reserve),$823.40 ,7/23/2015
AMERICAN INSURANCE SERVICES GROUP,I&D Claims (Damage Reserve),$223.75 ,8/11/2015
AMERICAN INSURANCE SERVICES GROUP,I&D Claims (Damage Reserve),$196.90 ,9/18/2015
AMERICAN INSURANCE SERVICES GROUP,I&D Claims (Damage Reserve),$519.10 ,10/26/2015
AMERICAN INSURANCE SERVICES GROUP,Administrative Support,$581.75 ,11/4/2015
AMERICAN INSURANCE SERVICES GROUP,I&D Claims (Damage Reserve),$572.80 ,12/17/2015
AMERICAN INSURANCE SERVICES GROUP,I&D Claims (Damage Reserve),$358 ,12/31/2015
AMERICAN MEDICAL ASSOCIATION,Administrative Support,$92.90 ,12/21/2015
AMERICAN PETROLEUM INSTITUTE,Training - Instructors,$300 ,2/3/2015
AMERICAN PETROLEUM INSTITUTE,Professional / Technical,$150 ,2/26/2015
AMERICAN PETROLEUM INSTITUTE,"Training- Retraining,Refresher,Training for Change",$300 ,2/26/2015
AMERICAN PUBLIC TRANSPORTATION ASSOCIATION,Recruiting / Hiring,$589.50 ,1/22/2015
AMERICAN PUBLIC TRANSPORTATION ASSOCIATION,Administrative Support,"$4,340 ",2/2/2015
AMERICAN PUBLIC TRANSPORTATION ASSOCIATION,Administrative Support,$625 ,2/25/2015
AMERICAN PUBLIC TRANSPORTATION ASSOCIATION,2009 APTA Rodeo & Conference,$575 ,3/26/2015
AMERICAN PUBLIC TRANSPORTATION ASSOCIATION,Administrative Support,"$4,125 ",4/13/2015
AMERICAN PUBLIC TRANSPORTATION ASSOCIATION,Administrative Support,$775 ,4/13/2015
AMERICAN PUBLIC TRANSPORTATION ASSOCIATION,Administrative Support,"$11,615.85 ",4/14/2015
AMERICAN PUBLIC TRANSPORTATION ASSOCIATION,Administrative Support,$255 ,5/6/2015
AMERICAN PUBLIC TRANSPORTATION ASSOCIATION,Management,$475 ,5/28/2015
AMERICAN PUBLIC TRANSPORTATION ASSOCIATION,Marketing,$95 ,6/10/2015
AMERICAN PUBLIC TRANSPORTATION ASSOCIATION,Travel & Seminar,$525 ,7/8/2015
AMERICAN PUBLIC TRANSPORTATION ASSOCIATION,Administrative Support,$900 ,9/28/2015
AMERICAN PUBLIC TRANSPORTATION ASSOCIATION,Administrative Support,$770 ,12/23/2015
AMERICAN RED CROSS OF GREATER CHICAGO,Training - Students,"$1,920 ",3/13/2015
AMERICAN RED CROSS OF GREATER CHICAGO,Training - Students,"$4,035 ",6/9/2015
AMERICAN RED CROSS OF GREATER CHICAGO,Training - Students,$600 ,9/28/2015
AMERICAN RED CROSS OF GREATER CHICAGO,Training - Students,"$1,200 ",10/8/2015
AMERICAN RED CROSS OF GREATER CHICAGO,Training - Students,"$1,780 ",11/11/2015
AMERICAN SOCIETY FOR QUALITY,Engineering,$159 ,5/8/2015
AMERICAN SOCIETY FOR QUALITY,Management,$146 ,5/8/2015
AMERICAN SOCIETY FOR QUALITY,Applications Support,$146 ,5/20/2015
AMERICAN SOCIETY MECHANICAL ENG,Professional / Technical,$149 ,9/2/2015
AMERICAN TOWERS LLC,"Facilities Operating Expenses (Rent,Utilities,etc)","$3,875.85 ",1/30/2015
AMERICAN TOWERS LLC,"Facilities Operating Expenses (Rent,Utilities,etc)","$3,875.85 ",3/2/2015
AMERICAN TOWERS LLC,"Facilities Operating Expenses (Rent,Utilities,etc)","$3,875.85 ",3/30/2015
AMERICAN TOWERS LLC,"Facilities Operating Expenses (Rent,Utilities,etc)","$3,875.85 ",4/28/2015
AMERICAN TOWERS LLC,"Facilities Operating Expenses (Rent,Utilities,etc)","$3,875.85 ",5/28/2015
AMERICAN TOWERS LLC,"Facilities Operating Expenses (Rent,Utilities,etc)","$3,875.85 ",6/29/2015
AMERICAN TOWERS LLC,"Facilities Operating Expenses (Rent,Utilities,etc)","$3,875.85 ",7/29/2015
AMERICAN TOWERS LLC,"Facilities Operating Expenses (Rent,Utilities,etc)","$3,875.85 ",8/26/2015
AMERICAN TOWERS LLC,"Facilities Operating Expenses (Rent,Utilities,etc)","$3,875.85 ",10/2/2015
AMERICAN TOWERS LLC,"Facilities Operating Expenses (Rent,Utilities,etc)","$3,875.85 ",10/30/2015
AMERICAN TOWERS LLC,"Facilities Operating Expenses (Rent,Utilities,etc)","$3,875.85 ",12/14/2015
AMERICAN TOWERS LLC,"Facilities Operating Expenses (Rent,Utilities,etc)","$3,992.13 ",12/31/2015
"AMERICAN TRANSIT WORKS, INC.",Collision/Damage Repairs,"$75,532 ",4/2/2015
AMERIMEX SALES & SERVICE,Maintenance of Equipment,"$1,562.87 ",1/2/2015
AMERIMEX SALES & SERVICE,Maintenance of Equipment,"$2,352.36 ",1/8/2015
AMERIMEX SALES & SERVICE,Maintenance of Equipment,"$1,694.48 ",1/22/2015
AMERIMEX SALES & SERVICE,Maintenance of Equipment,$922.24 ,3/13/2015
AMERIMEX SALES & SERVICE,Maintenance of Equipment,"$3,915.91 ",3/26/2015
AMERIMEX SALES & SERVICE,Maintenance of Equipment,"$2,936.74 ",4/6/2015
AMERIMEX SALES & SERVICE,Maintenance of Equipment,$522.12 ,5/20/2015
AMERIMEX SALES & SERVICE,Maintenance of Equipment,"$2,807.13 ",12/1/2015
AMERIMEX SALES & SERVICE,Maintenance of Equipment,"$1,467.51 ",12/28/2015
"AMI RISK CONSULTANTS, INC.",Accounting,"$7,600 ",3/31/2015
"AMICUS COURT REPORTERS, INC.",I&D Claims (Damage Reserve),$413.78 ,4/1/2015
AMIT MEHTA MD,I&D Claims (Damage Reserve),$750 ,1/2/2015
AMS CASTING REPAIR,Maintenance of Equipment,$935 ,9/15/2015
AMY KISNER,Administrative Support,$125 ,4/20/2015
AMY KISNER,Administrative Support,$125 ,8/6/2015
AMY KISNER,Administrative Support,$125 ,10/23/2015
AN EXECUTIVE DECISION,Maintenance of Track & Roadway-Electrical,$174.43 ,1/22/2015
AN EXECUTIVE DECISION,Recruiting / Hiring,$467.52 ,2/20/2015
AN EXECUTIVE DECISION,Recruiting / Hiring,"$1,778.47 ",5/12/2015
AN EXECUTIVE DECISION,Training - Students,"$1,163.54 ",5/12/2015
AN EXECUTIVE DECISION,Training - Students,$256.72 ,7/27/2015
"ANCHOR MECHANICAL, INC.",Maintenance of Rail Stations,"$3,358 ",1/29/2015
"ANCHOR MECHANICAL, INC.",Maintenance of Buildings,"$6,750 ",6/3/2015
"ANCHOR MECHANICAL, INC.",Maintenance of Buildings,"$38,376.75 ",6/30/2015
"ANCHOR MECHANICAL, INC.",Computer Operations,"$1,053.45 ",7/2/2015
"ANCHOR MECHANICAL, INC.",Computer Operations,$581.06 ,7/9/2015
"ANCHOR MECHANICAL, INC.",Computer Operations,"$2,604.40 ",8/6/2015
"ANCHOR MECHANICAL, INC.",Computer Operations,"$1,269.76 ",11/10/2015
"ANCHOR MECHANICAL, INC.",Maintenance of Buildings,"$6,750 ",11/17/2015
"ANCHOR STAFFING, INC.",Administrative Support,"$1,806.80 ",1/8/2015
"ANCHOR STAFFING, INC.",Professional / Technical,$501.81 ,1/8/2015
"ANCHOR STAFFING, INC.",Administrative Support,"$1,987.78 ",1/15/2015
"ANCHOR STAFFING, INC.",Professional / Technical,$508.29 ,1/15/2015
"ANCHOR STAFFING, INC.",Administrative Support,"$1,371.63 ",1/22/2015
"ANCHOR STAFFING, INC.",Professional / Technical,$401.45 ,1/22/2015
"ANCHOR STAFFING, INC.",Administrative Support,"$7,721.28 ",1/26/2015
"ANCHOR STAFFING, INC.",Administrative Support,"$1,654.56 ",1/28/2015
"ANCHOR STAFFING, INC.",Professional / Technical,$427.35 ,1/28/2015
"ANCHOR STAFFING, INC.",Administrative Support,$827.28 ,2/5/2015
"ANCHOR STAFFING, INC.",Administrative Support,"$1,100.17 ",2/6/2015
"ANCHOR STAFFING, INC.",Administrative Support,"$2,114.16 ",2/12/2015
"ANCHOR STAFFING, INC.",Professional / Technical,$903.27 ,2/12/2015
"ANCHOR STAFFING, INC.",Administrative Support,"$2,573.76 ",2/13/2015
"ANCHOR STAFFING, INC.",Administrative Support,"$2,206.08 ",2/19/2015
"ANCHOR STAFFING, INC.",Professional / Technical,$297.85 ,2/19/2015
"ANCHOR STAFFING, INC.",Administrative Support,"$1,838.40 ",2/27/2015
"ANCHOR STAFFING, INC.",Professional / Technical,$450.01 ,3/2/2015
"ANCHOR STAFFING, INC.",Administrative Support,$827.28 ,3/6/2015
"ANCHOR STAFFING, INC.",Administrative Support,$833.03 ,3/10/2015
"ANCHOR STAFFING, INC.",Administrative Support,"$1,654.56 ",3/12/2015
"ANCHOR STAFFING, INC.",Administrative Support,"$1,562.64 ",3/19/2015
"ANCHOR STAFFING, INC.",Administrative Support,"$1,838.40 ",3/26/2015
"ANCHOR STAFFING, INC.",Administrative Support,"$1,746.48 ",4/2/2015
"ANCHOR STAFFING, INC.",Professional / Technical,$536.13 ,4/2/2015
"ANCHOR STAFFING, INC.",Professional / Technical,"$1,838.26 ",4/3/2015
"ANCHOR STAFFING, INC.",Administrative Support,"$1,746.48 ",4/9/2015
"ANCHOR STAFFING, INC.",Consulting Services,"$1,880.15 ",4/10/2015
"ANCHOR STAFFING, INC.",Professional / Technical,"$1,225.05 ",4/15/2015
"ANCHOR STAFFING, INC.",Administrative Support,$919.20 ,4/16/2015
"ANCHOR STAFFING, INC.",Professional / Technical,"$1,157.39 ",4/16/2015
"ANCHOR STAFFING, INC.",Administrative Support,"$1,378.80 ",4/23/2015
"ANCHOR STAFFING, INC.",Professional / Technical,"$1,289.48 ",4/23/2015
"ANCHOR STAFFING, INC.",Administrative Support,$919.20 ,4/30/2015
"ANCHOR STAFFING, INC.",Professional / Technical,"$1,276.21 ",4/30/2015
"ANCHOR STAFFING, INC.",Administrative Support,$827.28 ,5/7/2015
"ANCHOR STAFFING, INC.",Training - Students,$909.74 ,5/7/2015
"ANCHOR STAFFING, INC.",Administrative Support,$459.60 ,5/11/2015
"ANCHOR STAFFING, INC.",Professional / Technical,"$1,019.93 ",5/13/2015
"ANCHOR STAFFING, INC.",Administrative Support,$459.60 ,5/14/2015
"ANCHOR STAFFING, INC.",Professional / Technical,$594.41 ,5/14/2015
"ANCHOR STAFFING, INC.",Administrative Support,$827.28 ,5/21/2015
"ANCHOR STAFFING, INC.",Professional / Technical,"$2,056.38 ",5/21/2015
"ANCHOR STAFFING, INC.",Administrative Support,$867.50 ,5/28/2015
"ANCHOR STAFFING, INC.",Professional / Technical,"$1,570.64 ",5/29/2015
"ANCHOR STAFFING, INC.",Administrative Support,$459.60 ,6/4/2015
"ANCHOR STAFFING, INC.",Professional / Technical,"$1,545.16 ",6/4/2015
"ANCHOR STAFFING, INC.",Administrative Support,$459.60 ,6/5/2015
"ANCHOR STAFFING, INC.",Administrative Support,$919.20 ,6/11/2015
"ANCHOR STAFFING, INC.",Professional / Technical,"$1,434.19 ",6/11/2015
"ANCHOR STAFFING, INC.",Administrative Support,$936.44 ,6/18/2015
"ANCHOR STAFFING, INC.",Professional / Technical,"$2,183.07 ",6/18/2015
"ANCHOR STAFFING, INC.",Administrative Support,$827.28 ,6/25/2015
"ANCHOR STAFFING, INC.",Professional / Technical,"$2,116.53 ",6/25/2015
"ANCHOR STAFFING, INC.",Administrative Support,$723.87 ,7/1/2015
"ANCHOR STAFFING, INC.",Professional / Technical,"$1,805.15 ",7/1/2015
"ANCHOR STAFFING, INC.",Administrative Support,$919.20 ,7/9/2015
"ANCHOR STAFFING, INC.",Professional / Technical,"$2,282.99 ",7/9/2015
"ANCHOR STAFFING, INC.",Administrative Support,$459.60 ,7/10/2015
"ANCHOR STAFFING, INC.",Administrative Support,"$1,192.09 ",7/16/2015
"ANCHOR STAFFING, INC.",Professional / Technical,"$2,267.59 ",7/16/2015
"ANCHOR STAFFING, INC.",Administrative Support,"$1,194.96 ",7/23/2015
"ANCHOR STAFFING, INC.",Professional / Technical,"$2,615.97 ",7/23/2015
"ANCHOR STAFFING, INC.",Administrative Support,$919.20 ,7/31/2015
"ANCHOR STAFFING, INC.",Professional / Technical,"$2,608.25 ",8/5/2015
"ANCHOR STAFFING, INC.",Administrative Support,$776.32 ,8/6/2015
"ANCHOR STAFFING, INC.",Professional / Technical,"$2,379.94 ",8/6/2015
"ANCHOR STAFFING, INC.",Administrative Support,$916.25 ,8/13/2015
"ANCHOR STAFFING, INC.",Marketing,$824.60 ,8/13/2015
"ANCHOR STAFFING, INC.",Professional / Technical,"$2,811.65 ",8/13/2015
"ANCHOR STAFFING, INC.",Administrative Support,"$1,018.41 ",8/20/2015
"ANCHOR STAFFING, INC.",Professional / Technical,"$2,701.15 ",8/20/2015
"ANCHOR STAFFING, INC.",Professional / Technical,"$3,069.70 ",8/27/2015
"ANCHOR STAFFING, INC.",Professional / Technical,"$3,072.39 ",9/3/2015
"ANCHOR STAFFING, INC.",Administrative Support,"$1,490.90 ",9/9/2015
"ANCHOR STAFFING, INC.",Administrative Support,$405.45 ,9/10/2015
"ANCHOR STAFFING, INC.",Professional / Technical,"$2,305.52 ",9/10/2015
"ANCHOR STAFFING, INC.",Professional / Technical,"$2,126.30 ",9/24/2015
"ANCHOR STAFFING, INC.",Professional / Technical,"$1,310.69 ",10/1/2015
"ANCHOR STAFFING, INC.",Professional / Technical,"$1,549.32 ",10/2/2015
"ANCHOR STAFFING, INC.",Professional / Technical,"$1,725.41 ",10/8/2015
"ANCHOR STAFFING, INC.",Professional / Technical,"$1,466.38 ",10/15/2015
"ANCHOR STAFFING, INC.",Administrative Support,"$1,526.05 ",10/19/2015
"ANCHOR STAFFING, INC.",Professional / Technical,"$1,790.21 ",10/22/2015
"ANCHOR STAFFING, INC.",Professional / Technical,"$1,796.71 ",10/29/2015
"ANCHOR STAFFING, INC.",Administrative Support,"$1,062.32 ",11/3/2015
"ANCHOR STAFFING, INC.",Administrative Support,"$1,040.76 ",11/5/2015
"ANCHOR STAFFING, INC.",Administrative Support,$510.80 ,11/19/2015
"ANCHOR STAFFING, INC.",Administrative Support,$510.80 ,11/25/2015
"ANCHOR STAFFING, INC.",Professional / Technical,"$12,181.55 ",12/3/2015
"ANCHOR STAFFING, INC.",Administrative Support,$510.80 ,12/10/2015
"ANCHOR STAFFING, INC.",Administrative Support,$408.64 ,12/17/2015
"ANCHOR STAFFING, INC.",Professional / Technical,"$9,111.52 ",12/24/2015
"ANCHOR STAFFING, INC.",Administrative Support,$204.32 ,12/30/2015
"ANCHOR STAFFING, INC.",Professional / Technical,"$1,422.45 ",12/30/2015
ANDERSON ELEVATOR CO.,Maintenance of Buildings,"$308,416.13 ",7/2/2015
ANDERSON ELEVATOR CO.,Equipment Purchases,"$222,700 ",11/23/2015
ANDERSON ELEVATOR CO.,Equipment Purchases,"$75,296.36 ",12/30/2015
ANDRE CELESTINE,Reimb for lost tools/badges,$20 ,7/13/2015
ANDREW BURNSIDE,Reimb for lost tools/badges,$30 ,2/13/2015
ANITA M. ROWE,Administrative Support,"$1,500 ",1/28/2015
"ANIXTER, INC.",Maintain/Repair Communications  Equip,$310.50 ,3/30/2015
"ANIXTER, INC.",Administrative Support,$983 ,4/21/2015
ANN S. KENIS,Administrative Support,$675 ,6/9/2015
ANN S. KENIS,Administrative Support,"$3,037.50 ",8/10/2015
ANN S. KENIS,Administrative Support,$675 ,9/17/2015
ANN S. KENIS,Administrative Support,"$1,350 ",10/9/2015
ANNA COBB,Administrative Support,$200 ,9/1/2015
ANNA COBB,Administrative Support,$200 ,12/2/2015
ANNA SCHILLER,I&D Claims (Damage Reserve),$25 ,7/20/2015
ANNETTE DAVIS,I&D Claims (Damage Reserve),$25 ,4/14/2015
ANRITSU COMPANY,Maintain/Repair Communications  Equip,$694.82 ,10/26/2015
"ANSALDO STS USA, INC.",Vehicle Rehab,"$282,981 ",10/9/2015
ANTHONY MILLER,I&D Claims (Damage Reserve),$75 ,8/18/2015
"ANTON FAKHOURI, M.D.",I&D Claims (Damage Reserve),$750 ,10/22/2015
ANTONIO GUTIERREZ,I&D Claims (Damage Reserve),$25 ,1/5/2015
APPLIED CUSTOM EQUIPMENT LLC,Contract Construction,"$174,000 ",10/7/2015
APPLIED CUSTOM EQUIPMENT LLC,Contract Construction,"$203,600 ",11/6/2015
APPRISS INC,I&D Claims (Damage Reserve),$13 ,2/25/2015
APRIL GRAHAM,I&D Claims (Damage Reserve),$25 ,10/15/2015
APTA HOUSING OFFICE,Administrative Support,"$12,586.75 ",2/2/2015
"ARAMARK UNIFORM SERVICES, INC.",Administrative Support,$381 ,9/30/2015
ARC IMAGING RESOURCES,Management,$522.29 ,3/17/2015
ARC IMAGING RESOURCES,Management,"$7,915.72 ",4/20/2015
ARC IMAGING RESOURCES,Management,"$8,149.88 ",6/10/2015
ARC IMAGING RESOURCES,Management,$219.40 ,7/9/2015
ARC IMAGING RESOURCES,Management,$252.62 ,8/11/2015
ARC IMAGING RESOURCES,Management,$345 ,8/14/2015
ARC IMAGING RESOURCES,Management,"$7,915.72 ",9/17/2015
ARC IMAGING RESOURCES,Management,$151.68 ,10/19/2015
ARC IMAGING RESOURCES,Management,$219.40 ,12/9/2015
"ARCADIS  U.S., INC.",Consulting Services,"$276,879.36 ",1/20/2015
"ARCADIS  U.S., INC.",Consulting Services,"$288,095.19 ",2/3/2015
"ARCADIS  U.S., INC.",Consulting Services,"$13,812.59 ",3/24/2015
"ARCADIS  U.S., INC.",Consulting Services,"$246,161.59 ",3/26/2015
"ARCADIS  U.S., INC.",Consulting Services,"$198,058.28 ",3/31/2015
"ARCADIS  U.S., INC.",Consulting Services,"$205,896.31 ",4/17/2015
"ARCADIS  U.S., INC.",Consulting Services,"$100,371.45 ",4/29/2015
"ARCADIS  U.S., INC.",Consulting Services,"$255,685.26 ",5/18/2015
"ARCADIS  U.S., INC.",Consulting Services,"$40,682.36 ",5/27/2015
"ARCADIS  U.S., INC.",Consulting Services,"$256,120.12 ",6/3/2015
"ARCADIS  U.S., INC.",Consulting Services,"$349,780.97 ",6/18/2015
"ARCADIS  U.S., INC.",Consulting Services,"$4,517.74 ",6/22/2015
"ARCADIS  U.S., INC.",Consulting Services,"$232,096.73 ",7/27/2015
"ARCADIS  U.S., INC.",Consulting Services,"$232,413.79 ",7/30/2015
"ARCADIS  U.S., INC.",Consulting Services,"$230,060.01 ",8/4/2015
"ARCADIS  U.S., INC.",Consulting Services,"$100,529.08 ",8/19/2015
"ARCADIS  U.S., INC.",Consulting Services,"$265,169.19 ",9/1/2015
"ARCADIS  U.S., INC.",Consulting Services,"$123,578.91 ",9/22/2015
"ARCADIS  U.S., INC.",Consulting Services,"$321,382.11 ",10/16/2015
"ARCADIS  U.S., INC.",Consulting Services,"$376,124.77 ",10/29/2015
"ARCADIS  U.S., INC.",Consulting Services,"$60,989.90 ",11/25/2015
"ARCADIS  U.S., INC.",Consulting Services,"$43,638.80 ",12/16/2015
"ARCADIS  U.S., INC.",Consulting Services,"$283,314.04 ",12/23/2015
"ARCADIS  U.S., INC.",Consulting Services,"$9,695.68 ",12/28/2015
ARCOM,Professional / Technical,"$1,592.58 ",9/14/2015
ARDC,Administrative Support,$242 ,12/7/2015
ARDC,Administrative Support,$382 ,12/16/2015
AREMA,Management,$166 ,3/24/2015
AREMA,Engineering,"$1,530 ",4/10/2015
AREMA,Engineering,$750 ,8/3/2015
AREMA,Engineering,$750 ,8/3/2015
AREMA,Engineering,$750 ,8/3/2015
AREMA,Management,$575 ,8/3/2015
ARGO PAPER & ENVELOPE CORP,Administrative Support,$343.92 ,4/21/2015
ARTOS ENGINEERING CO.,Misc. Expenditures,"$3,024.46 ",5/13/2015
ARTOS ENGINEERING CO.,Misc. Expenditures,"$1,550 ",5/28/2015
ASA INC,Maintenance of Buildings,$665 ,10/19/2015
ASHRAE LEARNING INSTITUTE,Professional / Technical,$202 ,7/23/2015
ASI SIGNAGE INNOVATIONS,Administrative Support,"$2,118 ",7/23/2015
"ASKREPLY, INC. D/B/A B2GNOW",Professional / Technical,"$102,680 ",11/18/2015
ASL COMMUNICATION SERVICES INC,Administrative Support,$125 ,8/10/2015
"ASSOCIATED INDUSTRIAL BRUSH CO, LTD",Maintenance of Equipment,"$46,677.54 ",5/6/2015
"ASSOCIATED INDUSTRIAL BRUSH CO, LTD",Maintenance of Equipment,"$13,003.92 ",12/30/2015
ASSOCIATION FOR FINANCIAL PROF.,Cash Management,$495 ,10/16/2015
ASSOCIATION OF CERTIFIED FRAUD,Administrative Support,$195 ,12/21/2015
ASTM INTERNATIONAL,Management,"$20,000 ",12/9/2015
AT&T,Maintain/Repair Communications  Equip,"$14,934.04 ",1/6/2015
AT&T,Equipment Purchases,"$9,182.72 ",1/7/2015
AT&T,Applications Support,"$12,686.50 ",1/9/2015
AT&T,Maintain/Repair Communications  Equip,"$2,018.59 ",1/20/2015
AT&T,Equipment Purchases,$85.52 ,1/30/2015
AT&T,Applications Support,"$62,820.55 ",3/13/2015
AT&T,Maintain/Repair Communications  Equip,"$559,569.87 ",3/13/2015
AT&T,Maintain/Repair Communications  Equip,"$40,341.02 ",3/13/2015
AT&T,Equipment Purchases,"$6,321.77 ",3/18/2015
AT&T,Equipment Purchases,$999.25 ,3/26/2015
AT&T,Maintain/Repair Communications  Equip,"$211,202.20 ",3/27/2015
AT&T,Equipment Purchases,"$58,100.22 ",4/10/2015
AT&T,Maintain/Repair Communications  Equip,"$8,933.99 ",4/24/2015
AT&T,Maintain/Repair Communications  Equip,"$5,375.29 ",4/24/2015
AT&T,Maintain/Repair Communications  Equip,$878.07 ,4/27/2015
AT&T,Maintain/Repair Communications  Equip,"$225,160.32 ",4/29/2015
AT&T,Equipment Purchases,"$11,760.69 ",5/1/2015
AT&T,Applications Support,"$18,800 ",5/7/2015
AT&T,Maintain/Repair Communications  Equip,"$9,400.26 ",5/7/2015
AT&T,Maintain/Repair Communications  Equip,"$1,498.60 ",5/11/2015
AT&T,Applications Support,"$29,800 ",5/15/2015
AT&T,Maintain/Repair Communications  Equip,"$4,968.36 ",5/15/2015
AT&T,Equipment Purchases,"$85,415.20 ",5/27/2015
AT&T,Maintain/Repair Communications  Equip,"$637,931.02 ",5/27/2015
AT&T,Equipment Purchases,"$498,697.64 ",6/4/2015
AT&T,Maintain/Repair Communications  Equip,"$1,402.92 ",6/8/2015
AT&T,Maintain/Repair Communications  Equip,"$205,996.39 ",6/8/2015
AT&T,Maintain/Repair Communications  Equip,"$92,943.36 ",6/10/2015
AT&T,Maintain/Repair Communications  Equip,$646.55 ,6/11/2015
AT&T,Maintain/Repair Communications  Equip,"$18,341.08 ",6/12/2015
AT&T,Equipment Purchases,"$435,362.96 ",6/30/2015
AT&T,Maintain/Repair Communications  Equip,$78.31 ,7/2/2015
AT&T,Maintain/Repair Communications  Equip,"$64,795.64 ",7/2/2015
AT&T,Maintain/Repair Communications  Equip,"$181,304.07 ",7/17/2015
AT&T,Maintain/Repair Communications  Equip,"$12,800.52 ",7/17/2015
AT&T,Maintain/Repair Communications  Equip,$78.31 ,7/20/2015
AT&T,Equipment Purchases,"$347,913.95 ",7/29/2015
AT&T,Equipment Purchases,"$1,600 ",7/31/2015
AT&T,Maintain/Repair Communications  Equip,"$64,795.58 ",7/31/2015
AT&T,Maintain/Repair Communications  Equip,$30.72 ,8/10/2015
AT&T,Maintain/Repair Communications  Equip,"$218,146.74 ",8/10/2015
AT&T,Computer Operations,"$2,077.35 ",8/11/2015
AT&T,Equipment Purchases,"$156,128.28 ",8/12/2015
AT&T,Equipment Purchases,"$35,773.50 ",8/19/2015
AT&T,Applications Support,"$109,840.08 ",9/3/2015
AT&T,Maintain/Repair Communications  Equip,$234.71 ,9/3/2015
AT&T,Computer Operations,"$7,287.85 ",9/8/2015
AT&T,Maintain/Repair Communications  Equip,"$76,307.22 ",9/8/2015
AT&T,Maintain/Repair Communications  Equip,$30.72 ,9/10/2015
AT&T,Equipment Purchases,"$70,076.24 ",9/11/2015
AT&T,Applications Support,"$83,090.25 ",9/22/2015
AT&T,Maintain/Repair Communications  Equip,"$61,413.95 ",9/22/2015
AT&T,Maintain/Repair Communications  Equip,"$205,180.38 ",10/13/2015
AT&T,Computer Operations,"$7,169.85 ",10/14/2015
AT&T,Maintain/Repair Communications  Equip,"$9,534.25 ",10/22/2015
AT&T,Maintain/Repair Communications  Equip,$30.72 ,10/29/2015
AT&T,Maintain/Repair Communications  Equip,$30.72 ,11/24/2015
AT&T,Maintain/Repair Communications  Equip,"$207,006.91 ",11/24/2015
AT&T,Computer Operations,"$17,389.05 ",11/27/2015
AT&T,Equipment Purchases,"$153,376.87 ",12/2/2015
AT&T,Computer Operations,"$1,662.40 ",12/22/2015
"ATKINSON-BAKER, INC.",I&D Claims (Damage Reserve),$193 ,4/1/2015
"ATLAS COPCO COMPRESSORS, LLC",Repair Non-Revenue Equipment,"$3,243.74 ",3/10/2015
"ATLAS FIRST ACCESS MATERIAL HANDLING, INC.",Equipment Purchases,"$9,461 ",5/22/2015
"ATLAS FIRST ACCESS MATERIAL HANDLING, INC.",Equipment Purchases,"$50,261 ",10/21/2015
"ATLAS SALES & RENTALS, INC.",Maintenance of Equipment,"$3,235.53 ",2/13/2015
ATU LOCAL 308,Legal Defense (Non-Damage Reserve),$195 ,8/12/2015
AUDREY HENDERSON,System Credits (Accounting dept use only),$25 ,5/21/2015
"AUTOMATIC FIRE CONTROLS, INC.",Maintenance of Equipment,$380 ,3/17/2015
"AUTOMATIC FIRE CONTROLS, INC.",Ind/Envir Safety & Fire Prevention  (Non-Safety  Areas),$442 ,3/31/2015
AUTONOMY,Applications Support,$114 ,1/20/2015
AUTONOMY,Applications Support,$114 ,1/28/2015
AUTONOMY,Applications Support,$234 ,5/7/2015
AUTONOMY,Applications Support,$933 ,10/13/2015
"AVIS RENT A CAR SYSTEM, INC.",Travel & Seminar,"$1,333.44 ",2/20/2015
"AVIS RENT A CAR SYSTEM, INC.",Travel & Seminar,"$1,350.99 ",3/13/2015
"AVIS RENT A CAR SYSTEM, INC.",Travel & Seminar,$384.74 ,3/20/2015
"AVIS RENT A CAR SYSTEM, INC.",Travel & Seminar,"$1,021.04 ",3/25/2015
"AVIS RENT A CAR SYSTEM, INC.",Travel & Seminar,$520.14 ,6/17/2015
"AVIS RENT A CAR SYSTEM, INC.",Travel & Seminar,$740.81 ,7/17/2015
"AVIS RENT A CAR SYSTEM, INC.",Travel & Seminar,$947.47 ,9/11/2015
"AVIS RENT A CAR SYSTEM, INC.",Travel & Seminar,$578.17 ,9/23/2015
"AVIS RENT A CAR SYSTEM, INC.",Travel & Seminar,"$1,004.86 ",10/16/2015
"AVIS RENT A CAR SYSTEM, INC.",Travel & Seminar,$451.71 ,10/30/2015
AVIS RENTAL CAR,Travel & Seminar,"$1,189.38 ",5/13/2015
AXIL L3C,Consulting Services,"$12,400 ",11/16/2015
AXIL L3C,Consulting Services,"$12,400 ",12/16/2015
AXION TECHNOLOGIES LTD.,Vehicle Rehab,"$424,700.92 ",5/6/2015
AXION TECHNOLOGIES LTD.,Vehicle Rehab,"$625,480 ",10/27/2015
AXION TECHNOLOGIES LTD.,Vehicle Rehab,"$5,444 ",11/23/2015
AXION TECHNOLOGIES LTD.,Vehicle Rehab,"$125,096 ",12/2/2015
AXION TECHNOLOGIES LTD.,Vehicle Rehab,"$125,096 ",12/23/2015
"B & H PHOTO VIDEO, INC.",Money Counting,$37.87 ,7/23/2015
"B & H PHOTO VIDEO, INC.",Maintain/Repair Communications  Equip,"$1,180 ",9/15/2015
BACHOR MOSAIC,Consulting Services,"$3,119.75 ",12/2/2015
BALMOND STUDIO,Consulting Services,"$5,508 ",12/18/2015
BALOUGH LAW OFFICES LLC,Administrative Support,"$1,500 ",1/22/2015
BALOUGH LAW OFFICES LLC,Administrative Support,"$1,284 ",5/12/2015
BALOUGH LAW OFFICES LLC,Administrative Support,"$1,500 ",10/22/2015
BALOUGH LAW OFFICES LLC,Administrative Support,"$1,824 ",12/14/2015
BANK OF AMERICA,Travel & Seminar,"$1,652.60 ",1/16/2015
BANK OF AMERICA,Publications & Graphics,$48.86 ,2/17/2015
BANK OF AMERICA,Training - Students,"$1,022.80 ",2/17/2015
BANK OF AMERICA,Management,$592.40 ,2/27/2015
BANK OF AMERICA,O'Hare train derailment 24-MAR-14,"$3,607.20 ",2/27/2015
BANK OF AMERICA,Travel & Seminar,"$14,986.40 ",2/27/2015
BANK OF AMERICA,Administrative Support,"$1,695.80 ",3/20/2015
BANK OF AMERICA,Administrative Support,$900 ,3/20/2015
BANK OF AMERICA,BUS/RAIL ROADEO,"$2,196 ",3/20/2015
BANK OF AMERICA,Management,"$2,305.76 ",3/20/2015
BANK OF AMERICA,Management,$141 ,3/20/2015
BANK OF AMERICA,Open Fare,$21 ,3/20/2015
BANK OF AMERICA,Professional / Technical,"$1,169.32 ",3/20/2015
BANK OF AMERICA,Professional / Technical,"$2,114.10 ",3/20/2015
BANK OF AMERICA,Program Management,$804.92 ,3/20/2015
BANK OF AMERICA,Training - Students,$466.94 ,3/20/2015
BANK OF AMERICA,"Training- Retraining,Refresher,Training for Change",$769.44 ,3/20/2015
BANK OF AMERICA,Travel & Seminar,"$7,122.20 ",3/20/2015
BANK OF AMERICA,Wells Street Bridge Work,$780.20 ,3/20/2015
BANK OF AMERICA,Administrative Support,"$2,366.58 ",4/17/2015
BANK OF AMERICA,Administrative Support,"$1,555.80 ",4/17/2015
BANK OF AMERICA,Applications Support,$594.20 ,4/17/2015
BANK OF AMERICA,Management,$227 ,4/17/2015
BANK OF AMERICA,Professional / Technical,$358.20 ,4/17/2015
BANK OF AMERICA,Scheduling,$288.08 ,4/17/2015
BANK OF AMERICA,Training - Students,$79 ,4/17/2015
BANK OF AMERICA,Travel & Seminar,"$12,880.20 ",4/17/2015
BANK OF AMERICA,2009 APTA Rodeo & Conference,$959.80 ,5/19/2015
BANK OF AMERICA,Administrative Support,$656.46 ,5/19/2015
BANK OF AMERICA,Administrative Support,"$5,025.14 ",5/19/2015
BANK OF AMERICA,Maintain/Repair Communications  Equip,$14.95 ,5/19/2015
BANK OF AMERICA,Management,"$1,320.34 ",5/19/2015
BANK OF AMERICA,O'Hare train derailment 24-MAR-14,"$1,719.64 ",5/19/2015
BANK OF AMERICA,Recruiting / Hiring,"$8,794.87 ",5/19/2015
BANK OF AMERICA,Travel & Seminar,"$4,109.20 ",5/19/2015
BANK OF AMERICA,Administrative Support,$400 ,6/18/2015
BANK OF AMERICA,Administrative Support,"$6,715 ",6/18/2015
BANK OF AMERICA,Management,"$1,582.99 ",6/18/2015
BANK OF AMERICA,Management,$204.10 ,6/18/2015
BANK OF AMERICA,Professional / Technical,"$1,017.31 ",6/18/2015
BANK OF AMERICA,Training - Students,$90 ,6/18/2015
BANK OF AMERICA,Travel & Seminar,"$9,284.30 ",6/18/2015
BANK OF AMERICA,Administrative Support,$431.01 ,7/17/2015
BANK OF AMERICA,Administrative Support,"$1,328.92 ",7/17/2015
BANK OF AMERICA,I&D Claims (Damage Reserve),$825.20 ,7/17/2015
BANK OF AMERICA,Management,$950.40 ,7/17/2015
BANK OF AMERICA,Open Fare,$105.19 ,7/17/2015
BANK OF AMERICA,Recruiting / Hiring,"$4,750 ",7/17/2015
BANK OF AMERICA,Training - Students,"$1,389.07 ",7/17/2015
BANK OF AMERICA,Travel & Seminar,"$3,193.13 ",7/17/2015
BANK OF AMERICA,Administrative Support,$527.48 ,8/18/2015
BANK OF AMERICA,Employee Recognition,$49 ,8/18/2015
BANK OF AMERICA,Training - Students,$44.45 ,8/18/2015
BANK OF AMERICA,Travel & Seminar,"$2,363.10 ",8/18/2015
BANK OF AMERICA,Scheduling,"$1,305.27 ",9/17/2015
BANK OF AMERICA,Travel & Seminar,"$2,806.30 ",9/17/2015
BANK OF AMERICA,Administrative Support,"$1,397.20 ",10/20/2015
BANK OF AMERICA,Administrative Support,$313.25 ,10/20/2015
BANK OF AMERICA,Drug & Alcohol Testing,$277.18 ,10/20/2015
BANK OF AMERICA,Engineering,$219.20 ,10/20/2015
BANK OF AMERICA,Maintain/Repair Communications  Equip,$127.75 ,10/20/2015
BANK OF AMERICA,Management,$886.58 ,10/20/2015
BANK OF AMERICA,Scheduling,$487.29 ,10/20/2015
BANK OF AMERICA,Travel & Seminar,"$5,217.40 ",10/20/2015
BANK OF AMERICA,Administrative Support,"$3,668.36 ",11/17/2015
BANK OF AMERICA,BUS/RAIL ROADEO,"$1,367.40 ",11/17/2015
BANK OF AMERICA,Administrative Support,"$1,692.56 ",12/18/2015
BANK OF AMERICA,Management,$988.40 ,12/18/2015
BANK OF AMERICA,Open Fare,$355.20 ,12/18/2015
BANK OF AMERICA,Travel & Seminar,"$1,939.80 ",12/18/2015
BARBARA LAKE & ASSOCIATES,Administrative Support,$60 ,6/2/2015
BARBARA LAKE & ASSOCIATES,Administrative Support,$247.80 ,7/20/2015
BARBARA SMITH,I&D Claims (Damage Reserve),$75 ,5/6/2015
BARCODES INC,Engineering,$769.49 ,1/15/2015
BARTALONE SAFETY CO,Training - Students,"$1,620 ",7/29/2015
BASHAR ALZEIN M.D.,I&D Claims (Damage Reserve),$500 ,7/1/2015
BASHAR ALZEIN M.D.,I&D Claims (Damage Reserve),$500 ,7/6/2015
BCR AUTOMOTIVE GROUP LLC DBA ROESCH FORD,Equipment Purchases,"$871,751 ",12/16/2015
"BEARING DISTRIBUTORS, INCORPORATED",Maintenance of Equipment,$363.75 ,2/2/2015
BEBON OFFICE MACHINES CO.,Maintenance of Equipment,$74 ,4/20/2015
BEBON OFFICE MACHINES CO.,Maintenance of Equipment,$169 ,6/1/2015
BEBON OFFICE MACHINES CO.,Maintenance of Equipment,$74 ,10/2/2015
BEBON OFFICE MACHINES CO.,Maintenance of Equipment,$250 ,10/8/2015
BEGGARS PIZZA,Management,$391.55 ,4/13/2015
BEGGARS PIZZA,Management,$247.85 ,4/13/2015
BENITO HERRERA,Legal Defense (Non-Damage Reserve),"$2,805 ",8/12/2015
BENJAMIN GRUBER M.D.,I&D Claims (Damage Reserve),$500 ,12/21/2015
BENJAMIN GRUBER M.D.,I&D Claims (Damage Reserve),$125 ,12/21/2015
BENJAMIN GRUBER M.D.,I&D Claims (Damage Reserve),$125 ,12/21/2015
BENJAMIN GRUBER M.D.,I&D Claims (Damage Reserve),$125 ,12/21/2015
BENJAMIN GRUBER M.D.,I&D Claims (Damage Reserve),$125 ,12/21/2015
BENTLEY SYSTEMS INC,Management,$794.50 ,1/5/2015
BENTLEY SYSTEMS INC,Management,"$2,378 ",4/24/2015
BENTLEY SYSTEMS INC,Management,$794.50 ,7/1/2015
BERNARD DABNEY,Reimb for lost tools/badges,$20 ,6/10/2015
BETHANY DRUCKER,Legal Defense (Non-Damage Reserve),"$75,000 ",12/22/2015
BETTE MAYFIELD,Administrative Support,$24.34 ,8/18/2015
BEVERLY WILLIS,Reimb for lost tools/badges,$50 ,7/10/2015
"BIDDLE CONSULTING GROUP, INC.",Recruiting / Hiring,"$1,886.89 ",9/9/2015
BIOMETRIC IMPRESSIONS CORP,Administrative Support,"$1,705 ",6/16/2015
BIOMETRIC IMPRESSIONS CORP,Administrative Support,$660 ,8/13/2015
BIRD ELECTRONIC CORP,Maintain/Repair Communications  Equip,"$1,052.21 ",5/4/2015
"BLACK AMERICANS OVERSEEING REHABILITATION OF COMMUNITY, INC.",Administrative Support,"$1,490 ",4/22/2015
"BLACK AMERICANS OVERSEEING REHABILITATION OF COMMUNITY, INC.",Administrative Support,$900 ,12/23/2015
BLAIDA AND ASSOCIATES LLC,Administrative Support,"$12,000 ",3/6/2015
BLAIDA AND ASSOCIATES LLC,Administrative Support,"$6,000 ",3/13/2015
BLAIDA AND ASSOCIATES LLC,Administrative Support,"$6,000 ",4/20/2015
BLAIDA AND ASSOCIATES LLC,Administrative Support,"$6,000 ",5/11/2015
BLAIDA AND ASSOCIATES LLC,Administrative Support,"$12,000 ",7/9/2015
BLAIDA AND ASSOCIATES LLC,Administrative Support,"$6,000 ",7/31/2015
BLAIDA AND ASSOCIATES LLC,Administrative Support,"$6,000 ",8/28/2015
BLAIDA AND ASSOCIATES LLC,Administrative Support,"$6,000 ",10/5/2015
BLAIDA AND ASSOCIATES LLC,Administrative Support,"$6,000 ",12/8/2015
BLAIDA AND ASSOCIATES LLC,Administrative Support,"$6,000 ",12/28/2015
BLUEBEAM SOFTWARE,Engineering,$630 ,12/17/2015
BNSF RAILWAY COMPANY,"Facilities Operating Expenses (Rent,Utilities,etc)",$106.09 ,12/15/2015
BODGAN MATUSZYK,I&D Claims (Damage Reserve),$200 ,9/1/2015
BOLLINGER CONNOLLY KRAUSE LLC,Administrative Support,"$5,410.50 ",1/20/2015
BOLLINGER CONNOLLY KRAUSE LLC,Administrative Support,"$5,527.95 ",3/2/2015
BOLLINGER CONNOLLY KRAUSE LLC,Administrative Support,"$2,170.50 ",3/17/2015
BOLLINGER CONNOLLY KRAUSE LLC,Administrative Support,"$3,488 ",4/24/2015
BOLLINGER CONNOLLY KRAUSE LLC,Administrative Support,"$10,739.50 ",7/13/2015
BOLLINGER CONNOLLY KRAUSE LLC,Administrative Support,"$7,251 ",7/31/2015
BOLLINGER CONNOLLY KRAUSE LLC,Administrative Support,$526.50 ,9/30/2015
BOLLINGER CONNOLLY KRAUSE LLC,Administrative Support,"$4,690 ",10/22/2015
BOLLINGER CONNOLLY KRAUSE LLC,Administrative Support,"$7,607.95 ",12/14/2015
BOLLINGER CONNOLLY KRAUSE LLC,Administrative Support,"$3,174.50 ",12/30/2015
BOMBARDIER TRANSPORTATION,Equipment Purchases,"$15,067,740.36 ",1/21/2015
BOMBARDIER TRANSPORTATION,Equipment Purchases,"$16,705,944.61 ",2/27/2015
BOMBARDIER TRANSPORTATION,Equipment Purchases,"$11,058,007.83 ",3/24/2015
BOMBARDIER TRANSPORTATION,Equipment Purchases,"$6,121,462.73 ",4/14/2015
BOMBARDIER TRANSPORTATION,Equipment Purchases,"$5,082,258.77 ",5/5/2015
BOMBARDIER TRANSPORTATION,Equipment Purchases,"$11,474,876.76 ",5/20/2015
BOMBARDIER TRANSPORTATION,Equipment Purchases,"$5,651,462.78 ",6/30/2015
BOMBARDIER TRANSPORTATION,Equipment Purchases,"$4,646,229.72 ",7/28/2015
BOMBARDIER TRANSPORTATION,Equipment Purchases,"$2,275,953.17 ",8/13/2015
BOMBARDIER TRANSPORTATION,Equipment Purchases,"$96,841.96 ",9/24/2015
BOMBARDIER TRANSPORTATION,Equipment Purchases,"$52,855.13 ",11/2/2015
BOMBARDIER TRANSPORTATION,Equipment Purchases,"$9,500,000 ",12/23/2015
BONE & JOINT CENTER P.C,I&D Claims (Damage Reserve),"$1,750 ",6/24/2015
"BONNAMY & ASSOCIATES, L.L.C.",I&D Claims (Damage Reserve),$199.50 ,1/7/2015
"BONNAMY & ASSOCIATES, L.L.C.",I&D Claims (Damage Reserve),$320 ,2/5/2015
"BONNAMY & ASSOCIATES, L.L.C.",I&D Claims (Damage Reserve),$224 ,3/17/2015
"BONNAMY & ASSOCIATES, L.L.C.",I&D Claims (Damage Reserve),$150 ,4/1/2015
"BONNAMY & ASSOCIATES, L.L.C.",I&D Claims (Damage Reserve),$150 ,4/20/2015
"BONNAMY & ASSOCIATES, L.L.C.",I&D Claims (Damage Reserve),$150 ,6/10/2015
"BONNAMY & ASSOCIATES, L.L.C.",I&D Claims (Damage Reserve),$500 ,8/11/2015
"BONNAMY & ASSOCIATES, L.L.C.",I&D Claims (Damage Reserve),$150 ,9/2/2015
"BONNAMY & ASSOCIATES, L.L.C.",I&D Claims (Damage Reserve),$787.50 ,9/18/2015
BOSTON PARK PLAZA HOTEL,Administrative Support,$911 ,6/5/2015
BOTTOMLINE TECHNOLOGIES,Applications Support,"$5,647.54 ",8/6/2015
BOTTOMLINE TECHNOLOGIES,Applications Support,$200 ,8/25/2015
BRADLEY MARQUETTE,I&D Claims (Damage Reserve),$75 ,7/27/2015
BRADLEY MERK MD,I&D Claims (Damage Reserve),"$1,000 ",1/12/2015
BRADLEY MERK MD,I&D Claims (Damage Reserve),$750 ,4/3/2015
BRADLEY MERK MD,I&D Claims (Damage Reserve),$750 ,7/13/2015
BRADLEY MERK MD,I&D Claims (Damage Reserve),$750 ,9/2/2015
"BRAINFILLER, INC",Engineering,"$8,750 ",3/6/2015
"BRANDT & SONS MARKETING GROUP, INC.",Administrative Support,$599.40 ,7/21/2015
"BRANDT & SONS MARKETING GROUP, INC.",Administrative Support,$599.40 ,8/21/2015
BRE RIVER NORTH MEMBER,"Facilities Operating Expenses (Rent,Utilities,etc)","$48,670.02 ",8/4/2015
BRE RIVER NORTH POINT OWNER,"Facilities Operating Expenses (Rent,Utilities,etc)","$49,400.02 ",9/2/2015
BRE RIVER NORTH POINT OWNER,"Facilities Operating Expenses (Rent,Utilities,etc)","$49,472.86 ",10/2/2015
BRE RIVER NORTH POINT OWNER,"Facilities Operating Expenses (Rent,Utilities,etc)","$49,400.02 ",11/3/2015
BRE RIVER NORTH POINT OWNER,"Facilities Operating Expenses (Rent,Utilities,etc)","$49,400.02 ",12/17/2015
BREDEMEYER CONSULTING,Training - Students,"$2,000 ",12/30/2015
BRIAN FORSYTHE M.D.,I&D Claims (Damage Reserve),$750 ,9/30/2015
BRIDGES COURT REPORTING,I&D Claims (Damage Reserve),$411.40 ,7/21/2015
BRIDGES COURT REPORTING,I&D Claims (Damage Reserve),$261.90 ,12/17/2015
BRUCE S MILLER M.D.,I&D Claims (Damage Reserve),"$1,000 ",12/3/2015
BRYAN COUNTY SHERIFF'S OFFICE,I&D Claims (Damage Reserve),$50 ,9/2/2015
"BUCHANAN REPORTING, INC",I&D Claims (Damage Reserve),$260 ,4/1/2015
"BUCHANAN REPORTING, INC",I&D Claims (Damage Reserve),$100.80 ,4/6/2015
BULLDOG CARTAGE LLC,Contract Construction,"$13,919.55 ",8/4/2015
BULLDOG CARTAGE LLC,Contract Construction,"$9,822.35 ",8/4/2015
BULLDOG CARTAGE LLC,Contract Construction,"$8,871.80 ",8/4/2015
BULLDOG CARTAGE LLC,Contract Construction,"$9,505.50 ",8/4/2015
BULLDOG CARTAGE LLC,Contract Construction,"$9,822.35 ",8/4/2015
BULLDOG CARTAGE LLC,Contract Construction,"$42,106.25 ",8/4/2015
BULLDOG CARTAGE LLC,Contract Construction,"$9,505.50 ",8/4/2015
BULLDOG CARTAGE LLC,Contract Construction,"$9,822.35 ",8/4/2015
BULLDOG CARTAGE LLC,Contract Construction,"$4,752.75 ",8/4/2015
BULLDOG CARTAGE LLC,Contract Construction,"$9,822.35 ",8/4/2015
"BUREAU OF NATIONAL AFFAIRS, INC., THE",Administrative Support,"$10,485 ",7/23/2015
"BURKE, WARREN, MACKAY &",Administrative Support,$174 ,12/3/2015
BUSINESS 21 PUBLISHING LLC,Employee Recognition,$197.10 ,7/7/2015
"Ball-Nogues Design Studio, LLC",Consulting Services,"$15,000 ",4/29/2015
"Ball-Nogues Design Studio, LLC",Consulting Services,"$30,000 ",11/16/2015
C&G SYSTEMS CORPORATION,Maintenance of Structures,"$10,000 ",3/16/2015
C.R.O.E TV,Marketing,"$5,000 ",3/3/2015
C2LLC,Cash Management,"$5,135 ",1/28/2015
C2LLC,Cash Management,"$1,200 ",3/16/2015
"CABLE X-PERTS, INC",Maintain/Repair Communications  Equip,$170.35 ,12/16/2015
CAIRS,Administrative Support,$488.75 ,2/12/2015
CAIRS,Administrative Support,$212 ,3/16/2015
CAIRS,Administrative Support,$410 ,5/12/2015
CALIBER PACKAGING LLC,Maintenance of Equipment,"$1,125.34 ",11/16/2015
"CALIBRATION SOLUTION, THE",Management,"$1,142.64 ",6/3/2015
"CALUMET ARMATURE AND ELECTRIC, LLC",Equipment Purchases,"$11,990 ",3/17/2015
"CALUMET ARMATURE AND ELECTRIC, LLC",Vehicle Rehab,"$87,337.86 ",4/21/2015
"CALUMET ARMATURE AND ELECTRIC, LLC",Vehicle Rehab,"$174,675.72 ",5/13/2015
"CALUMET ARMATURE AND ELECTRIC, LLC",Vehicle Rehab,"$131,006.79 ",5/27/2015
"CALUMET ARMATURE AND ELECTRIC, LLC",Vehicle Rehab,"$174,675.72 ",6/8/2015
"CALUMET ARMATURE AND ELECTRIC, LLC",Vehicle Rehab,"$174,675.72 ",7/8/2015
"CALUMET ARMATURE AND ELECTRIC, LLC",Vehicle Rehab,"$174,675.72 ",7/22/2015
"CALUMET ARMATURE AND ELECTRIC, LLC",Vehicle Rehab,"$174,675.72 ",8/19/2015
"CALUMET ARMATURE AND ELECTRIC, LLC",Vehicle Rehab,"$174,675.72 ",9/4/2015
"CALUMET ARMATURE AND ELECTRIC, LLC",Vehicle Rehab,"$174,675.72 ",9/9/2015
"CALUMET ARMATURE AND ELECTRIC, LLC",Vehicle Rehab,"$174,675.72 ",9/16/2015
"CALUMET ARMATURE AND ELECTRIC, LLC",Vehicle Rehab,"$174,675.72 ",10/14/2015
"CALUMET ARMATURE AND ELECTRIC, LLC",Vehicle Rehab,"$174,675.72 ",10/28/2015
"CALUMET ARMATURE AND ELECTRIC, LLC",Vehicle Rehab,"$174,675.72 ",12/3/2015
"CALUMET ARMATURE AND ELECTRIC, LLC",Vehicle Rehab,"$349,351.44 ",12/10/2015
CANADIAN URBAN TRANSIT ASSOC.,Scheduling,"$11,810.76 ",9/11/2015
"CARD IMAGING, INC.",Administrative Support,"$2,638.50 ",1/13/2015
"CARD IMAGING, INC.",Administrative Support,$406 ,1/20/2015
"CARD IMAGING, INC.",Administrative Support,"$1,008 ",2/12/2015
"CARD IMAGING, INC.",Administrative Support,$338 ,5/14/2015
"CARD IMAGING, INC.",Administrative Support,$543.50 ,5/26/2015
"CARD IMAGING, INC.",Administrative Support,$244 ,8/3/2015
"CARD IMAGING, INC.",Administrative Support,$885 ,8/4/2015
"CARD IMAGING, INC.",Administrative Support,$611 ,8/26/2015
"CARD IMAGING, INC.",Administrative Support,$36 ,8/26/2015
"CARD IMAGING, INC.",Administrative Support,$206 ,9/23/2015
"CARD IMAGING, INC.",Administrative Support,$799 ,9/24/2015
"CARD IMAGING, INC.",Administrative Support,$796 ,9/24/2015
CAREER DEVELOPMENT CENTER,Recruiting / Hiring,$57.50 ,12/21/2015
"CAREERBUILDER GOVERNMENT SOLUTIONS, LLC",Recruiting / Hiring,"$6,000 ",9/3/2015
CARL HILL MD,I&D Claims (Damage Reserve),$500 ,9/2/2015
CARLOS BOLMEY,I&D Claims (Damage Reserve),$900 ,9/1/2015
CAROLINE M STEELBERG PSY. D. LLC,Administrative Support,$640 ,9/21/2015
CAROLINE PAGE,Reimb for lost tools/badges,$30 ,6/10/2015
CARRIE BELLE WASHINGTON,Administrative Support,$662.50 ,11/27/2015
CARTER REPORTING SERVICE,Administrative Support,"$1,095.10 ",2/12/2015
CARTER REPORTING SERVICE,Administrative Support,"$1,081 ",2/25/2015
CARTER REPORTING SERVICE,Administrative Support,$582.80 ,3/3/2015
CARTER REPORTING SERVICE,Administrative Support,$413.60 ,3/5/2015
CATHERINE LANGE,Training - Students,$150 ,2/18/2015
CATHERINE LANGE,Training - Students,$412.50 ,7/21/2015
CATHERINE LANGE,Training - Students,$337.50 ,9/8/2015
CDM SMITH INC.,Consulting Services,"$28,859.27 ",7/8/2015
CDM/WIGHT - A JOINT VENTURE,Consulting Services,"$35,260.63 ",2/25/2015
CDM/WIGHT - A JOINT VENTURE,Consulting Services,"$44,616.68 ",4/21/2015
CDM/WIGHT - A JOINT VENTURE,Consulting Services,"$116,551.60 ",5/27/2015
CDM/WIGHT - A JOINT VENTURE,Consulting Services,"$24,253.75 ",6/17/2015
CDM/WIGHT - A JOINT VENTURE,Consulting Services,"$9,615.37 ",7/22/2015
CDM/WIGHT - A JOINT VENTURE,Consulting Services,"$26,392.52 ",8/11/2015
CDM/WIGHT - A JOINT VENTURE,Consulting Services,"$59,583.06 ",10/5/2015
CDM/WIGHT - A JOINT VENTURE,Consulting Services,"$5,801.91 ",10/28/2015
CDM/WIGHT - A JOINT VENTURE,Consulting Services,"$17,309.27 ",12/28/2015
"CDW GOVERNMENT, INCORPORATED",Misc. Expenditures,"$2,192.22 ",1/22/2015
"CDW GOVERNMENT, INCORPORATED",Equipment Purchases,$587.76 ,1/27/2015
"CDW GOVERNMENT, INCORPORATED",Equipment Purchases,"$1,389.84 ",2/17/2015
"CDW GOVERNMENT, INCORPORATED",Equipment Purchases,$894.59 ,3/2/2015
"CDW GOVERNMENT, INCORPORATED",Equipment Purchases,"$2,033.27 ",3/9/2015
"CDW GOVERNMENT, INCORPORATED",Equipment Purchases,$173.19 ,3/17/2015
"CDW GOVERNMENT, INCORPORATED",Equipment Purchases,"$2,183.76 ",3/24/2015
"CDW GOVERNMENT, INCORPORATED",Equipment Purchases,$795.97 ,4/7/2015
"CDW GOVERNMENT, INCORPORATED",Equipment Purchases,"$1,742.55 ",4/15/2015
"CDW GOVERNMENT, INCORPORATED",Equipment Purchases,"$5,297.90 ",4/21/2015
"CDW GOVERNMENT, INCORPORATED",Equipment Purchases,"$9,504 ",4/29/2015
"CDW GOVERNMENT, INCORPORATED",Administrative Support,$165.17 ,5/18/2015
"CDW GOVERNMENT, INCORPORATED",Equipment Purchases,"$5,483.54 ",6/1/2015
"CDW GOVERNMENT, INCORPORATED",Administrative Support,$158.81 ,7/13/2015
"CDW GOVERNMENT, INCORPORATED",Equipment Purchases,"$24,073.26 ",9/21/2015
"CDW GOVERNMENT, INCORPORATED",Equipment Purchases,"$3,853.53 ",9/28/2015
"CDW GOVERNMENT, INCORPORATED",Equipment Purchases,"$3,609.01 ",11/4/2015
"CECIL MCDONALD, JR",Consulting Services,"$12,400 ",2/6/2015
"CECIL MCDONALD, JR",Consulting Services,"$9,300 ",11/16/2015
CED SOLUTIONS LLC,Training - Students,"$5,745 ",12/30/2015
CENTER OF BRAIN & SPINE SURGERY,I&D Claims (Damage Reserve),"$3,750 ",5/21/2015
CENTER OF BRAIN & SPINE SURGERY,I&D Claims (Damage Reserve),"$1,200 ",9/17/2015
CENTER OF BRAIN & SPINE SURGERY,I&D Claims (Damage Reserve),"$3,450 ",12/24/2015
CENTRAL MEDICAL CENTER,I&D Claims (Damage Reserve),$400 ,6/23/2015
"CENTRAL REPORTERS ASSOC., LTD.",I&D Claims (Damage Reserve),$511.50 ,4/27/2015
"CENTRAL REPORTERS ASSOC., LTD.",I&D Claims (Damage Reserve),$420.75 ,6/2/2015
"CENTRAL REPORTERS ASSOC., LTD.",I&D Claims (Damage Reserve),$85.25 ,9/17/2015
"CENTRAL REPORTERS ASSOC., LTD.",I&D Claims (Damage Reserve),$203.50 ,11/6/2015
"CENTRAL REPORTERS ASSOC., LTD.",I&D Claims (Damage Reserve),$552.75 ,11/27/2015
"CENTURY CONTRACTORS, INC.",Maintenance of Buildings,"$13,813 ",8/20/2015
"CENTURY CONTRACTORS, INC.",Maintenance of Buildings,"$20,006 ",9/11/2015
"CENTURY CONTRACTORS, INC.",Maintenance of Buildings,"$14,666 ",9/16/2015
"CENTURY CONTRACTORS, INC.",Maintenance of Buildings,"$71,529 ",9/23/2015
"CENTURY CONTRACTORS, INC.",Maintenance of Buildings,"$6,861 ",10/15/2015
"CENTURY CONTRACTORS, INC.",Maintenance of Buildings,"$7,814 ",10/21/2015
"CENTURY CONTRACTORS, INC.",Maintenance of Buildings,"$8,262 ",10/28/2015
"CENTURY CONTRACTORS, INC.",Maintenance of Buildings,"$17,002 ",12/15/2015
CERTIFIED FRAUD EXAMINERS,Dues & Memberships,$175 ,4/30/2015
CERTIFIED REPORTING CO.,I&D Claims (Damage Reserve),$221.25 ,6/2/2015
CERTIFIED REPORTING CO.,I&D Claims (Damage Reserve),$125 ,11/27/2015
CF II 2700 ROOSEVELT LLC.,Leases & Rentals,"$18,264.21 ",1/6/2015
CF II 2700 ROOSEVELT LLC.,Leases & Rentals,"$18,246.03 ",2/12/2015
CF II 2700 ROOSEVELT LLC.,Leases & Rentals,"$18,291.84 ",3/17/2015
CF II 2700 ROOSEVELT LLC.,Leases & Rentals,"$37,925.45 ",6/15/2015
CF II 2700 ROOSEVELT LLC.,Leases & Rentals,"$18,324.23 ",7/20/2015
CF II 2700 ROOSEVELT LLC.,Leases & Rentals,"$18,063.92 ",8/5/2015
CF II 2700 ROOSEVELT LLC.,Leases & Rentals,"$18,492.75 ",8/31/2015
CF II 2700 ROOSEVELT LLC.,Leases & Rentals,"$19,074.90 ",10/9/2015
CF II 2700 ROOSEVELT LLC.,Leases & Rentals,"$19,604.23 ",10/27/2015
CF II 2700 ROOSEVELT LLC.,Leases & Rentals,"$19,080.59 ",11/2/2015
CF II 2700 ROOSEVELT LLC.,Leases & Rentals,"$19,069.32 ",12/28/2015
CG AUTOMATION SOLUTIONS USA INC,Equipment Purchases,"$266,841 ",8/11/2015
CG AUTOMATION SOLUTIONS USA INC,Equipment Purchases,"$29,649 ",10/28/2015
"CH2M HILL, INC",Equipment Purchases,"$185,687.16 ",4/29/2015
CHAPMAN AND CUTLER,Administrative Support,"$5,500 ",3/16/2015
CHAPMAN AND CUTLER,Professional / Technical,"$10,088.24 ",10/22/2015
"CHARITY & ASSOCIATES, P.C.",Consulting Services,"$35,000 ",1/9/2015
"CHARITY & ASSOCIATES, P.C.",Consulting Services,"$20,000 ",2/20/2015
"CHARITY & ASSOCIATES, P.C.",Consulting Services,"$30,000 ",12/31/2015
CHARLES EQUIPMENT ENERGY SYSTEMS LLC,Maintenance of Equipment,"$4,387 ",2/4/2015
CHARLES EQUIPMENT ENERGY SYSTEMS LLC,Maintenance of Buildings,"$4,100 ",6/30/2015
CHARLES EQUIPMENT ENERGY SYSTEMS LLC,Maintenance of Buildings,"$6,551.95 ",12/10/2015
CHARLES L MITCHELL M.D.,I&D Claims (Damage Reserve),$900 ,8/7/2015
CHARLES LAWLER,I&D Claims (Damage Reserve),$400 ,10/27/2015
CHARLES LAWLER,I&D Claims (Damage Reserve),$100 ,10/27/2015
CHARLES LAWLER,I&D Claims (Damage Reserve),$100 ,10/27/2015
CHARLES LAWLER,I&D Claims (Damage Reserve),$100 ,10/27/2015
CHARLES LAWLER,I&D Claims (Damage Reserve),$100 ,10/27/2015
CHARLES MILAM,I&D Claims (Damage Reserve),$75 ,3/2/2015
CHARLES MITCHELL M.D.,I&D Claims (Damage Reserve),$400 ,9/21/2015
CHELSEA BOMHER,I&D Claims (Damage Reserve),$25 ,4/1/2015
CHICAGO AREA REALTIME,I&D Claims (Damage Reserve),$817.55 ,3/11/2015
CHICAGO CENTER FOR SPORTS,I&D Claims (Damage Reserve),$750 ,3/20/2015
"CHICAGO COMMUNICATIONS, LLC",Maintenance of Structures,"$2,905 ",7/22/2015
CHICAGO COMPENSATION ASSOC.,Compensation,$190 ,10/22/2015
CHICAGO DEFENDER PUBLISHING CO.,Administrative Support,$369.60 ,12/2/2015
CHICAGO DRIVELINE,"Facilities Operating Expenses (Rent,Utilities,etc)",$129.53 ,4/2/2015
CHICAGO FIRE DEPT,I&D Claims (Damage Reserve),$25 ,8/20/2015
CHICAGO INFRASTRUCTURE TRUST,Applications Support,"$100,000 ",3/11/2015
CHICAGO INFRASTRUCTURE TRUST,Professional / Technical,"$100,000 ",9/29/2015
"CHICAGO JACK SERVICE, INC.",Equipment Purchases,$497 ,12/31/2015
CHICAGO METRO CONSTRUCTION D/B/A ARLINGTON GLASS & MIRROR CO.,Maintenance of Buildings,$774.12 ,10/13/2015
CHICAGO METRO CONSTRUCTION D/B/A ARLINGTON GLASS & MIRROR CO.,Contract Construction,"$4,257 ",10/14/2015
CHICAGO METRO CONSTRUCTION D/B/A ARLINGTON GLASS & MIRROR CO.,Maintenance of Buildings,"$3,934.14 ",10/22/2015
CHICAGO METRO CONSTRUCTION D/B/A ARLINGTON GLASS & MIRROR CO.,Maintenance of Buildings,"$15,234.86 ",10/28/2015
CHICAGO METRO CONSTRUCTION D/B/A ARLINGTON GLASS & MIRROR CO.,Maintenance of Buildings,"$1,220.44 ",10/30/2015
CHICAGO METRO CONSTRUCTION D/B/A ARLINGTON GLASS & MIRROR CO.,Maintenance of Buildings,"$4,301.17 ",11/4/2015
CHICAGO METRO CONSTRUCTION D/B/A ARLINGTON GLASS & MIRROR CO.,Maintenance of Buildings,"$8,888.60 ",11/5/2015
CHICAGO METRO CONSTRUCTION D/B/A ARLINGTON GLASS & MIRROR CO.,Maintenance of Buildings,"$1,671.50 ",11/6/2015
CHICAGO METRO CONSTRUCTION D/B/A ARLINGTON GLASS & MIRROR CO.,Maintenance of Buildings,"$17,090.28 ",11/9/2015
CHICAGO METRO CONSTRUCTION D/B/A ARLINGTON GLASS & MIRROR CO.,Maintenance of Buildings,"$3,898.95 ",11/11/2015
CHICAGO METRO CONSTRUCTION D/B/A ARLINGTON GLASS & MIRROR CO.,Maintenance of Buildings,"$1,809.81 ",11/12/2015
CHICAGO METRO CONSTRUCTION D/B/A ARLINGTON GLASS & MIRROR CO.,Maintenance of Buildings,$630.26 ,11/18/2015
CHICAGO METRO CONSTRUCTION D/B/A ARLINGTON GLASS & MIRROR CO.,Maintenance of Buildings,"$1,660.25 ",11/23/2015
CHICAGO METRO CONSTRUCTION D/B/A ARLINGTON GLASS & MIRROR CO.,Maintenance of Buildings,$563.64 ,11/24/2015
CHICAGO METRO CONSTRUCTION D/B/A ARLINGTON GLASS & MIRROR CO.,Maintenance of Buildings,"$1,188.60 ",12/1/2015
CHICAGO METRO CONSTRUCTION D/B/A ARLINGTON GLASS & MIRROR CO.,Maintenance of Buildings,$680.46 ,12/17/2015
CHICAGO METRO CONSTRUCTION D/B/A ARLINGTON GLASS & MIRROR CO.,Maintenance of Buildings,"$10,942.07 ",12/22/2015
CHICAGO METRO CONSTRUCTION D/B/A ARLINGTON GLASS & MIRROR CO.,Maintenance of Buildings,"$13,004.08 ",12/30/2015
CHICAGO METRO CONSTRUCTION D/B/A ARLINGTON GLASS & MIRROR CO.,Maintenance of Buildings,"$3,182.62 ",12/31/2015
CHICAGO METRO CONSTRUCTION dba ARLINGTON GLASS & MIRROR CO.,Collision/Damage Repairs,"$4,840.89 ",1/15/2015
CHICAGO METRO CONSTRUCTION dba ARLINGTON GLASS & MIRROR CO.,Collision/Damage Repairs,"$1,154.88 ",1/22/2015
CHICAGO METRO CONSTRUCTION dba ARLINGTON GLASS & MIRROR CO.,Maintenance of Rail Stations,$460.40 ,1/26/2015
CHICAGO METRO CONSTRUCTION dba ARLINGTON GLASS & MIRROR CO.,Maintenance of Rail Stations,$87.78 ,2/18/2015
CHICAGO METRO CONSTRUCTION dba ARLINGTON GLASS & MIRROR CO.,Maintenance of Buildings,$506.22 ,2/27/2015
CHICAGO METRO CONSTRUCTION dba ARLINGTON GLASS & MIRROR CO.,Maintenance of Rail Stations,"$3,148.01 ",2/27/2015
CHICAGO METRO CONSTRUCTION dba ARLINGTON GLASS & MIRROR CO.,Maintenance of Rail Stations,"$13,570.44 ",3/4/2015
CHICAGO METRO CONSTRUCTION dba ARLINGTON GLASS & MIRROR CO.,Maintenance of Rail Stations,$283.20 ,3/10/2015
CHICAGO METRO CONSTRUCTION dba ARLINGTON GLASS & MIRROR CO.,Maintenance of Buildings,"$5,704.80 ",3/11/2015
CHICAGO METRO CONSTRUCTION dba ARLINGTON GLASS & MIRROR CO.,Vandalism Repairs (includes graffiti removal),$379.60 ,3/11/2015
CHICAGO METRO CONSTRUCTION dba ARLINGTON GLASS & MIRROR CO.,Contract Construction,"$58,168.80 ",3/13/2015
CHICAGO METRO CONSTRUCTION dba ARLINGTON GLASS & MIRROR CO.,Maintenance of Buildings,"$2,927.41 ",3/16/2015
CHICAGO METRO CONSTRUCTION dba ARLINGTON GLASS & MIRROR CO.,Maintenance of Buildings,"$4,106.08 ",3/25/2015
CHICAGO METRO CONSTRUCTION dba ARLINGTON GLASS & MIRROR CO.,Maintenance of Rail Stations,"$2,206.64 ",3/26/2015
CHICAGO METRO CONSTRUCTION dba ARLINGTON GLASS & MIRROR CO.,Maintenance of Buildings,$933.10 ,4/8/2015
CHICAGO METRO CONSTRUCTION dba ARLINGTON GLASS & MIRROR CO.,Maintenance of Buildings,"$96,825.50 ",4/13/2015
CHICAGO METRO CONSTRUCTION dba ARLINGTON GLASS & MIRROR CO.,Maintenance of Buildings,"$11,612.62 ",4/15/2015
CHICAGO METRO CONSTRUCTION dba ARLINGTON GLASS & MIRROR CO.,Maintenance of Buildings,"$1,282.80 ",4/29/2015
CHICAGO METRO CONSTRUCTION dba ARLINGTON GLASS & MIRROR CO.,Maintenance of Buildings,$549.25 ,5/4/2015
CHICAGO METRO CONSTRUCTION dba ARLINGTON GLASS & MIRROR CO.,Maintenance of Buildings,$345.15 ,5/7/2015
CHICAGO METRO CONSTRUCTION dba ARLINGTON GLASS & MIRROR CO.,Maintenance of Buildings,"$4,189.40 ",5/21/2015
CHICAGO METRO CONSTRUCTION dba ARLINGTON GLASS & MIRROR CO.,Maintenance of Buildings,$640.53 ,6/9/2015
CHICAGO METRO CONSTRUCTION dba ARLINGTON GLASS & MIRROR CO.,Maintenance of Buildings,"$2,227.47 ",6/15/2015
CHICAGO METRO CONSTRUCTION dba ARLINGTON GLASS & MIRROR CO.,Maintenance of Buildings,"$1,911.35 ",6/18/2015
CHICAGO METRO CONSTRUCTION dba ARLINGTON GLASS & MIRROR CO.,Maintenance of Buildings,$558.18 ,6/25/2015
CHICAGO METRO CONSTRUCTION dba ARLINGTON GLASS & MIRROR CO.,Maintenance of Buildings,"$9,530.33 ",6/29/2015
CHICAGO METRO CONSTRUCTION dba ARLINGTON GLASS & MIRROR CO.,Maintenance of Buildings,"$6,317.13 ",7/1/2015
CHICAGO METRO CONSTRUCTION dba ARLINGTON GLASS & MIRROR CO.,Maintenance of Buildings,$353.22 ,7/7/2015
CHICAGO METRO CONSTRUCTION dba ARLINGTON GLASS & MIRROR CO.,Maintenance of Buildings,"$2,311.23 ",7/8/2015
CHICAGO METRO CONSTRUCTION dba ARLINGTON GLASS & MIRROR CO.,Maintenance of Buildings,"$2,114.72 ",7/9/2015
CHICAGO METRO CONSTRUCTION dba ARLINGTON GLASS & MIRROR CO.,Maintenance of Buildings,$802.74 ,7/10/2015
CHICAGO METRO CONSTRUCTION dba ARLINGTON GLASS & MIRROR CO.,Maintenance of Buildings,$471.75 ,7/15/2015
CHICAGO METRO CONSTRUCTION dba ARLINGTON GLASS & MIRROR CO.,Maintenance of Buildings,$707.55 ,7/16/2015
CHICAGO METRO CONSTRUCTION dba ARLINGTON GLASS & MIRROR CO.,Maintenance of Buildings,$407.31 ,7/21/2015
CHICAGO METRO CONSTRUCTION dba ARLINGTON GLASS & MIRROR CO.,Maintenance of Buildings,"$2,283.44 ",7/29/2015
CHICAGO METRO CONSTRUCTION dba ARLINGTON GLASS & MIRROR CO.,Maintenance of Buildings,$986.04 ,8/7/2015
CHICAGO METRO CONSTRUCTION dba ARLINGTON GLASS & MIRROR CO.,Maintenance of Buildings,"$6,873.75 ",8/13/2015
CHICAGO METRO CONSTRUCTION dba ARLINGTON GLASS & MIRROR CO.,Maintenance of Buildings,"$7,455.77 ",8/17/2015
CHICAGO METRO CONSTRUCTION dba ARLINGTON GLASS & MIRROR CO.,Collision/Damage Repairs,"$3,079.65 ",8/20/2015
CHICAGO METRO CONSTRUCTION dba ARLINGTON GLASS & MIRROR CO.,Maintenance of Buildings,"$5,994.58 ",8/20/2015
CHICAGO METRO CONSTRUCTION dba ARLINGTON GLASS & MIRROR CO.,Maintenance of Buildings,"$7,714.18 ",8/25/2015
CHICAGO METRO CONSTRUCTION dba ARLINGTON GLASS & MIRROR CO.,Maintenance of Buildings,$637 ,8/27/2015
CHICAGO METRO CONSTRUCTION dba ARLINGTON GLASS & MIRROR CO.,Maintenance of Buildings,"$2,481.57 ",9/1/2015
CHICAGO METRO CONSTRUCTION dba ARLINGTON GLASS & MIRROR CO.,Maintenance of Buildings,"$1,867.68 ",9/4/2015
CHICAGO METRO CONSTRUCTION dba ARLINGTON GLASS & MIRROR CO.,Maintenance of Buildings,"$7,576.16 ",9/10/2015
CHICAGO METRO CONSTRUCTION dba ARLINGTON GLASS & MIRROR CO.,Maintenance of Buildings,"$4,633.20 ",9/16/2015
CHICAGO METRO CONSTRUCTION dba ARLINGTON GLASS & MIRROR CO.,Maintenance of Buildings,"$5,676.30 ",9/22/2015
CHICAGO METRO CONSTRUCTION dba ARLINGTON GLASS & MIRROR CO.,Maintenance of Buildings,$881.10 ,9/29/2015
CHICAGO METRO CONSTRUCTION dba ARLINGTON GLASS & MIRROR CO.,Maintenance of Buildings,"$2,332.24 ",10/8/2015
CHICAGO PAIN CLINIC LLC,I&D Claims (Damage Reserve),$750 ,7/15/2015
CHICAGO POLICE DEPARTMENT,Misc. Expenditures,"$111,209.24 ",3/31/2015
CHICAGO POLICE DEPARTMENT,Misc. Expenditures,"$1,520,607.55 ",6/30/2015
CHICAGO POLICE DEPARTMENT,Misc. Expenditures,"$640,117.11 ",8/26/2015
CHICAGO POLICE DEPARTMENT,Misc. Expenditures,"$819,853.75 ",9/25/2015
CHICAGO POLICE DEPARTMENT,Misc. Expenditures,"$57,834.58 ",11/16/2015
CHICAGO POLICE DEPARTMENT  (1),Misc. Expenditures,"$968,424.85 ",5/27/2015
CHICAGO POLICE DEPT.,Misc. Expenditures,"$187,365.18 ",1/30/2015
CHICAGO POLICE DEPT.,I&D Claims (Damage Reserve),$25 ,10/26/2015
CHICAGO POLICE DEPT.,Misc. Expenditures,"$719,289.66 ",11/6/2015
"CHICAGO SCAFFOLDING, INC.",Maintenance of Equipment,"$18,640 ",9/21/2015
"CHICAGO SUN-TIMES, INCORPORATED dba Sun-Times Media Productions, LLC",Administrative Support,"$1,120.30 ",1/6/2015
"CHICAGO SUN-TIMES, INCORPORATED dba Sun-Times Media Productions, LLC",Administrative Support,$127.50 ,1/16/2015
"CHICAGO SUN-TIMES, INCORPORATED dba Sun-Times Media Productions, LLC",Administrative Support,"$1,627.75 ",1/28/2015
"CHICAGO SUN-TIMES, INCORPORATED dba Sun-Times Media Productions, LLC",Administrative Support,"$1,394 ",3/6/2015
"CHICAGO SUN-TIMES, INCORPORATED dba Sun-Times Media Productions, LLC",Administrative Support,"$1,152.60 ",4/2/2015
"CHICAGO SUN-TIMES, INCORPORATED dba Sun-Times Media Productions, LLC",Administrative Support,"$2,074 ",5/4/2015
"CHICAGO SUN-TIMES, INCORPORATED dba Sun-Times Media Productions, LLC",Administrative Support,$807.50 ,6/2/2015
"CHICAGO SUN-TIMES, INCORPORATED dba Sun-Times Media Productions, LLC",Administrative Support,"$1,518.10 ",7/2/2015
"CHICAGO SUN-TIMES, INCORPORATED dba Sun-Times Media Productions, LLC",Administrative Support,"$1,034.45 ",7/28/2015
"CHICAGO SUN-TIMES, INCORPORATED dba Sun-Times Media Productions, LLC",Administrative Support,"$1,416.10 ",8/31/2015
"CHICAGO SUN-TIMES, INCORPORATED dba Sun-Times Media Productions, LLC",Administrative Support,$951.15 ,9/28/2015
"CHICAGO SUN-TIMES, INCORPORATED dba Sun-Times Media Productions, LLC",Administrative Support,$502.35 ,10/28/2015
"CHICAGO SUN-TIMES, INCORPORATED dba Sun-Times Media Productions, LLC",Administrative Support,$290.70 ,11/11/2015
"CHICAGO SUN-TIMES, INCORPORATED dba Sun-Times Media Productions, LLC",Administrative Support,$101.40 ,11/11/2015
"CHICAGO SUN-TIMES, INCORPORATED dba Sun-Times Media Productions, LLC",Administrative Support,$590.75 ,11/25/2015
"CHICAGO SUN-TIMES, INCORPORATED dba Sun-Times Media Productions, LLC",Administrative Support,$22.95 ,12/17/2015
"CHICAGO SUN-TIMES, INCORPORATED dba Sun-Times Media Productions, LLC",Administrative Support,$519.35 ,12/28/2015
CHICAGO TITLE & TRUST CO.,Real Estate,"$404,000 ",7/24/2015
CHICAGO TRANSIT PARTNERS,Consulting Services,"$1,332.97 ",1/29/2015
CHICAGO TRANSIT PARTNERS,Consulting Services,"$99,151.72 ",2/19/2015
CHICAGO TRANSIT PARTNERS,Consulting Services,"$1,021,465.02 ",2/26/2015
CHICAGO TRANSIT PARTNERS,Consulting Services,"$136,860.06 ",3/24/2015
CHICAGO TRANSIT PARTNERS,Consulting Services,"$212,697.27 ",3/26/2015
CHICAGO TRANSIT PARTNERS,Consulting Services,"$1,429,873.32 ",3/31/2015
CHICAGO TRANSIT PARTNERS,Consulting Services,"$162,844.82 ",4/2/2015
CHICAGO TRANSIT PARTNERS,Consulting Services,"$295,056.10 ",4/8/2015
CHICAGO TRANSIT PARTNERS,Consulting Services,"$163,220.33 ",4/14/2015
CHICAGO TRANSIT PARTNERS,Consulting Services,"$153,917.92 ",4/22/2015
CHICAGO TRANSIT PARTNERS,Consulting Services,"$955,538.76 ",5/6/2015
CHICAGO TRANSIT PARTNERS,Consulting Services,"$29,600.15 ",5/11/2015
CHICAGO TRANSIT PARTNERS,Consulting Services,"$79,706.27 ",5/26/2015
CHICAGO TRANSIT PARTNERS,Consulting Services,"$398,775.29 ",6/3/2015
CHICAGO TRANSIT PARTNERS,Consulting Services,"$1,591,495.36 ",6/10/2015
CHICAGO TRANSIT PARTNERS,Consulting Services,"$6,658.50 ",6/29/2015
CHICAGO TRANSIT PARTNERS,Consulting Services,"$649,253.18 ",7/8/2015
CHICAGO TRANSIT PARTNERS,Consulting Services,"$5,055.31 ",7/22/2015
CHICAGO TRANSIT PARTNERS,Consulting Services,"$768,217.33 ",7/29/2015
CHICAGO TRANSIT PARTNERS,Consulting Services,"$213,639.59 ",9/1/2015
CHICAGO TRANSIT PARTNERS,Consulting Services,"$14,511.79 ",9/28/2015
CHICAGO TRANSIT PARTNERS,Consulting Services,"$435,675.40 ",10/15/2015
CHICAGO TRANSIT PARTNERS,Consulting Services,"$1,289,000.08 ",10/27/2015
CHICAGO TRANSIT PARTNERS,O'Hare train derailment 24-MAR-14,"$16,104.53 ",10/27/2015
CHICAGO TRANSIT PARTNERS,Consulting Services,"$30,243.20 ",10/28/2015
CHICAGO TRANSIT PARTNERS,Consulting Services,"$334,435.11 ",11/9/2015
CHICAGO TRANSIT PARTNERS,Consulting Services,"$2,224,307.56 ",11/18/2015
CHICAGO TRANSIT PARTNERS,O'Hare train derailment 24-MAR-14,"$30,209.44 ",11/18/2015
CHICAGO TRANSIT PARTNERS,Consulting Services,"$33,568.63 ",11/30/2015
CHICAGO TRANSIT PARTNERS,Consulting Services,"$145,799.35 ",12/14/2015
CHICAGO TRANSIT PARTNERS,Consulting Services,"$149,752.74 ",12/21/2015
CHICAGO TRAUMA & CRITICAL CARE SURGEONS,I&D Claims (Damage Reserve),$750 ,9/22/2015
CHICAGO TRAUMA & CRITICAL CARE SURGEONS,I&D Claims (Damage Reserve),$750 ,10/19/2015
CHICAGO TRAUMA AND CRITICAL,I&D Claims (Damage Reserve),"$1,800 ",6/8/2015
CHICAGO TRIBUNE,Administrative Support,$182 ,3/9/2015
CHICAGO TRIBUNE,Administrative Support,$288.60 ,3/27/2015
CHICAGO TRIBUNE,Administrative Support,$84.15 ,7/31/2015
CHICAGO TRIBUNE,Administrative Support,$468 ,9/3/2015
CHICAGO TRIBUNE,Administrative Support,$74.75 ,9/11/2015
"CHICAGO UNITED INDUSTRIES, INC.",Maintenance of Equipment,$838.32 ,1/20/2015
"CHICAGO UNITED INDUSTRIES, INC.",Maintenance of Equipment,$626.80 ,3/4/2015
"CHICAGO UNITED INDUSTRIES, INC.",Maintenance of Buildings,"$1,157.05 ",4/6/2015
"CHICAGO UNITED INDUSTRIES, INC.",Maintenance of Buildings,$316.65 ,5/4/2015
"CHICAGO UNITED INDUSTRIES, INC.",Office Services,"$1,215.22 ",6/23/2015
"CHICAGO UNITED INDUSTRIES, INC.",Equipment Purchases,"$57,775 ",7/15/2015
"CHICAGO UNITED INDUSTRIES, INC.",General Shop/Gar/Term Repairs & Svcs,$221.25 ,7/16/2015
"CHICAGO UNITED INDUSTRIES, INC.",Maintenance of Buildings,"$1,874.76 ",7/16/2015
"CHICAGO UNITED INDUSTRIES, INC.",Steel Fabrication,"$1,867.88 ",7/16/2015
"CHICAGO UNITED INDUSTRIES, INC.",Steel Fabrication,$730 ,10/26/2015
"CHICAGO UNITED INDUSTRIES, INC.",Maintenance of Buildings,$713.45 ,11/9/2015
CHICAGO URBAN LEAGUE,Administrative Support,"$5,833 ",1/21/2015
CHICAGO URBAN LEAGUE,Administrative Support,"$5,833 ",1/21/2015
CHICAGO URBAN LEAGUE,Administrative Support,"$5,833 ",1/21/2015
CHICAGO URBAN LEAGUE,Administrative Support,"$5,833 ",2/24/2015
CHICAGO URBAN LEAGUE,Administrative Support,"$5,833 ",6/30/2015
CHICAGO URBAN LEAGUE,Administrative Support,"$5,833 ",7/30/2015
CHICAGO URBAN LEAGUE,Administrative Support,"$5,833 ",9/25/2015
CHICAGO URBAN LEAGUE,Administrative Support,"$5,833 ",10/14/2015
CHICAGO URBAN LEAGUE,Administrative Support,"$5,833 ",10/22/2015
CHICAGO URBAN LEAGUE,Administrative Support,"$5,833 ",10/22/2015
CHICAGO URBAN LEAGUE,Administrative Support,"$5,833 ",11/12/2015
CHICAGOLAND INVESTIGATIVE SERVICES,I&D Claims (Damage Reserve),"$7,250.40 ",1/7/2015
CHICAGOLAND INVESTIGATIVE SERVICES,I&D Claims (Damage Reserve),$120 ,2/5/2015
CHICAGOLAND INVESTIGATIVE SERVICES,I&D Claims (Damage Reserve),$120 ,3/17/2015
CHICAGOLAND INVESTIGATIVE SERVICES,I&D Claims (Damage Reserve),$240 ,4/1/2015
CHICAGOLAND INVESTIGATIVE SERVICES,I&D Claims (Damage Reserve),$720 ,5/5/2015
CHICAGOLAND INVESTIGATIVE SERVICES,I&D Claims (Damage Reserve),"$2,044.76 ",7/22/2015
CHICAGOLAND INVESTIGATIVE SERVICES,I&D Claims (Damage Reserve),"$1,124.40 ",8/11/2015
CHICAGOLAND INVESTIGATIVE SERVICES,I&D Claims (Damage Reserve),$835 ,11/25/2015
CHICAGOLAND INVESTIGATIVE SERVICES,I&D Claims (Damage Reserve),$435 ,12/17/2015
CHINATOWN CHIROPRATIC,I&D Claims (Damage Reserve),$45 ,1/5/2015
CHINESE AMERICAN NEWS,Administrative Support,$210 ,11/27/2015
CHIRO ONE WELLNESS CENTERS,I&D Claims (Damage Reserve),$250 ,11/25/2015
CHRISTOPHER B MORGAN,I&D Claims (Damage Reserve),$750 ,2/3/2015
CHRISTOPHER C MAHR M.D.,I&D Claims (Damage Reserve),$500 ,10/6/2015
CHRISTOPHER McCOY,I&D Claims (Damage Reserve),$75 ,6/23/2015
CHRISTOPHER WILLIAMS,I&D Claims (Damage Reserve),$75 ,11/2/2015
CICERO POLICE DEPT.,I&D Claims (Damage Reserve),$5 ,2/17/2015
CICERO POLICE DEPT.,I&D Claims (Damage Reserve),$5 ,6/26/2015
CISCO WEBEX LLC,Training - Students,"$3,780 ",10/2/2015
CITATION BOX & PAPER CO.,Rebuild Chassis Units,"$1,186.95 ",2/20/2015
CITATION BOX & PAPER CO.,Rebuild Chassis Units,"$1,127.12 ",9/16/2015
CITATION BOX & PAPER CO.,Repair CTA Mini Bus/Train,"$1,206.25 ",10/2/2015
CITATION BOX & PAPER CO.,Rebuild Chassis Units,"$1,225.55 ",12/11/2015
"CITE - COLUMBIA INDUSTRIAL TRAINING AND EDUCATION, LLC",Training - Students,"$15,000 ",7/2/2015
CITY OF  CHICAGO,"Facilities Operating Expenses (Rent,Utilities,etc)","$13,596.04 ",6/23/2015
CITY OF  CHICAGO,"Facilities Operating Expenses (Rent,Utilities,etc)","$13,596.04 ",6/23/2015
CITY OF  CHICAGO,"Facilities Operating Expenses (Rent,Utilities,etc)","$13,596.04 ",6/23/2015
CITY OF  CHICAGO,"Facilities Operating Expenses (Rent,Utilities,etc)","$13,596.04 ",6/23/2015
CITY OF  CHICAGO,"Facilities Operating Expenses (Rent,Utilities,etc)","$13,596.04 ",6/23/2015
CITY OF CHGO.-ENTERPRISE FUNDS,"Facilities Operating Expenses (Rent,Utilities,etc)",$479.88 ,3/10/2015
CITY OF CHGO.-ENTERPRISE FUNDS,"Facilities Operating Expenses (Rent,Utilities,etc)","$1,630.20 ",5/27/2015
CITY OF CHGO.-ENTERPRISE FUNDS,"Facilities Operating Expenses (Rent,Utilities,etc)","$2,265.12 ",9/3/2015
CITY OF CHGO.-ENTERPRISE FUNDS,"Facilities Operating Expenses (Rent,Utilities,etc)","$2,236.52 ",11/9/2015
CITY OF CHICAGO DEPT. OF REVENUE,Maintenance of Elevators,"$3,040 ",3/16/2015
CITY OF CHICAGO DEPT. OF REVENUE,Property Management,"$1,000 ",5/15/2015
CITY OF CHICAGO DEPT. OF REVENUE,Maintenance of Elevators,"$1,695 ",5/21/2015
CITY OF CHICAGO DEPT. OF REVENUE,Maintenance of Elevators,"$3,405 ",6/5/2015
CITY OF CHICAGO DEPT. OF REVENUE,Maintenance of Elevators,$240 ,6/10/2015
CITY OF CHICAGO DEPT. OF REVENUE,Maintenance of Buildings,"$1,090 ",8/12/2015
CITY OF CHICAGO DEPT. OF REVENUE,Maintenance of Buildings,$865 ,9/10/2015
CITY OF CHICAGO DEPT. OF REVENUE,Maintenance of Buildings,"$2,780 ",12/8/2015
CITY OF CHICAGO DEPT.OF REVENUE-RED LIGHT,Other General Expense,$135 ,1/2/2015
CITY OF CHICAGO DEPT.OF REVENUE-RED LIGHT,Other General Expense,$500 ,1/7/2015
CITY OF CHICAGO DEPT.OF REVENUE-RED LIGHT,Other General Expense,$500 ,1/14/2015
CITY OF CHICAGO DEPT.OF REVENUE-RED LIGHT,Other General Expense,$300 ,1/16/2015
CITY OF CHICAGO DEPT.OF REVENUE-RED LIGHT,Other General Expense,"$2,400 ",1/23/2015
CITY OF CHICAGO DEPT.OF REVENUE-RED LIGHT,Other General Expense,$100 ,1/26/2015
CITY OF CHICAGO DEPT.OF REVENUE-RED LIGHT,Other General Expense,$235 ,1/28/2015
CITY OF CHICAGO DEPT.OF REVENUE-RED LIGHT,Other General Expense,"$1,200 ",2/4/2015
CITY OF CHICAGO DEPT.OF REVENUE-RED LIGHT,Other General Expense,$300 ,2/6/2015
CITY OF CHICAGO DEPT.OF REVENUE-RED LIGHT,Other General Expense,$700 ,2/11/2015
CITY OF CHICAGO DEPT.OF REVENUE-RED LIGHT,Other General Expense,$265 ,2/18/2015
CITY OF CHICAGO DEPT.OF REVENUE-RED LIGHT,Other General Expense,$400 ,2/25/2015
CITY OF CHICAGO DEPT.OF REVENUE-RED LIGHT,Other General Expense,$500 ,3/4/2015
CITY OF CHICAGO DEPT.OF REVENUE-RED LIGHT,Other General Expense,$300 ,3/11/2015
CITY OF CHICAGO DEPT.OF REVENUE-RED LIGHT,Other General Expense,$35 ,3/13/2015
CITY OF CHICAGO DEPT.OF REVENUE-RED LIGHT,Other General Expense,$600 ,3/27/2015
CITY OF CHICAGO DEPT.OF REVENUE-RED LIGHT,Other General Expense,$100 ,4/1/2015
CITY OF CHICAGO DEPT.OF REVENUE-RED LIGHT,Other General Expense,$600 ,4/3/2015
CITY OF CHICAGO DEPT.OF REVENUE-RED LIGHT,Other General Expense,$300 ,4/8/2015
CITY OF CHICAGO DEPT.OF REVENUE-RED LIGHT,Other General Expense,$500 ,4/9/2015
CITY OF CHICAGO DEPT.OF REVENUE-RED LIGHT,Other General Expense,$400 ,4/14/2015
CITY OF CHICAGO DEPT.OF REVENUE-RED LIGHT,Other General Expense,$100 ,4/17/2015
CITY OF CHICAGO DEPT.OF REVENUE-RED LIGHT,Other General Expense,$500 ,4/23/2015
CITY OF CHICAGO DEPT.OF REVENUE-RED LIGHT,Other General Expense,$815 ,5/1/2015
CITY OF CHICAGO DEPT.OF REVENUE-RED LIGHT,Other General Expense,$450 ,5/5/2015
CITY OF CHICAGO DEPT.OF REVENUE-RED LIGHT,Other General Expense,$735 ,5/12/2015
CITY OF CHICAGO DEPT.OF REVENUE-RED LIGHT,Other General Expense,$935 ,5/19/2015
CITY OF CHICAGO DEPT.OF REVENUE-RED LIGHT,Other General Expense,$100 ,5/21/2015
CITY OF CHICAGO DEPT.OF REVENUE-RED LIGHT,Other General Expense,$400 ,5/22/2015
CITY OF CHICAGO DEPT.OF REVENUE-RED LIGHT,Other General Expense,$635 ,6/3/2015
CITY OF CHICAGO DEPT.OF REVENUE-RED LIGHT,Other General Expense,$470 ,6/5/2015
CITY OF CHICAGO DEPT.OF REVENUE-RED LIGHT,Other General Expense,$200 ,6/11/2015
CITY OF CHICAGO DEPT.OF REVENUE-RED LIGHT,Other General Expense,$500 ,6/16/2015
CITY OF CHICAGO DEPT.OF REVENUE-RED LIGHT,Other General Expense,$705 ,6/24/2015
CITY OF CHICAGO DEPT.OF REVENUE-RED LIGHT,Other General Expense,$825 ,7/6/2015
CITY OF CHICAGO DEPT.OF REVENUE-RED LIGHT,Other General Expense,$435 ,7/10/2015
CITY OF CHICAGO DEPT.OF REVENUE-RED LIGHT,Other General Expense,$500 ,7/13/2015
CITY OF CHICAGO DEPT.OF REVENUE-RED LIGHT,Other General Expense,$200 ,7/22/2015
CITY OF CHICAGO DEPT.OF REVENUE-RED LIGHT,Other General Expense,$700 ,7/31/2015
CITY OF CHICAGO DEPT.OF REVENUE-RED LIGHT,Other General Expense,$700 ,8/13/2015
CITY OF CHICAGO DEPT.OF REVENUE-RED LIGHT,Other General Expense,"$1,460 ",8/26/2015
CITY OF CHICAGO DEPT.OF REVENUE-RED LIGHT,Other General Expense,$900 ,8/31/2015
CITY OF CHICAGO DEPT.OF REVENUE-RED LIGHT,Other General Expense,"$1,100 ",9/10/2015
CITY OF CHICAGO DEPT.OF REVENUE-RED LIGHT,Other General Expense,$400 ,9/14/2015
CITY OF CHICAGO DEPT.OF REVENUE-RED LIGHT,Other General Expense,$735 ,9/21/2015
CITY OF CHICAGO DEPT.OF REVENUE-RED LIGHT,Other General Expense,$370 ,10/1/2015
CITY OF CHICAGO DEPT.OF REVENUE-RED LIGHT,Other General Expense,"$1,545 ",10/15/2015
CITY OF CHICAGO DEPT.OF REVENUE-RED LIGHT,Other General Expense,"$1,605 ",10/28/2015
CITY OF CHICAGO DEPT.OF REVENUE-RED LIGHT,Other General Expense,$700 ,11/4/2015
CITY OF CHICAGO DEPT.OF REVENUE-RED LIGHT,Other General Expense,$535 ,11/12/2015
CITY OF CHICAGO DEPT.OF REVENUE-RED LIGHT,Other General Expense,"$2,470 ",12/29/2015
CITY OF CHICAGO POLICE DEPT,I&D Claims (Damage Reserve),$25 ,7/30/2015
CITY OF CHICAGO-DEPARTMENT OF TRANSPORTATION,Contract Construction,$104 ,1/2/2015
CITY OF CHICAGO-DEPARTMENT OF TRANSPORTATION,Contract Construction,$312 ,1/2/2015
CITY OF CHICAGO-DEPARTMENT OF TRANSPORTATION,Contract Construction,$416 ,1/2/2015
CITY OF CHICAGO-DEPARTMENT OF TRANSPORTATION,Contract Construction,$520 ,1/2/2015
CITY OF CHICAGO-DEPARTMENT OF TRANSPORTATION,Contract Construction,"$1,040 ",1/2/2015
CITY OF CHICAGO-DEPARTMENT OF TRANSPORTATION,Contract Construction,$624 ,1/2/2015
CITY OF CHICAGO-DEPARTMENT OF TRANSPORTATION,Contract Construction,$104 ,1/2/2015
CITY OF CHICAGO-DEPARTMENT OF TRANSPORTATION,Contract Construction,$104 ,1/2/2015
CITY OF CHICAGO-DEPARTMENT OF TRANSPORTATION,Contract Construction,$312 ,1/2/2015
CITY OF CHICAGO-DEPARTMENT OF TRANSPORTATION,Contract Construction,$416 ,1/2/2015
CITY OF CHICAGO-DEPARTMENT OF TRANSPORTATION,Contract Construction,$520 ,1/2/2015
CITY OF CHICAGO-DEPARTMENT OF TRANSPORTATION,Contract Construction,"$1,040 ",1/2/2015
CITY OF CHICAGO-DEPARTMENT OF TRANSPORTATION,Contract Construction,$624 ,1/2/2015
CITY OF CHICAGO-DEPARTMENT OF TRANSPORTATION,Contract Construction,$104 ,1/2/2015
CITY OF CHICAGO-DEPARTMENT OF TRANSPORTATION,Contract Construction,$520 ,1/2/2015
CITY OF CHICAGO-DEPARTMENT OF TRANSPORTATION,Contract Construction,"$1,040 ",1/2/2015
CITY OF CHICAGO-DEPARTMENT OF TRANSPORTATION,Contract Construction,$520 ,1/2/2015
CITY OF CHICAGO-DEPARTMENT OF TRANSPORTATION,Contract Construction,$520 ,1/2/2015
CITY OF CHICAGO-DEPARTMENT OF TRANSPORTATION,Contract Construction,$416 ,1/2/2015
CITY OF CHICAGO-DEPARTMENT OF TRANSPORTATION,Contract Construction,$624 ,1/2/2015
CITY OF CHICAGO-DEPARTMENT OF TRANSPORTATION,Contract Construction,"$1,248 ",1/2/2015
CITY OF CHICAGO-DEPARTMENT OF TRANSPORTATION,Contract Construction,"$1,040 ",1/2/2015
CITY OF CHICAGO-DEPARTMENT OF TRANSPORTATION,Contract Construction,$416 ,1/2/2015
CITY OF CHICAGO-DEPARTMENT OF TRANSPORTATION,Contract Construction,$624 ,1/2/2015
CITY OF CHICAGO-DEPARTMENT OF TRANSPORTATION,Contract Construction,$312 ,1/2/2015
CITY OF CHICAGO-DEPT OF WATER,"Facilities Operating Expenses (Rent,Utilities,etc)","$47,401.94 ",1/21/2015
CITY OF CHICAGO-DEPT OF WATER,"Facilities Operating Expenses (Rent,Utilities,etc)","$43,867.57 ",1/28/2015
CITY OF CHICAGO-DEPT OF WATER,"Facilities Operating Expenses (Rent,Utilities,etc)","$19,088.49 ",2/5/2015
CITY OF CHICAGO-DEPT OF WATER,"Facilities Operating Expenses (Rent,Utilities,etc)","$2,164.05 ",2/17/2015
CITY OF CHICAGO-DEPT OF WATER,"Facilities Operating Expenses (Rent,Utilities,etc)","$20,773.56 ",2/20/2015
CITY OF CHICAGO-DEPT OF WATER,"Facilities Operating Expenses (Rent,Utilities,etc)","$18,503.08 ",2/27/2015
CITY OF CHICAGO-DEPT OF WATER,"Facilities Operating Expenses (Rent,Utilities,etc)","$24,369.30 ",3/11/2015
CITY OF CHICAGO-DEPT OF WATER,"Facilities Operating Expenses (Rent,Utilities,etc)","$24,932.14 ",3/16/2015
CITY OF CHICAGO-DEPT OF WATER,"Facilities Operating Expenses (Rent,Utilities,etc)","$27,265.71 ",3/17/2015
CITY OF CHICAGO-DEPT OF WATER,"Facilities Operating Expenses (Rent,Utilities,etc)","$5,649.39 ",3/20/2015
CITY OF CHICAGO-DEPT OF WATER,"Facilities Operating Expenses (Rent,Utilities,etc)","$16,812.53 ",4/2/2015
CITY OF CHICAGO-DEPT OF WATER,"Facilities Operating Expenses (Rent,Utilities,etc)","$9,712.80 ",4/9/2015
CITY OF CHICAGO-DEPT OF WATER,"Facilities Operating Expenses (Rent,Utilities,etc)","$18,516.75 ",4/22/2015
CITY OF CHICAGO-DEPT OF WATER,"Facilities Operating Expenses (Rent,Utilities,etc)","$11,668.45 ",4/30/2015
CITY OF CHICAGO-DEPT OF WATER,"Facilities Operating Expenses (Rent,Utilities,etc)","$30,232.11 ",5/5/2015
CITY OF CHICAGO-DEPT OF WATER,"Facilities Operating Expenses (Rent,Utilities,etc)","$30,252.51 ",5/22/2015
CITY OF CHICAGO-DEPT OF WATER,"Facilities Operating Expenses (Rent,Utilities,etc)","$55,579.14 ",5/28/2015
CITY OF CHICAGO-DEPT OF WATER,"Facilities Operating Expenses (Rent,Utilities,etc)","$16,949.97 ",6/9/2015
CITY OF CHICAGO-DEPT OF WATER,"Facilities Operating Expenses (Rent,Utilities,etc)","$54,146.96 ",6/25/2015
CITY OF CHICAGO-DEPT OF WATER,"Facilities Operating Expenses (Rent,Utilities,etc)","$31,850.63 ",7/23/2015
CITY OF CHICAGO-DEPT OF WATER,"Facilities Operating Expenses (Rent,Utilities,etc)","$19,356.21 ",8/10/2015
CITY OF CHICAGO-DEPT OF WATER,"Facilities Operating Expenses (Rent,Utilities,etc)","$15,730.65 ",8/18/2015
CITY OF CHICAGO-DEPT OF WATER,"Facilities Operating Expenses (Rent,Utilities,etc)","$189,661.37 ",9/16/2015
CITY OF CHICAGO-DEPT OF WATER,"Facilities Operating Expenses (Rent,Utilities,etc)","$162,063.62 ",9/17/2015
CITY OF CHICAGO-DEPT OF WATER,"Facilities Operating Expenses (Rent,Utilities,etc)","$22,030.09 ",9/18/2015
CITY OF CHICAGO-DEPT OF WATER,"Facilities Operating Expenses (Rent,Utilities,etc)","$26,666.94 ",9/30/2015
CITY OF CHICAGO-DEPT OF WATER,"Facilities Operating Expenses (Rent,Utilities,etc)","$23,551.80 ",10/26/2015
CITY OF CHICAGO-DEPT OF WATER,"Facilities Operating Expenses (Rent,Utilities,etc)","$24,236.95 ",10/28/2015
CITY OF CHICAGO-DEPT OF WATER,"Facilities Operating Expenses (Rent,Utilities,etc)","$99,064.21 ",11/25/2015
CITY OF CHICAGO-DEPT OF WATER,"Facilities Operating Expenses (Rent,Utilities,etc)","$14,944.98 ",12/8/2015
CITY OF CHICAGO-DEPT OF WATER,"Facilities Operating Expenses (Rent,Utilities,etc)","$99,389.44 ",12/29/2015
CITY OF CHICAGO/DEPT OF FINANCE,Misc. Expenditures,"$356,420.12 ",1/21/2015
CITY OF CHICAGO/DEPT OF FINANCE,Other General Expense,$200 ,1/28/2015
CITY OF CHICAGO/DEPT OF FINANCE,Misc. Expenditures,"$765,185.29 ",2/13/2015
CITY OF CHICAGO/DEPT OF FINANCE,Misc. Expenditures,"$1,775,075.20 ",3/18/2015
CITY OF CHICAGO/DEPT OF FINANCE,Misc. Expenditures,"$444,631.51 ",6/25/2015
CITY OF CHICAGO/DEPT OF FINANCE,Misc. Expenditures,"$72,800 ",8/4/2015
CITY OF CHICAGO/DEPT OF FINANCE,Misc. Expenditures,"$2,224,924.80 ",8/14/2015
CITY OF CHICAGO/DEPT OF FINANCE,Engineering,"$24,498.88 ",12/23/2015
CITY OF EVANSTON,"Facilities Operating Expenses (Rent,Utilities,etc)","$4,213.23 ",2/4/2015
CITY OF EVANSTON,"Facilities Operating Expenses (Rent,Utilities,etc)","$2,011.15 ",3/30/2015
CITY OF EVANSTON,"Facilities Operating Expenses (Rent,Utilities,etc)","$1,497.90 ",6/2/2015
CITY OF EVANSTON,"Facilities Operating Expenses (Rent,Utilities,etc)",$570.12 ,7/31/2015
CITY OF EVANSTON,"Facilities Operating Expenses (Rent,Utilities,etc)",$551.85 ,10/2/2015
CITY OF EVANSTON,"Facilities Operating Expenses (Rent,Utilities,etc)",$490.65 ,12/2/2015
CK REPORTING,I&D Claims (Damage Reserve),$460.30 ,4/27/2015
CK REPORTING,I&D Claims (Damage Reserve),$35 ,6/22/2015
CK REPORTING,I&D Claims (Damage Reserve),$156.20 ,10/9/2015
"CLARK CONSTRUCTION GROUP - CHICAGO, LLC",Contract Construction,"$218,035 ",1/6/2015
"CLARK CONSTRUCTION GROUP - CHICAGO, LLC",Contract Construction,"$999,861 ",2/3/2015
"CLARK CONSTRUCTION GROUP - CHICAGO, LLC",Contract Construction,"$486,646 ",4/2/2015
"CLARK CONSTRUCTION GROUP - CHICAGO, LLC",Contract Construction,"$350,365 ",4/29/2015
"CLARK CONSTRUCTION GROUP - CHICAGO, LLC",Contract Construction,"$912,571 ",5/26/2015
"CLARK CONSTRUCTION GROUP - CHICAGO, LLC",Contract Construction,"$1,479,198 ",7/14/2015
"CLARK CONSTRUCTION GROUP - CHICAGO, LLC",Contract Construction,"$1,293,408 ",8/4/2015
"CLARK CONSTRUCTION GROUP - CHICAGO, LLC",Contract Construction,"$3,291,147 ",10/9/2015
"CLARK CONSTRUCTION GROUP - CHICAGO, LLC",Contract Construction,"$3,883,128 ",10/29/2015
"CLARK CONSTRUCTION GROUP - CHICAGO, LLC",Contract Construction,"$1,716,153 ",12/2/2015
"CLARK DEVON HARDWARE CO., INC.",Maintenance of Track & Roadway,$436.40 ,2/11/2015
"CLARK DEVON HARDWARE CO., INC.",Maintenance of Track & Roadway,$334 ,3/26/2015
"CLARK DEVON HARDWARE CO., INC.",Maintenance of Track & Roadway-Electrical,$990 ,6/4/2015
"CLARK DEVON HARDWARE CO., INC.",Maintenance of Track & Roadway-Electrical,"$1,710 ",6/18/2015
"CLARK DEVON HARDWARE CO., INC.",Equipment Purchases,"$12,413.70 ",6/19/2015
"CLARK DEVON HARDWARE CO., INC.",Equipment Purchases,"$7,639.20 ",11/20/2015
"CLARK DEVON HARDWARE CO., INC.",Equipment Purchases,"$8,275.80 ",12/23/2015
CLASSADRIVERS,Recruiting / Hiring,$550 ,3/2/2015
CLC LUBRICANTS CO.,Steel Fabrication,$815.10 ,4/7/2015
CLEAN! CLEAN! DRY CLEANERS,Management,$192 ,11/20/2015
CLENNON SNOW,I&D Claims (Damage Reserve),$75 ,3/2/2015
CLERK OF THE APPELLATE COURT,Administrative Support,$15 ,1/2/2015
CLERK OF THE APPELLATE COURT,Administrative Support,$15 ,1/20/2015
CLERK OF THE APPELLATE COURT,Administrative Support,$30 ,2/17/2015
CLERK OF THE APPELLATE COURT,Administrative Support,$30 ,4/6/2015
CLERK OF THE APPELLATE COURT,Administrative Support,$30 ,6/22/2015
CLERK OF THE APPELLATE COURT,Administrative Support,$30 ,7/6/2015
CLERK OF THE APPELLATE COURT,Administrative Support,$50 ,7/27/2015
CLERK OF THE APPELLATE COURT,Administrative Support,$50 ,9/2/2015
CLERK OF THE APPELLATE COURT,Administrative Support,$30 ,9/2/2015
CLERK OF THE APPELLATE COURT,Administrative Support,$50 ,10/5/2015
CLERK OF THE APPELLATE COURT,Administrative Support,$30 ,12/2/2015
CLERK OF THE APPELLATE COURT,Administrative Support,$30 ,12/17/2015
CLERK OF THE CIRCUIT COURT  1,I&D Claims (Damage Reserve),$206.98 ,1/20/2015
CLERK OF THE CIRCUIT COURT  1,I&D Claims (Damage Reserve),"$2,730 ",1/20/2015
CLERK OF THE CIRCUIT COURT  1,I&D Claims (Damage Reserve),"$8,918.53 ",1/20/2015
CLERK OF THE CIRCUIT COURT  1,I&D Claims (Damage Reserve),"$3,626.56 ",1/20/2015
CLERK OF THE CIRCUIT COURT  1,I&D Claims (Damage Reserve),$349.51 ,4/1/2015
CLERK OF THE CIRCUIT COURT  1,I&D Claims (Damage Reserve),"$4,991.03 ",4/1/2015
CLERK OF THE CIRCUIT COURT  1,I&D Claims (Damage Reserve),"$6,793.50 ",4/1/2015
CLERK OF THE CIRCUIT COURT  1,I&D Claims (Damage Reserve),"$4,917.50 ",4/1/2015
CLERK OF THE CIRCUIT COURT  1,I&D Claims (Damage Reserve),"$5,563 ",4/1/2015
CLERK OF THE CIRCUIT COURT  1,I&D Claims (Damage Reserve),$292 ,7/2/2015
CLERK OF THE CIRCUIT COURT  1,I&D Claims (Damage Reserve),"$2,333 ",7/2/2015
CLERK OF THE CIRCUIT COURT  1,I&D Claims (Damage Reserve),"$4,868.25 ",7/2/2015
CLERK OF THE CIRCUIT COURT  1,I&D Claims (Damage Reserve),"$3,874 ",7/2/2015
CLERK OF THE CIRCUIT COURT  1,I&D Claims (Damage Reserve),"$5,099 ",7/2/2015
CLERK OF THE CIRCUIT COURT  1,I&D Claims (Damage Reserve),$100 ,9/1/2015
CLERK OF THE CIRCUIT COURT  1,I&D Claims (Damage Reserve),$64 ,9/1/2015
CLERK OF THE CIRCUIT COURT  1,I&D Claims (Damage Reserve),"$4,465.50 ",9/1/2015
CLERK OF THE CIRCUIT COURT  1,I&D Claims (Damage Reserve),"$7,554.50 ",9/1/2015
CLERK OF THE CIRCUIT COURT  1,I&D Claims (Damage Reserve),"$5,920.50 ",9/1/2015
CLERK OF THE CIRCUIT COURT  1,I&D Claims (Damage Reserve),"$7,860.25 ",9/1/2015
CLERK OF THE CIRCUIT COURT  1,I&D Claims (Damage Reserve),"$7,096.50 ",9/1/2015
CLERK OF THE CIRCUIT COURT  1,I&D Claims (Damage Reserve),"$5,391 ",9/1/2015
CLERK OF THE CIRCUIT COURT  1,I&D Claims (Damage Reserve),"$1,528 ",9/4/2015
CLERK OF THE CIRCUIT COURT  1,I&D Claims (Damage Reserve),$16 ,9/4/2015
CLERK OF THE CIRCUIT COURT  1,I&D Claims (Damage Reserve),"$6,690.10 ",9/4/2015
"CLEVER DEVICES, LTD",Consulting Services,"$76,190 ",1/12/2015
"CLEVER DEVICES, LTD",Equipment Purchases,"$553,257.27 ",1/12/2015
"CLEVER DEVICES, LTD",Equipment Purchases,"$421,820.46 ",3/2/2015
"CLEVER DEVICES, LTD",Equipment Purchases,"$385,140.42 ",3/26/2015
"CLEVER DEVICES, LTD",Equipment Purchases,"$498,237.21 ",4/29/2015
"CLEVER DEVICES, LTD",Equipment Purchases,"$785,564.19 ",6/3/2015
"CLEVER DEVICES, LTD",Equipment Purchases,"$556,313.94 ",6/30/2015
"CLEVER DEVICES, LTD",Equipment Purchases,"$641,900.70 ",8/11/2015
"CLEVER DEVICES, LTD",Equipment Purchases,"$133,077.60 ",8/26/2015
"CLEVER DEVICES, LTD",Administrative Support,$498 ,10/1/2015
"CLEVER DEVICES, LTD",Equipment Purchases,"$21,396.69 ",10/9/2015
"CLEVER DEVICES, LTD",Equipment Purchases,"$9,170.01 ",10/19/2015
CMA/Flodyne/Hydradyne,Manufacture Parts for Stock,$515.81 ,6/16/2015
"COLLINS ENGINEERS, INC",Engineering,"$1,900 ",8/6/2015
"COMCAST OF CHICAGO, IL",Maintain/Repair Communications  Equip,$40.70 ,1/2/2015
"COMCAST OF CHICAGO, IL",Maintain/Repair Communications  Equip,$167.79 ,1/2/2015
"COMCAST OF CHICAGO, IL",Maintain/Repair Communications  Equip,$41.76 ,2/2/2015
"COMCAST OF CHICAGO, IL",Maintain/Repair Communications  Equip,$177.69 ,2/2/2015
"COMCAST OF CHICAGO, IL",Maintain/Repair Communications  Equip,$51.26 ,2/27/2015
"COMCAST OF CHICAGO, IL",Maintain/Repair Communications  Equip,$187.19 ,2/27/2015
"COMCAST OF CHICAGO, IL",Maintain/Repair Communications  Equip,$177.69 ,3/27/2015
"COMCAST OF CHICAGO, IL",Maintain/Repair Communications  Equip,$41.76 ,3/30/2015
"COMCAST OF CHICAGO, IL",Maintain/Repair Communications  Equip,$30.09 ,4/30/2015
"COMCAST OF CHICAGO, IL",Maintain/Repair Communications  Equip,$137.52 ,4/30/2015
"COMCAST OF CHICAGO, IL",Maintain/Repair Communications  Equip,$41.76 ,6/1/2015
"COMCAST OF CHICAGO, IL",Maintain/Repair Communications  Equip,$177.69 ,6/1/2015
"COMCAST OF CHICAGO, IL",Maintain/Repair Communications  Equip,$41.76 ,6/29/2015
"COMCAST OF CHICAGO, IL",Maintain/Repair Communications  Equip,$177.69 ,6/29/2015
"COMCAST OF CHICAGO, IL",Maintain/Repair Communications  Equip,$41.76 ,7/29/2015
"COMCAST OF CHICAGO, IL",Maintain/Repair Communications  Equip,$177.70 ,7/29/2015
"COMCAST OF CHICAGO, IL",Maintain/Repair Communications  Equip,$41.76 ,8/28/2015
"COMCAST OF CHICAGO, IL",Maintain/Repair Communications  Equip,$177 ,8/28/2015
"COMCAST OF CHICAGO, IL",Maintain/Repair Communications  Equip,$41.76 ,10/7/2015
"COMCAST OF CHICAGO, IL",Maintain/Repair Communications  Equip,$163.64 ,10/7/2015
"COMCAST OF CHICAGO, IL",Maintain/Repair Communications  Equip,$41.76 ,11/2/2015
"COMCAST OF CHICAGO, IL",Maintain/Repair Communications  Equip,$177.69 ,11/2/2015
"COMCAST OF CHICAGO, IL",Maintain/Repair Communications  Equip,$41.76 ,12/16/2015
"COMCAST OF CHICAGO, IL",Maintain/Repair Communications  Equip,$177.69 ,12/16/2015
COMED                       1,Maintenance of Buildings,"$1,806.54 ",9/30/2015
COMFORT INN & SUITES,Travel & Seminar,$964.59 ,1/30/2015
COMFORT INN & SUITES,Travel & Seminar,$964.59 ,1/30/2015
COMFORT INN & SUITES,Travel & Seminar,$964.59 ,1/30/2015
COMFORT INN & SUITES,Travel & Seminar,$964.59 ,3/6/2015
COMFORT INN & SUITES,Travel & Seminar,$964.59 ,3/6/2015
COMFORT INN & SUITES,Travel & Seminar,$964.59 ,3/6/2015
COMFORT INN & SUITES,Travel & Seminar,$964.59 ,3/6/2015
COMFORT INN & SUITES,Travel & Seminar,$964.59 ,3/6/2015
COMFORT INN & SUITES,Travel & Seminar,$964.59 ,3/6/2015
COMFORT INN & SUITES,Travel & Seminar,$175.38 ,3/13/2015
COMFORT INN & SUITES,Travel & Seminar,$175.38 ,3/13/2015
COMFORT INN & SUITES,Travel & Seminar,$789.21 ,4/1/2015
COMFORT INN & SUITES,Travel & Seminar,$964.59 ,4/1/2015
COMFORT INN & SUITES,Travel & Seminar,$964.59 ,4/15/2015
COMFORT INN & SUITES,Travel & Seminar,$964.59 ,4/15/2015
COMFORT INN & SUITES,Travel & Seminar,$964.59 ,4/15/2015
COMFORT INN & SUITES,Travel & Seminar,$964.59 ,4/15/2015
COMFORT INN & SUITES,Travel & Seminar,$964.59 ,4/15/2015
COMFORT INN & SUITES,Travel & Seminar,$964.59 ,5/27/2015
COMFORT INN & SUITES,Travel & Seminar,$964.59 ,5/27/2015
COMFORT INN & SUITES,Travel & Seminar,$964.59 ,5/27/2015
COMFORT INN & SUITES,Travel & Seminar,$964.59 ,5/27/2015
COMFORT INN & SUITES,Travel & Seminar,$964.59 ,5/27/2015
COMFORT INN & SUITES,Travel & Seminar,$964.59 ,5/27/2015
COMFORT INN & SUITES,Travel & Seminar,$964.59 ,9/9/2015
COMFORT INN & SUITES,Travel & Seminar,$964.59 ,9/9/2015
COMFORT INN & SUITES,Travel & Seminar,$964.59 ,9/9/2015
COMFORT INN & SUITES,Travel & Seminar,$964.59 ,9/9/2015
COMFORT INN & SUITES,Travel & Seminar,$263.07 ,11/13/2015
COMFORT INN & SUITES,Travel & Seminar,$263.07 ,11/13/2015
COMMONWEALTH EDISON.,Misc. Expenditures,$130.50 ,12/23/2015
COMMUNICATIONS SUPPLY CORP.,Maintain/Repair Communications  Equip,"$3,628.05 ",1/5/2015
COMMUNICATIONS SUPPLY CORP.,Maintain/Repair Communications  Equip,"$1,798 ",1/16/2015
COMMUNICATIONS SUPPLY CORP.,Maintain/Repair Communications  Equip,"$1,584.16 ",1/20/2015
COMMUNICATIONS SUPPLY CORP.,Maintain/Repair Communications  Equip,$807.20 ,1/27/2015
COMMUNICATIONS SUPPLY CORP.,Maintain/Repair Communications  Equip,$513.90 ,9/11/2015
COMMUNICATIONS SUPPLY CORP.,Maintain/Repair Communications  Equip,"$2,229.44 ",10/13/2015
"COMPLIANCE SOFTWARE, INC.",Applications Support,"$3,600 ",2/20/2015
"COMPLIANCE SOFTWARE, INC.",Applications Support,"$3,600 ",12/16/2015
"COMPUTER AID, INC.",Consulting Services,"$117,720.22 ",5/22/2015
"COMPUTER AID, INC.",Consulting Services,"$153,448.28 ",6/29/2015
"COMPUTER AID, INC.",Consulting Services,"$145,820.78 ",7/20/2015
"COMPUTER AID, INC.",Consulting Services,"$141,419.71 ",9/9/2015
"COMPUTER AID, INC.",Consulting Services,"$269,605.23 ",10/21/2015
"COMPUTER AID, INC.",Consulting Services,"$246,547.60 ",12/23/2015
"COMPUTER PRODUCTS & SUPPLIES, INC.",Equipment Purchases,$769.14 ,3/26/2015
COMTO NATIONAL HEADQUARTERS,Administrative Support,"$5,000 ",2/3/2015
CONCERNED PEST CONTROL,Maintenance of Equipment,$632.50 ,1/26/2015
CONCERNED PEST CONTROL,Maintenance of Equipment,$898.70 ,1/28/2015
CONCERNED PEST CONTROL,Maintenance of Equipment,$159.50 ,2/12/2015
CONCERNED PEST CONTROL,Maintenance of Equipment,$165 ,3/11/2015
CONCERNED PEST CONTROL,Maintenance of Equipment,$280.50 ,4/8/2015
CONCERNED PEST CONTROL,Maintenance of Equipment,$70 ,7/7/2015
CONCERNED PEST CONTROL,Maintenance of Equipment,$70 ,7/10/2015
CONCERNED PEST CONTROL,Maintenance of Equipment,$713.90 ,7/22/2015
CONCERNED PEST CONTROL,Maintenance of Equipment,$55 ,8/3/2015
CONCERNED PEST CONTROL,Maintenance of Equipment,$376.20 ,8/26/2015
CONCERNED PEST CONTROL,Maintenance of Equipment,$110 ,9/11/2015
CONCERNED PEST CONTROL,Maintenance of Equipment,$119.17 ,9/22/2015
CONCERNED PEST CONTROL,Maintenance of Equipment,$82.13 ,9/30/2015
CONCERNED PEST CONTROL,Maintenance of Equipment,$64.17 ,10/1/2015
CONCERNED PEST CONTROL,Maintenance of Equipment,$64.17 ,10/5/2015
CONCERNED PEST CONTROL,Maintenance of Equipment,$210.83 ,11/24/2015
CONCERNED PEST CONTROL,Maintenance of Equipment,$330 ,12/1/2015
CONCERNED PEST CONTROL,Maintenance of Equipment,$758.58 ,12/17/2015
CONCERNED PEST CONTROL,Maintenance of Equipment,$531.60 ,12/30/2015
CONCERNED PEST CONTROL,General Shop/Gar/Term Repairs & Svcs,$201.30 ,12/31/2015
CONNELL REPORTING,I&D Claims (Damage Reserve),$25 ,9/17/2015
CONSTRUCTION SPECIFICATIONS INSTITUTE,Professional / Technical,$150 ,5/6/2015
CONSTRUCTION SPECIFICATIONS INSTITUTE,Professional / Technical,$395 ,5/26/2015
CONTINENTAL LANGUAGES LLC,I&D Claims (Damage Reserve),$210 ,4/6/2015
CONTINENTAL LANGUAGES LLC,I&D Claims (Damage Reserve),$345 ,4/27/2015
CONTINENTAL LANGUAGES LLC,I&D Claims (Damage Reserve),$450 ,6/22/2015
CONTINENTAL LANGUAGES LLC,I&D Claims (Damage Reserve),$240 ,7/30/2015
CONTINENTAL LANGUAGES LLC,I&D Claims (Damage Reserve),$210 ,8/21/2015
CONTINENTAL LANGUAGES LLC,I&D Claims (Damage Reserve),$825 ,10/9/2015
COOK COUNTY BAR ASSOCIATION,Administrative Support,$300 ,3/25/2015
COOK COUNTY JURY VERDICT REPORTER,Administrative Support,"$1,035 ",10/22/2015
COOK COUNTY RECORDER OF DEEDS,Property Management,$68 ,5/1/2015
COOK COUNTY RECORDER OF DEEDS,Property Management,$102 ,7/27/2015
COOK COUNTY SHERIFF DEPARTMENT,I&D Claims (Damage Reserve),$40 ,1/2/2015
COOK COUNTY SHERIFF DEPARTMENT,I&D Claims (Damage Reserve),$40 ,1/13/2015
COOK COUNTY SHERIFF DEPARTMENT,I&D Claims (Damage Reserve),$40 ,1/13/2015
COOK COUNTY SHERIFF DEPARTMENT,I&D Claims (Damage Reserve),$60.50 ,1/28/2015
COOK COUNTY SHERIFF DEPARTMENT,I&D Claims (Damage Reserve),$40 ,1/30/2015
COOK COUNTY SHERIFF DEPARTMENT,Maintenance of Buildings,"$28,719.15 ",2/3/2015
COOK COUNTY SHERIFF DEPARTMENT,I&D Claims (Damage Reserve),$40 ,2/4/2015
COOK COUNTY SHERIFF DEPARTMENT,Maintenance of Buildings,"$28,329.30 ",2/24/2015
COOK COUNTY SHERIFF DEPARTMENT,I&D Claims (Damage Reserve),$40 ,3/2/2015
COOK COUNTY SHERIFF DEPARTMENT,Maintenance of Buildings,"$27,947.89 ",3/16/2015
COOK COUNTY SHERIFF DEPARTMENT,I&D Claims (Damage Reserve),$40 ,3/19/2015
COOK COUNTY SHERIFF DEPARTMENT,I&D Claims (Damage Reserve),$40 ,3/24/2015
COOK COUNTY SHERIFF DEPARTMENT,I&D Claims (Damage Reserve),$80 ,3/24/2015
COOK COUNTY SHERIFF DEPARTMENT,I&D Claims (Damage Reserve),$40 ,4/6/2015
COOK COUNTY SHERIFF DEPARTMENT,I&D Claims (Damage Reserve),$40 ,4/6/2015
COOK COUNTY SHERIFF DEPARTMENT,I&D Claims (Damage Reserve),$40 ,4/7/2015
COOK COUNTY SHERIFF DEPARTMENT,I&D Claims (Damage Reserve),$40 ,4/7/2015
COOK COUNTY SHERIFF DEPARTMENT,I&D Claims (Damage Reserve),$40 ,4/14/2015
COOK COUNTY SHERIFF DEPARTMENT,I&D Claims (Damage Reserve),$40 ,4/14/2015
COOK COUNTY SHERIFF DEPARTMENT,I&D Claims (Damage Reserve),$40 ,5/12/2015
COOK COUNTY SHERIFF DEPARTMENT,I&D Claims (Damage Reserve),$40 ,5/15/2015
COOK COUNTY SHERIFF DEPARTMENT,I&D Claims (Damage Reserve),$40 ,6/12/2015
COOK COUNTY SHERIFF DEPARTMENT,I&D Claims (Damage Reserve),$40 ,6/12/2015
COOK COUNTY SHERIFF DEPARTMENT,I&D Claims (Damage Reserve),$40 ,7/1/2015
COOK COUNTY SHERIFF DEPARTMENT,I&D Claims (Damage Reserve),$40 ,7/22/2015
COOK COUNTY SHERIFF DEPARTMENT,I&D Claims (Damage Reserve),$80 ,7/27/2015
COOK COUNTY SHERIFF DEPARTMENT,Maintenance of Buildings,"$21,329.31 ",7/29/2015
COOK COUNTY SHERIFF DEPARTMENT,Maintenance of Buildings,"$30,233.78 ",7/29/2015
COOK COUNTY SHERIFF DEPARTMENT,Maintenance of Buildings,"$30,338.47 ",7/29/2015
COOK COUNTY SHERIFF DEPARTMENT,Maintenance of Buildings,"$30,901.76 ",7/29/2015
COOK COUNTY SHERIFF DEPARTMENT,I&D Claims (Damage Reserve),$40 ,8/10/2015
COOK COUNTY SHERIFF DEPARTMENT,Maintenance of Buildings,"$29,794.86 ",8/12/2015
COOK COUNTY SHERIFF DEPARTMENT,Maintenance of Buildings,"$30,565.66 ",8/12/2015
COOK COUNTY SHERIFF DEPARTMENT,I&D Claims (Damage Reserve),$40 ,8/17/2015
COOK COUNTY SHERIFF DEPARTMENT,I&D Claims (Damage Reserve),$40 ,8/17/2015
COOK COUNTY SHERIFF DEPARTMENT,I&D Claims (Damage Reserve),$40 ,9/2/2015
COOK COUNTY SHERIFF DEPARTMENT,Maintenance of Buildings,"$31,677.73 ",9/25/2015
COOK COUNTY SHERIFF DEPARTMENT,I&D Claims (Damage Reserve),$40 ,10/13/2015
COOK COUNTY SHERIFF DEPARTMENT,I&D Claims (Damage Reserve),$40 ,10/13/2015
COOK COUNTY SHERIFF DEPARTMENT,I&D Claims (Damage Reserve),$40 ,10/13/2015
COOK COUNTY SHERIFF DEPARTMENT,Maintenance of Buildings,"$29,908.80 ",11/13/2015
COOK COUNTY SHERIFF DEPARTMENT,I&D Claims (Damage Reserve),$40 ,11/23/2015
COOK COUNTY SHERIFF DEPARTMENT,I&D Claims (Damage Reserve),$40 ,11/23/2015
COOK COUNTY SHERIFF DEPARTMENT,I&D Claims (Damage Reserve),$40 ,11/23/2015
COOK COUNTY SHERIFF DEPARTMENT,I&D Claims (Damage Reserve),$40 ,11/27/2015
COOK COUNTY SHERIFF DEPARTMENT,I&D Claims (Damage Reserve),$40 ,12/2/2015
COOK COUNTY SHERIFF DEPARTMENT,I&D Claims (Damage Reserve),$40 ,12/2/2015
COOK COUNTY SHERIFF DEPARTMENT,I&D Claims (Damage Reserve),$40 ,12/3/2015
COOK COUNTY SHERIFF DEPARTMENT,I&D Claims (Damage Reserve),$40 ,12/3/2015
COOK COUNTY SHERIFF DEPARTMENT,Maintenance of Buildings,"$29,401.08 ",12/24/2015
COOK COUNTY SHERIFF DEPARTMENT,I&D Claims (Damage Reserve),$40 ,12/31/2015
COOK COUNTY SHERIFF'S POLICE,I&D Claims (Damage Reserve),$5 ,3/23/2015
COOK COUNTY TREASURER,Real Estate,"$36,886.83 ",3/25/2015
COOK COUNTY TREASURER,Real Estate,"$7,633.84 ",3/25/2015
COOK COUNTY TREASURER,Real Estate,"$10,830.32 ",7/22/2015
COOK COUNTY TREASURER,Real Estate,"$5,898.57 ",7/22/2015
CORNELL CANTY,I&D Claims (Damage Reserve),$75 ,6/26/2015
CORNELL CANTY,I&D Claims (Damage Reserve),$75 ,6/26/2015
CORNELL CANTY,I&D Claims (Damage Reserve),$75 ,10/26/2015
CORPORATE CLEANING SERVICES,Facilities Cleaning,"$8,842 ",1/7/2015
CORPORATE CLEANING SERVICES,Facilities Cleaning,"$1,383 ",3/11/2015
CORPORATE CLEANING SERVICES,Facilities Cleaning,$375 ,4/8/2015
CORPORATE CLEANING SERVICES,Facilities Cleaning,"$7,596 ",4/13/2015
CORPORATE CLEANING SERVICES,Facilities Cleaning,"$27,420 ",4/27/2015
CORPORATE CLEANING SERVICES,Facilities Cleaning,"$4,652 ",5/4/2015
CORPORATE CLEANING SERVICES,Facilities Cleaning,"$10,368 ",5/14/2015
CORPORATE CLEANING SERVICES,Facilities Cleaning,"$6,848 ",5/28/2015
CORPORATE CLEANING SERVICES,Facilities Cleaning,"$13,977 ",6/26/2015
CORPORATE CLEANING SERVICES,Facilities Cleaning,"$9,000 ",7/1/2015
CORPORATE CLEANING SERVICES,Facilities Cleaning,"$9,825 ",7/28/2015
CORPORATE CLEANING SERVICES,Facilities Cleaning,"$2,100 ",8/27/2015
CORPORATE CLEANING SERVICES,Facilities Cleaning,"$16,049 ",9/28/2015
CORPORATE CLEANING SERVICES,Facilities Cleaning,"$3,480 ",11/19/2015
CORPORATE CLEANING SERVICES,Facilities Cleaning,"$4,680 ",11/25/2015
CORPORATE CLEANING SERVICES,Facilities Cleaning,"$11,501 ",12/28/2015
COURTYARD ARLINGTON CRYSTAL CITY/REGAN NAT'L AIRPRT,O'Hare train derailment 24-MAR-14,"$2,983.20 ",4/3/2015
COURTYARD MARRIOTT,O'Hare train derailment 24-MAR-14,"$2,400.12 ",1/14/2015
COURTYARD NEW CARROLLTON LANDOVER,Administrative Support,$427.14 ,10/2/2015
"COY PUGH AND ASSOCIATES, LLC",Administrative Support,"$6,000 ",2/4/2015
"COY PUGH AND ASSOCIATES, LLC",Administrative Support,"$6,000 ",3/5/2015
"COY PUGH AND ASSOCIATES, LLC",Administrative Support,"$6,000 ",3/31/2015
"COY PUGH AND ASSOCIATES, LLC",Administrative Support,"$6,000 ",4/2/2015
"COY PUGH AND ASSOCIATES, LLC",Administrative Support,"$6,000 ",5/28/2015
"COY PUGH AND ASSOCIATES, LLC",Administrative Support,"$6,000 ",7/1/2015
"COY PUGH AND ASSOCIATES, LLC",Administrative Support,"$6,000 ",8/3/2015
"COY PUGH AND ASSOCIATES, LLC",Administrative Support,"$6,000 ",8/27/2015
"COY PUGH AND ASSOCIATES, LLC",Administrative Support,"$6,000 ",10/2/2015
"COY PUGH AND ASSOCIATES, LLC",Administrative Support,"$6,000 ",11/2/2015
"COY PUGH AND ASSOCIATES, LLC",Administrative Support,"$6,000 ",12/22/2015
COZEN O'CONNOR,Administrative Support,"$20,888 ",10/29/2015
COZEN O'CONNOR,Administrative Support,"$43,490.25 ",12/14/2015
CROWE HORWATH LLP,Accounting,"$40,000 ",1/28/2015
CROWE HORWATH LLP,Accounting,"$10,445 ",1/29/2015
CROWE HORWATH LLP,Accounting,"$40,000 ",3/17/2015
CROWE HORWATH LLP,Professional / Technical,"$2,175 ",3/19/2015
CROWE HORWATH LLP,Professional / Technical,"$42,460 ",3/24/2015
CROWE HORWATH LLP,Accounting,"$60,000 ",4/7/2015
CROWE HORWATH LLP,Accounting,"$50,000 ",4/23/2015
CROWE HORWATH LLP,Professional / Technical,"$33,483.75 ",5/1/2015
CROWE HORWATH LLP,Professional / Technical,"$33,513.75 ",5/14/2015
CROWE HORWATH LLP,Accounting,"$80,000 ",5/18/2015
CROWE HORWATH LLP,Accounting,"$40,000 ",6/8/2015
CROWE HORWATH LLP,Professional / Technical,"$40,436.25 ",7/1/2015
CROWE HORWATH LLP,Accounting,"$4,000 ",7/16/2015
CROWE HORWATH LLP,Professional / Technical,"$20,157.50 ",7/23/2015
CROWE HORWATH LLP,Accounting,"$15,205 ",8/4/2015
CROWE HORWATH LLP,Professional / Technical,"$18,285 ",8/31/2015
CROWE HORWATH LLP,Professional / Technical,"$22,435 ",9/22/2015
CROWE HORWATH LLP,Accounting,"$23,200 ",10/1/2015
CROWE HORWATH LLP,Accounting,"$12,000 ",12/16/2015
CROWN INDUSTRIAL OPERATORS,Maintainance of Signal & Control Equipment,"$5,821.84 ",12/21/2015
CSC,Consulting Services,"$3,883 ",1/7/2015
CSC,Consulting Services,"$58,522.51 ",2/20/2015
CSC,Consulting Services,"$3,256 ",4/1/2015
CSC,Consulting Services,"$1,490.88 ",5/27/2015
CSC,Applications Support,"$102,510 ",6/8/2015
CSC,Consulting Services,"$113,154 ",6/17/2015
CSC,Consulting Services,"$2,150.29 ",7/22/2015
CSC,Consulting Services,"$1,320 ",9/11/2015
CSC,Consulting Services,$121 ,10/30/2015
CSC,Consulting Services,"$84,745.20 ",12/23/2015
"CSC, INC.",Management,"$9,605 ",2/19/2015
CSI CONSTRUCT c/o COMPUSYSTEMS,Engineering,$475 ,9/14/2015
"CSX TRANSPORTATION, INC.","Facilities Operating Expenses (Rent,Utilities,etc)",$200 ,5/28/2015
"CUBIC TRANSPORTATION SYSTEMS, INC",Applications Support,"$29,656 ",1/2/2015
"CUBIC TRANSPORTATION SYSTEMS, INC",Applications Support,"$29,651 ",2/3/2015
"CUBIC TRANSPORTATION SYSTEMS, INC",Equipment Purchases,"$153,467.09 ",4/22/2015
"CUBIC TRANSPORTATION SYSTEMS, INC",Open Fare,"$15,241.41 ",4/22/2015
"CUMMINS NPOWER, LLC.",Vehicle Rehab,"$173,773.23 ",1/13/2015
"CUMMINS NPOWER, LLC.",Vehicle Rehab,"$1,890,709.30 ",1/20/2015
"CUMMINS NPOWER, LLC.",Vehicle Rehab,"$1,543,162.84 ",1/27/2015
"CUMMINS NPOWER, LLC.",Vehicle Rehab,"$848,069.92 ",2/3/2015
"CUMMINS NPOWER, LLC.",Vehicle Rehab,"$1,216,412.61 ",2/10/2015
"CUMMINS NPOWER, LLC.",Vehicle Rehab,"$695,092.92 ",2/17/2015
"CUMMINS NPOWER, LLC.",Vehicle Rehab,"$1,737,732.30 ",2/23/2015
"CUMMINS NPOWER, LLC.",Vehicle Rehab,"$1,216,412.61 ",3/2/2015
"CUMMINS NPOWER, LLC.",Vehicle Rehab,"$695,092.92 ",3/9/2015
"CUMMINS NPOWER, LLC.",Vehicle Rehab,"$1,716,936.07 ",3/17/2015
"CUMMINS NPOWER, LLC.",Vehicle Rehab,"$347,546.46 ",3/24/2015
"CUMMINS NPOWER, LLC.",Vehicle Rehab,"$868,866.15 ",3/31/2015
"CUMMINS NPOWER, LLC.",Vehicle Rehab,"$347,546.46 ",4/7/2015
"CUMMINS NPOWER, LLC.",Vehicle Rehab,"$173,773.23 ",4/14/2015
"CUMMINS NPOWER, LLC.",Vehicle Rehab,"$1,390,185.84 ",4/29/2015
"CUMMINS NPOWER, LLC.",Vehicle Rehab,"$868,866.15 ",5/5/2015
"CUMMINS NPOWER, LLC.",Vehicle Rehab,"$695,092.92 ",5/12/2015
"CUMMINS NPOWER, LLC.",Vehicle Rehab,"$521,319.69 ",5/21/2015
"CUMMINS NPOWER, LLC.",Vehicle Rehab,"$868,866.15 ",5/22/2015
"CUMMINS NPOWER, LLC.",Vehicle Rehab,"$747,112.92 ",6/3/2015
"CUMMINS NPOWER, LLC.",Vehicle Rehab,"$347,546.46 ",6/8/2015
"CUMMINS NPOWER, LLC.",Vehicle Rehab,"$811,888.86 ",6/15/2015
"CUMMINS NPOWER, LLC.",Vehicle Rehab,"$347,546.46 ",6/22/2015
"CUMMINS NPOWER, LLC.",Vehicle Rehab,"$521,319.69 ",6/30/2015
"CUMMINS NPOWER, LLC.",Vehicle Rehab,"$173,773.23 ",7/6/2015
"CUMMINS NPOWER, LLC.",Vehicle Rehab,"$464,591.46 ",7/20/2015
"CUMMINS NPOWER, LLC.",Vehicle Rehab,"$152,977 ",7/29/2015
"CUMMINS NPOWER, LLC.",Vehicle Rehab,"$126,582.73 ",8/5/2015
"CUSTOM ELECTRICAL SYSTEMS, INC.",Engineering,$283.59 ,2/19/2015
CVS PHARMACY,I&D Claims (Damage Reserve),$50 ,7/27/2015
CVS PHARMACY,I&D Claims (Damage Reserve),$50 ,10/26/2015
"CWC TRANSIT GROUP, AJV",Consulting Services,"$505,729.72 ",1/8/2015
"CWC TRANSIT GROUP, AJV",Consulting Services,"$60,244.11 ",2/17/2015
"CWC TRANSIT GROUP, AJV",Consulting Services,"$88,870.32 ",4/21/2015
"CWC TRANSIT GROUP, AJV",Consulting Services,"$512,556.58 ",5/5/2015
"CWC TRANSIT GROUP, AJV",Consulting Services,"$224,687.07 ",5/7/2015
"CWC TRANSIT GROUP, AJV",O'Hare train derailment 24-MAR-14,"$8,764.45 ",5/7/2015
"CWC TRANSIT GROUP, AJV",Consulting Services,"$59,472.54 ",5/12/2015
"CWC TRANSIT GROUP, AJV",Consulting Services,"$121,065.99 ",6/8/2015
"CWC TRANSIT GROUP, AJV",Consulting Services,"$75,779.97 ",6/10/2015
"CWC TRANSIT GROUP, AJV",Consulting Services,"$164,982.64 ",6/15/2015
"CWC TRANSIT GROUP, AJV",Consulting Services,"$182,335.71 ",6/17/2015
"CWC TRANSIT GROUP, AJV",Consulting Services,"$10,209.62 ",6/22/2015
"CWC TRANSIT GROUP, AJV",Consulting Services,"$32,614.93 ",6/29/2015
"CWC TRANSIT GROUP, AJV",Consulting Services,"$100,966.39 ",7/1/2015
"CWC TRANSIT GROUP, AJV",Consulting Services,"$89,961.90 ",8/19/2015
"CWC TRANSIT GROUP, AJV",Consulting Services,"$29,342.68 ",8/26/2015
"CWC TRANSIT GROUP, AJV",Consulting Services,"$207,979.54 ",9/22/2015
"CWC TRANSIT GROUP, AJV",Consulting Services,"$13,131.93 ",9/23/2015
"CWC TRANSIT GROUP, AJV",Consulting Services,"$24,564.30 ",10/1/2015
"CWC TRANSIT GROUP, AJV",Consulting Services,"$22,648.91 ",10/5/2015
"CWC TRANSIT GROUP, AJV",Consulting Services,"$24,297.68 ",10/7/2015
"CWC TRANSIT GROUP, AJV",O'Hare train derailment 24-MAR-14,"$2,244.55 ",10/7/2015
"CWC TRANSIT GROUP, AJV",Consulting Services,"$358,227.03 ",11/4/2015
"CWC TRANSIT GROUP, AJV",Consulting Services,"$216,976.18 ",12/10/2015
"CWC TRANSIT GROUP, AJV",Consulting Services,"$153,290.55 ",12/22/2015
"CWC TRANSIT GROUP, AJV",Consulting Services,"$140,808.90 ",12/28/2015
"CWC TRANSIT GROUP, AJV",Consulting Services,"$311,707.06 ",12/30/2015
CYMA SYSTEMS INC,Professional / Technical,"$13,224 ",2/3/2015
CYMA SYSTEMS INC,Professional / Technical,"$13,920 ",2/9/2015
CYMA SYSTEMS INC,Professional / Technical,"$13,920 ",3/18/2015
CYMA SYSTEMS INC,Professional / Technical,"$13,920 ",4/7/2015
CYMA SYSTEMS INC,Professional / Technical,"$13,920 ",4/16/2015
CYMA SYSTEMS INC,Professional / Technical,"$15,312 ",5/5/2015
CYMA SYSTEMS INC,Professional / Technical,"$13,441.50 ",6/24/2015
CYMA SYSTEMS INC,Professional / Technical,"$2,088 ",7/7/2015
CYMA SYSTEMS INC,Professional / Technical,"$15,312 ",8/11/2015
CYMA SYSTEMS INC,Professional / Technical,"$15,312 ",9/8/2015
CYMA SYSTEMS INC,Professional / Technical,"$13,920 ",10/19/2015
CYMA SYSTEMS INC,Professional / Technical,"$12,528 ",11/10/2015
CYMA SYSTEMS INC,Professional / Technical,"$15,312 ",12/9/2015
CYNTHIA A. PAVESICH & ASSOC.,I&D Claims (Damage Reserve),$258.50 ,4/1/2015
CYNTHIA A. PAVESICH & ASSOC.,I&D Claims (Damage Reserve),$188 ,9/17/2015
CYNTHIA A. PAVESICH & ASSOC.,I&D Claims (Damage Reserve),$451 ,10/9/2015
CYNTHIA A. PAVESICH & ASSOC.,I&D Claims (Damage Reserve),$280.80 ,11/27/2015
CYNTHIA BROWN,I&D Claims (Damage Reserve),$25 ,4/7/2015
CYNTHIA URDIALES,Professional / Technical,$700 ,9/15/2015
CYNTHIA URDIALES,Professional / Technical,$100 ,9/25/2015
"Carter, Dorval R",Policy Adminsitration,"$3,500 ",5/28/2015
"Carter, Dorval R",Policy Adminsitration,"$11,834.26 ",6/5/2015
"Carter, Dorval R",Policy Adminsitration,"$1,160.47 ",6/23/2015
DAMA CHICAGO,Administrative Support,$200 ,12/21/2015
DANIEL CAMMARANO M.D.,I&D Claims (Damage Reserve),$225 ,1/21/2015
DANIEL NIELSEN,Administrative Support,$650 ,1/28/2015
DANIEL NIELSEN,Administrative Support,$650 ,1/28/2015
DANIEL NIELSEN,Administrative Support,$650 ,3/6/2015
DANIEL NIELSEN,Administrative Support,"$1,200 ",3/6/2015
DANIEL NIELSEN,Administrative Support,$650 ,4/1/2015
DANIEL NIELSEN,Administrative Support,$650 ,4/1/2015
DANIEL NIELSEN,Administrative Support,$650 ,5/20/2015
DANIEL NIELSEN,Administrative Support,"$1,300 ",6/9/2015
DANIEL NIELSEN,Administrative Support,$650 ,6/9/2015
DANIEL NIELSEN,Administrative Support,"$1,625 ",7/1/2015
DANIEL NIELSEN,Administrative Support,$650 ,7/20/2015
DANIEL NIELSEN,Administrative Support,$650 ,9/1/2015
DANIEL NIELSEN,Administrative Support,"$1,950 ",11/27/2015
DANIEL SULLIVAN AND EDRA SOTO,Consulting Services,"$45,000 ",2/17/2015
DANIEL THOMAS,Legal Defense (Non-Damage Reserve),"$125,000 ",8/5/2015
DARIN O'CONNOR HARNISCH M.D.,I&D Claims (Damage Reserve),$750 ,7/31/2015
DARIUSZ BIALON M.D.,I&D Claims (Damage Reserve),$350 ,7/27/2015
DARRYL GEORGE,Payroll,$141.60 ,1/21/2015
"DASPIN & AUMENT, LLP",Real Estate,$560 ,1/30/2015
"DASPIN & AUMENT, LLP",Real Estate,"$3,183 ",3/13/2015
"DASPIN & AUMENT, LLP",Real Estate,$784 ,3/26/2015
DATA CENTER RESOURCES LLC,Computer Operations,"$1,340 ",8/6/2015
"DATA TEC SYSTEMS, INC.",Computer Operations,"$1,632 ",3/13/2015
"DATA TEC SYSTEMS, INC.",Computer Operations,"$3,217 ",4/24/2015
"DATA TEC SYSTEMS, INC.",Computer Operations,"$1,632 ",8/5/2015
"DATA TEC SYSTEMS, INC.",Computer Operations,"$1,632 ",12/23/2015
"DATA WEIGHING SYSTEMS, INC.",Money Counting,$300 ,1/27/2015
"DATA WEIGHING SYSTEMS, INC.",Money Counting,$300 ,2/4/2015
"DATA WEIGHING SYSTEMS, INC.",Money Counting,$300 ,5/5/2015
"DATA WEIGHING SYSTEMS, INC.",Money Counting,$300 ,8/17/2015
"DATA WEIGHING SYSTEMS, INC.",Money Counting,$300 ,11/6/2015
"DATA WEIGHING SYSTEMS, INC.",Maintenance of Equipment,$680 ,11/17/2015
DAUGHERTY SALES. INC. (R.A.),Maintenance of Substations,$375 ,9/22/2015
DAVALL MOSLEY,System Credits (Accounting dept use only),$30 ,4/30/2015
"DAVID BEIGLER, MD",I&D Claims (Damage Reserve),"$1,125 ",4/30/2015
DAVID HENRY,System Credits (Accounting dept use only),$30 ,5/21/2015
DAVID J HEYER,I&D Claims (Damage Reserve),$109.13 ,12/2/2015
DAVID WALEGA M.D.,I&D Claims (Damage Reserve),$750 ,8/7/2015
DAVID WILLIAMS MD,I&D Claims (Damage Reserve),$500 ,4/7/2015
DAWN COLE,I&D Claims (Damage Reserve),$25 ,9/15/2015
DEBORAH ECHOLS,Reimb for lost tools/badges,$50 ,7/28/2015
DEION BROWN,I&D Claims (Damage Reserve),$75 ,1/29/2015
DELL MARKETING L.P.,Tops Trapeze Timekeeping,"$1,109.96 ",8/6/2015
DELL MARKETING L.P.,Equipment Purchases,"$8,575 ",10/16/2015
DELL MARKETING L.P.,Administrative Support,$82.79 ,10/29/2015
DELL MARKETING L.P.,Administrative Support,$37.49 ,12/16/2015
DEMERS PROPERTIES LLC,Travel & Seminar,"$3,150 ",1/28/2015
DEMERS PROPERTIES LLC,Travel & Seminar,"$3,150 ",2/27/2015
DEMERS PROPERTIES LLC,Travel & Seminar,"$3,150 ",4/1/2015
DEMERS PROPERTIES LLC,Travel & Seminar,"$3,150 ",5/1/2015
DEMERS PROPERTIES LLC,Travel & Seminar,"$3,150 ",5/28/2015
DEMERS PROPERTIES LLC,Travel & Seminar,"$3,150 ",6/25/2015
DENNIS HARTNETT REPORTING,I&D Claims (Damage Reserve),$145 ,10/13/2015
DEPARTMENT OF FINANCIAL AND PROFESSIONALR REGULATION,Cash Management,$90 ,6/11/2015
DEPARTMENT OF FINANCIAL AND PROFESSIONALR REGULATION,Administrative Support,$90 ,6/12/2015
DEPAUL UNIVERSITY,Training - Students,"$22,830 ",10/12/2015
DEPAUL UNIVERSITY,Training - Students,"$1,695 ",12/30/2015
DEPAUL UNIVERSITY,Training - Students,$815 ,12/30/2015
DEPO INTERNATIONAL-ILLINOIS,I&D Claims (Damage Reserve),$192.50 ,5/22/2015
DEPO INTERNATIONAL-ILLINOIS,I&D Claims (Damage Reserve),$190.50 ,6/22/2015
DEPO INTERNATIONAL-ILLINOIS,I&D Claims (Damage Reserve),$327.50 ,8/21/2015
DEPO INTERNATIONAL-ILLINOIS,I&D Claims (Damage Reserve),$419.50 ,9/17/2015
DERRICK JONES,I&D Claims (Damage Reserve),$75 ,4/14/2015
DERRICK JONES,I&D Claims (Damage Reserve),$75 ,9/2/2015
DESKS INC,Maintenance of Buildings,$302 ,11/18/2015
DESKS INC,Maintenance of Buildings,"$5,635.10 ",12/28/2015
"DESKS, INC",Administrative Support,$427.20 ,1/8/2015
"DESKS, INC",Administrative Support,"$8,596.80 ",2/6/2015
"DESKS, INC",Maintenance of Buildings,"$16,892.54 ",3/17/2015
"DESKS, INC",Administrative Support,"$2,518.50 ",3/18/2015
"DESKS, INC",Maintenance of Buildings,"$1,569.68 ",3/26/2015
"DESKS, INC",Maintenance of Buildings,"$1,750.17 ",4/2/2015
"DESKS, INC",Maintenance of Buildings,"$1,762.67 ",4/16/2015
"DESKS, INC",Maintenance of Buildings,"$2,999.47 ",4/28/2015
"DESKS, INC",Maintenance of Buildings,"$7,431.60 ",5/1/2015
"DESKS, INC",Maintenance of Buildings,$537.44 ,5/26/2015
"DESKS, INC",Administrative Support,$241.60 ,5/28/2015
"DESKS, INC",Maintenance of Buildings,"$3,617.02 ",5/29/2015
"DESKS, INC",Maintenance of Buildings,"$8,551.70 ",6/2/2015
"DESKS, INC",Applications Support,$670.64 ,6/8/2015
"DESKS, INC",Maintenance of Buildings,$217.20 ,6/9/2015
"DESKS, INC",Maintenance of Buildings,"$4,864.67 ",6/10/2015
"DESKS, INC",Maintenance of Buildings,"$1,562.67 ",6/25/2015
"DESKS, INC",Maintenance of Buildings,"$3,172 ",7/28/2015
"DESKS, INC",Recruiting / Hiring,"$1,834.40 ",7/29/2015
"DESKS, INC",Maintenance of Buildings,"$4,104 ",8/11/2015
"DESKS, INC",Maintenance of Buildings,"$4,488 ",8/27/2015
"DESKS, INC",Maintenance of Buildings,"$2,473.60 ",9/4/2015
"DESKS, INC",Maintenance of Buildings,"$2,992 ",9/16/2015
"DESKS, INC",Maintenance of Buildings,"$5,761.24 ",9/28/2015
"DESKS, INC",Maintenance of Buildings,"$1,324.80 ",10/8/2015
DEVON JONES,System Credits (Accounting dept use only),$20 ,4/30/2015
"DHI GROUP, INC.",Recruiting / Hiring,"$1,916 ",12/11/2015
DIEKIYLAH McGEE,Reimb for lost tools/badges,$50 ,10/23/2015
DIGI-KEY CORPORATION,Engineering,$415.09 ,2/3/2015
DIGI-KEY CORPORATION,Maintenance of Track & Roadway-Electrical,$210.59 ,4/27/2015
DIGI-KEY CORPORATION,Engineering,$367.94 ,8/24/2015
DIGI-KEY CORPORATION,Engineering,$141.36 ,9/9/2015
DIGI-KEY CORPORATION,Maintain/Repair Communications  Equip,$455.47 ,10/1/2015
DIGICERT,Computer Operations,$525 ,3/9/2015
DIGICERT,Applications Support,$917 ,3/13/2015
DIGICERT,Computer Operations,$419 ,8/18/2015
DIGICERT,Computer Operations,$419 ,9/15/2015
DIGICERT,Maintain/Repair Communications  Equip,$350 ,12/17/2015
"DIGITAL CITY GRAPHICS, INC.",Administrative Support,"$21,770 ",2/20/2015
"DIGITAL CITY GRAPHICS, INC.",Training - Students,"$1,580 ",2/20/2015
"DIGITAL CITY GRAPHICS, INC.",Marketing,"$8,130 ",3/6/2015
"DIGITAL CITY GRAPHICS, INC.",Marketing,$990 ,3/17/2015
"DIGITAL CITY GRAPHICS, INC.",Administrative Support,"$17,410 ",4/1/2015
"DIGITAL CITY GRAPHICS, INC.",Administrative Support,"$3,770 ",4/2/2015
"DIGITAL CITY GRAPHICS, INC.",Administrative Support,"$44,400 ",4/16/2015
"DIGITAL CITY GRAPHICS, INC.",Marketing,"$1,760 ",9/25/2015
"DIGITAL CITY GRAPHICS, INC.",Marketing,"$2,340 ",9/29/2015
"DIGITAL CITY GRAPHICS, INC.",Marketing,"$15,080 ",9/30/2015
"DIGITAL CITY GRAPHICS, INC.",Administrative Support,"$11,480 ",10/28/2015
"DIGITAL CITY GRAPHICS, INC.",Administrative Support,"$16,470 ",11/5/2015
"DIGITAL CITY GRAPHICS, INC.",Marketing,$940 ,11/17/2015
"DIGITAL RIVER, INC.",Training - Students,"$2,399.40 ",12/31/2015
"DIRECTOR, ILLINOIS DEPT OF EMPLOYMENT SECURITY",Legal Defense (Non-Damage Reserve),"$51,754.80 ",1/27/2015
"DIRECTOR, ILLINOIS DEPT OF EMPLOYMENT SECURITY",Legal Defense (Non-Damage Reserve),"$14,882 ",10/23/2015
DISTRICT COURT ADMINISTRATOR,I&D Claims (Damage Reserve),$16 ,3/2/2015
DIVANE BROS. ELECTRIC CO.,Equipment Purchases,"$11,100 ",1/27/2015
DIVANE BROS. ELECTRIC CO.,Consulting Services,"$150,158 ",8/11/2015
DIVANE BROS. ELECTRIC CO.,Equipment Purchases,"$21,160 ",12/22/2015
DIVANE BROS. ELECTRIC CO.,Equipment Purchases,"$118,072.80 ",12/28/2015
DOUBLETREE HOTEL,Management,$793.14 ,2/13/2015
DOUBLETREE HOTEL,Administrative Support,$309 ,10/7/2015
DOUBLETREE HOTEL,Administrative Support,"$4,785 ",10/7/2015
DOUBLETREE HOTEL,Management,$30 ,10/7/2015
DOUBLETREE HOTEL,Management,$309 ,10/7/2015
DOUGLAS DIRK NELSON,I&D Claims (Damage Reserve),$750 ,4/30/2015
"DOUGLAS REID FOGELSON PHOTOGRAPHY, LLC",Consulting Services,"$6,200 ",4/29/2015
"DOUGLAS REID FOGELSON PHOTOGRAPHY, LLC",Consulting Services,"$3,100 ",5/13/2015
"DOUGLAS REID FOGELSON PHOTOGRAPHY, LLC",Consulting Services,"$7,612.91 ",8/26/2015
DPT CONSULTING GROUP INC,Administrative Support,"$3,550 ",1/26/2015
"DREISILKER ELECTRIC MOTORS, INC.",Maintenance of Buildings,$660 ,4/2/2015
"DREISILKER ELECTRIC MOTORS, INC.",Maintenance of Buildings,$635 ,11/2/2015
DRIVE SAVERS INC,Administrative Support,"$1,699 ",3/30/2015
"DUNBAR BANKPAK, INC.",Money Counting,"$1,320 ",7/6/2015
"DYNAMIC SAFETY, LLC",I&D Claims (Damage Reserve),$233.74 ,1/20/2015
"DYNAMIC SAFETY, LLC",I&D Claims (Damage Reserve),$874.36 ,1/28/2015
"DYNAMIC SAFETY, LLC",I&D Claims (Damage Reserve),$863.34 ,6/2/2015
"DYNAMIC SAFETY, LLC",I&D Claims (Damage Reserve),"$13,607.50 ",10/9/2015
"E-BUILDER, INC.",Consulting Services,"$250,000 ",4/10/2015
EAGLE INDUSTRIAL TRUCK MFG LLC,Equipment Purchases,"$158,349 ",10/23/2015
EAMON GEARY,Reimb for lost tools/badges,$25 ,1/21/2015
EARL SWOPES,Administrative Support,$500 ,12/2/2015
EDGAR GARCIA,I&D Claims (Damage Reserve),$75 ,8/20/2015
EDMARK VISUAL I.D.,Administrative Support,$242 ,4/21/2015
EDWARD COOK,Administrative Support,$450 ,2/25/2015
EDWARD DUCKWORTH,Legal Defense (Non-Damage Reserve),"$60,106.27 ",6/3/2015
EDWARD MKRDICHIAN MD,I&D Claims (Damage Reserve),$750 ,9/21/2015
EDWARD MKRDICHIAN MD,I&D Claims (Damage Reserve),$187.50 ,9/21/2015
EDWARD MKRDICHIAN MD,I&D Claims (Damage Reserve),$187.50 ,9/21/2015
EDWARD MKRDICHIAN MD,I&D Claims (Damage Reserve),$187.50 ,9/21/2015
EDWARD MKRDICHIAN MD,I&D Claims (Damage Reserve),$187.50 ,9/21/2015
EDWIN H. BENN,Administrative Support,$750 ,9/17/2015
EDWINA ATKINS,I&D Claims (Damage Reserve),$75 ,1/2/2015
EDWINA ATKINS,I&D Claims (Damage Reserve),$75 ,9/29/2015
EFAX CORPORATE,Benefits,$419.70 ,1/16/2015
EFAX CORPORATE,Benefits,$232.95 ,2/13/2015
EFAX CORPORATE,Professional / Technical,$114.30 ,2/17/2015
EFAX CORPORATE,Benefits,$135.30 ,3/16/2015
EFAX CORPORATE,Benefits,$173.80 ,4/21/2015
EFAX CORPORATE,Benefits,$136.50 ,5/12/2015
EFAX CORPORATE,Benefits,"$1,204.80 ",6/19/2015
EFAX CORPORATE,Benefits,$129.50 ,7/8/2015
EFAX CORPORATE,Benefits,$129.50 ,7/16/2015
EFAX CORPORATE,Benefits,$134 ,9/8/2015
EFAX CORPORATE,Benefits,$134.50 ,9/16/2015
EFAX CORPORATE,Benefits,$136.60 ,10/12/2015
EFAX CORPORATE,Workers Compensation,$312.60 ,10/13/2015
EFAX CORPORATE,Benefits,$132.60 ,12/16/2015
EFAX CORPORATE,Workers Compensation,$515.80 ,12/16/2015
EFAX CORPORATE,Professional / Technical,$756.80 ,12/17/2015
EFAX CORPORATE,Benefits,$172.40 ,12/21/2015
"ELECTRONIC DISTRIBUTORS, LTD",Maintainance of Signal & Control Equipment,$447 ,1/12/2015
"ELECTRONIC DISTRIBUTORS, LTD",Maintainance of Signal & Control Equipment,$160.02 ,5/6/2015
"ELECTRONIC DISTRIBUTORS, LTD",Maintainance of Signal & Control Equipment,"$1,874.75 ",5/26/2015
"ELECTRONIC DISTRIBUTORS, LTD",Maintainance of Signal & Control Equipment,$50.70 ,8/5/2015
"ELECTRONIC DISTRIBUTORS, LTD",Maintainance of Signal & Control Equipment,$990 ,8/10/2015
"ELECTRONIC DISTRIBUTORS, LTD",Maintainance of Signal & Control Equipment,$69 ,8/17/2015
"ELEMENT MATERIALS TECHNOLOGY NEW BERLIN, INC.",Professional / Technical,"$6,400 ",2/17/2015
"ELEMENT MATERIALS TECHNOLOGY NEW BERLIN, INC.",Professional / Technical,"$3,313 ",4/28/2015
"ELEMENT MATERIALS TECHNOLOGY NEW BERLIN, INC.",Professional / Technical,"$4,350 ",9/15/2015
"ELEMENT MATERIALS TECHNOLOGY NEW BERLIN, INC.",Professional / Technical,"$6,850 ",12/16/2015
ELISABETH TREGER,Administrative Support,$125 ,7/29/2015
ELISABETH TREGER,Administrative Support,$125 ,10/19/2015
ELITE DEPOSITION SERVICES,I&D Claims (Damage Reserve),$143.25 ,4/27/2015
ELIZABETH GUTIERREZ,I&D Claims (Damage Reserve),$25 ,1/5/2015
ELIZABETH VICK,I&D Claims (Damage Reserve),$75 ,10/29/2015
ELIZABETH VICK,I&D Claims (Damage Reserve),$75 ,10/29/2015
"ELLCON-NATIONAL, INC.",Vehicle Rehab,"$30,722.81 ",7/17/2015
"ELLCON-NATIONAL, INC.",Vehicle Rehab,"$30,722.81 ",8/7/2015
"ELLCON-NATIONAL, INC.",Vehicle Rehab,"$61,445.62 ",8/19/2015
"ELLCON-NATIONAL, INC.",Vehicle Rehab,"$61,445.62 ",9/2/2015
ELLEN JENKINS,Reimb for lost tools/badges,$20 ,1/27/2015
"ELLISON BRONZE, INC.",Maintenance of Rail Stations,"$3,984 ",3/26/2015
"ELLISON BRONZE, INC.",Maintenance of Buildings,"$3,984 ",5/8/2015
"ELLISON BRONZE, INC.",Maintenance of Rail Stations,"$3,984 ",5/8/2015
"ELLISON BRONZE, INC.",Maintenance of Rail Stations,"$34,111 ",6/3/2015
ELMHURST MEMORIAL HEALTHCARE,I&D Claims (Damage Reserve),$700 ,2/3/2015
"ENGINEERED PLASTICS, INC.",Maintenance of Rail Stations,"$32,087.50 ",12/11/2015
ENGINEERING SYSTEMS INC,I&D Claims (Damage Reserve),"$14,037.24 ",4/29/2015
ENGINEERING SYSTEMS INC,I&D Claims (Damage Reserve),"$1,775.93 ",12/24/2015
"ENO TRANSPORATION FOUNDATION, INC.",Administrative Support,$750 ,6/1/2015
ENTERPRISE LEASING COMPANY OF CHICAGO,Leases & Rentals,$913.18 ,1/22/2015
ENTERPRISE LEASING COMPANY OF CHICAGO,Leases & Rentals,$483.72 ,2/3/2015
ENTERPRISE LEASING COMPANY OF CHICAGO,Leases & Rentals,"$10,621.49 ",2/5/2015
ENTERPRISE LEASING COMPANY OF CHICAGO,Leases & Rentals,$913.18 ,2/23/2015
ENTERPRISE LEASING COMPANY OF CHICAGO,Leases & Rentals,$114.43 ,3/25/2015
ENTERPRISE LEASING COMPANY OF CHICAGO,Leases & Rentals,"$10,973.36 ",4/7/2015
ENTERPRISE LEASING COMPANY OF CHICAGO,Leases & Rentals,$913.18 ,4/14/2015
ENTERPRISE LEASING COMPANY OF CHICAGO,Leases & Rentals,"$10,681.47 ",4/15/2015
ENTERPRISE LEASING COMPANY OF CHICAGO,Leases & Rentals,$967.44 ,4/29/2015
ENTERPRISE LEASING COMPANY OF CHICAGO,Leases & Rentals,$913.18 ,5/18/2015
ENTERPRISE LEASING COMPANY OF CHICAGO,Leases & Rentals,"$14,258.66 ",5/20/2015
ENTERPRISE LEASING COMPANY OF CHICAGO,Leases & Rentals,$913.18 ,5/27/2015
ENTERPRISE LEASING COMPANY OF CHICAGO,Leases & Rentals,$913.18 ,6/29/2015
ENTERPRISE LEASING COMPANY OF CHICAGO,Leases & Rentals,"$25,029.98 ",7/6/2015
ENTERPRISE LEASING COMPANY OF CHICAGO,Leases & Rentals,$967.44 ,7/8/2015
ENTERPRISE LEASING COMPANY OF CHICAGO,Leases & Rentals,$483.72 ,7/15/2015
ENTERPRISE LEASING COMPANY OF CHICAGO,Leases & Rentals,$342 ,8/3/2015
ENTERPRISE LEASING COMPANY OF CHICAGO,Leases & Rentals,"$10,998.89 ",8/12/2015
ENTERPRISE LEASING COMPANY OF CHICAGO,Leases & Rentals,$483.72 ,8/19/2015
ENTERPRISE LEASING COMPANY OF CHICAGO,Leases & Rentals,"$11,057.87 ",9/4/2015
ENTERPRISE LEASING COMPANY OF CHICAGO,Leases & Rentals,$967.44 ,10/9/2015
ENTERPRISE LEASING COMPANY OF CHICAGO,Leases & Rentals,$967.44 ,11/9/2015
ENTERPRISE LEASING COMPANY OF CHICAGO,Leases & Rentals,"$21,428.45 ",11/23/2015
ENTERPRISE LEASING COMPANY OF CHICAGO,Leases & Rentals,"$8,442.84 ",11/30/2015
ENTERPRISE LEASING COMPANY OF CHICAGO,Leases & Rentals,$967.44 ,12/30/2015
"ENVIRONMENTAL CONSULTING GROUP, INC.",Environmental Safety,"$1,184 ",1/29/2015
"ENVIRONMENTAL CONSULTING GROUP, INC.",Consulting Services,$909 ,2/11/2015
"ENVIRONMENTAL CONSULTING GROUP, INC.",Environmental Safety,"$5,222 ",3/2/2015
"ENVIRONMENTAL CONSULTING GROUP, INC.",Consulting Services,"$5,573 ",3/10/2015
"ENVIRONMENTAL CONSULTING GROUP, INC.",Environmental Safety,$653 ,4/22/2015
"ENVIRONMENTAL CONSULTING GROUP, INC.",Facilities Projects,$672 ,5/11/2015
"ENVIRONMENTAL CONSULTING GROUP, INC.",Consulting Services,"$5,606 ",5/20/2015
"ENVIRONMENTAL CONSULTING GROUP, INC.",Consulting Services,"$4,775 ",6/4/2015
"ENVIRONMENTAL CONSULTING GROUP, INC.",Maintenance of Buildings,"$5,508 ",12/15/2015
"ENVIRONMENTAL MONITORING AND TECHNOLOGIES, INC.",Professional / Technical,$105 ,7/7/2015
EOCENE LLC,Consulting Services,"$2,595 ",10/21/2015
EOCENE LLC,Consulting Services,"$4,545 ",10/30/2015
EOCENE LLC,Consulting Services,"$3,915 ",12/14/2015
EPIC EQUIPMENT,General Shop/Gar/Term Repairs & Svcs,"$7,503.20 ",4/22/2015
EPIC EQUIPMENT,General Shop/Gar/Term Repairs & Svcs,$108.20 ,5/13/2015
"ERGOMETRICS & APPLIED PERSONNEL RESEARCH, INC",Recruiting / Hiring,$89.38 ,5/1/2015
ERIC GRAHAM,Reimb for lost tools/badges,$20 ,12/30/2015
ERIE FAMILY HEALTH,I&D Claims (Damage Reserve),$450 ,12/23/2015
ERIK JOHNSON,I&D Claims (Damage Reserve),$75 ,6/23/2015
ERIKA FERGUSON MD,I&D Claims (Damage Reserve),"$1,000 ",9/11/2015
ERIKA FERGUSON MD,I&D Claims (Damage Reserve),$250 ,10/5/2015
ERIKA SANCHEZ,Reimb for lost tools/badges,$20 ,6/10/2015
ERNEST GARLAND,Reimb for lost tools/badges,$30 ,7/1/2015
ERNEST P CHIODO MD,I&D Claims (Damage Reserve),"$6,450 ",5/21/2015
ERNEST P CHIODO MD,I&D Claims (Damage Reserve),"$6,500 ",6/22/2015
ERNEST P CHIODO MD,I&D Claims (Damage Reserve),$250 ,6/22/2015
ERNEST P CHIODO MD,I&D Claims (Damage Reserve),"$2,850 ",10/9/2015
ERNEST P CHIODO MD,I&D Claims (Damage Reserve),"$3,000 ",10/9/2015
ERNEST P CHIODO MD,I&D Claims (Damage Reserve),"$12,550 ",10/9/2015
ERNEST P CHIODO MD,I&D Claims (Damage Reserve),"$5,800 ",11/6/2015
ESQUIRE DEPOSITION SERVICES,I&D Claims (Damage Reserve),$293.60 ,4/27/2015
"ESRI, INC.",Applications Support,"$24,900 ",2/12/2015
"ESRI, INC.",Applications Support,"$22,100 ",12/16/2015
ESTRADA HINOJOSA & COMPANY INC,Strategic Planning,"$8,000 ",1/8/2015
ESTRADA HINOJOSA & COMPANY INC,Strategic Planning,"$4,000 ",2/5/2015
ESTRADA HINOJOSA & COMPANY INC,Strategic Planning,"$4,000 ",3/16/2015
ESTRADA HINOJOSA & COMPANY INC,Strategic Planning,"$4,000 ",4/3/2015
ESTRADA HINOJOSA & COMPANY INC,Strategic Planning,"$12,000 ",7/10/2015
ESTRADA HINOJOSA & COMPANY INC,Strategic Planning,"$4,000 ",9/1/2015
ESTRADA HINOJOSA & COMPANY INC,Strategic Planning,"$16,000 ",12/14/2015
ESTRADA HINOJOSA & COMPANY INC,Strategic Planning,"$4,000 ",12/21/2015
EUGENIA McCLOUD,Reimb for lost tools/badges,$30 ,7/28/2015
EVA NEWBY,I&D Claims (Damage Reserve),$75 ,2/12/2015
EVANSTON POLICE DEPARTMENT/CITY OF EVANSTON,Security Rail,"$17,319.04 ",2/3/2015
EVANSTON POLICE DEPARTMENT/CITY OF EVANSTON,Security Rail,"$17,444.33 ",2/3/2015
EVANSTON POLICE DEPARTMENT/CITY OF EVANSTON,I&D Claims (Damage Reserve),$10 ,2/17/2015
EVANSTON POLICE DEPARTMENT/CITY OF EVANSTON,I&D Claims (Damage Reserve),$5 ,2/17/2015
EVANSTON POLICE DEPARTMENT/CITY OF EVANSTON,Security Rail,"$16,682.95 ",2/17/2015
EVANSTON POLICE DEPARTMENT/CITY OF EVANSTON,Security Rail,"$17,906.94 ",3/11/2015
EVANSTON POLICE DEPARTMENT/CITY OF EVANSTON,Security Rail,"$15,651.71 ",5/15/2015
EVANSTON POLICE DEPARTMENT/CITY OF EVANSTON,Security Rail,"$17,540.71 ",5/15/2015
EVANSTON POLICE DEPARTMENT/CITY OF EVANSTON,Security Rail,"$17,752.74 ",7/13/2015
EVANSTON POLICE DEPARTMENT/CITY OF EVANSTON,Security Rail,"$16,123.96 ",8/3/2015
EVANSTON POLICE DEPARTMENT/CITY OF EVANSTON,Security Rail,"$16,143.23 ",8/12/2015
EVANSTON POLICE DEPARTMENT/CITY OF EVANSTON,Security Rail,"$15,719.17 ",9/30/2015
EVANSTON POLICE DEPARTMENT/CITY OF EVANSTON,Security Rail,"$18,485.20 ",9/30/2015
EVANSTON POLICE DEPARTMENT/CITY OF EVANSTON,Security Rail,"$16,731.13 ",11/10/2015
EVANSTON POLICE DEPARTMENT/CITY OF EVANSTON,Security Rail,"$14,292.78 ",12/14/2015
"EVERBLUE ENERGY, INC.",Professional / Technical,$199 ,1/6/2015
"EVERBLUE ENERGY, INC.",Management,$199 ,5/6/2015
"EVERLAST CLIMBING INDUSTRIES, INC.",Equipment Purchases,"$18,847.46 ",7/8/2015
EWERT INC. dba MIDWEST GROUP DISTRIBUTION AND SERVICES,Maintenance of Buildings,"$2,378.08 ",4/30/2015
EWERT INC. dba MIDWEST GROUP DISTRIBUTION AND SERVICES,Maintenance of Buildings,"$1,446.60 ",7/31/2015
EWERT INC. dba MIDWEST GROUP DISTRIBUTION AND SERVICES,Maintenance of Buildings,"$9,720 ",8/10/2015
EWERT INC. dba MIDWEST GROUP DISTRIBUTION AND SERVICES,Maintenance of Buildings,"$10,168.32 ",9/8/2015
EWERT INC. dba MIDWEST GROUP DISTRIBUTION AND SERVICES,Maintenance of Buildings,"$4,098.72 ",9/30/2015
EWERT INC. dba MIDWEST GROUP DISTRIBUTION AND SERVICES,Maintenance of Buildings,"$2,130.24 ",10/7/2015
EWERT INC. dba MIDWEST GROUP DISTRIBUTION AND SERVICES,Maintenance of Buildings,"$2,611.20 ",10/28/2015
"EXCEL REPORTERS, INC.",I&D Claims (Damage Reserve),$396 ,4/1/2015
EXCHANGE MEDICAL CENTER,I&D Claims (Damage Reserve),$950 ,7/20/2015
EXECUTIVE COMMUNICATION SYSTEMS,Administrative Support,$146.25 ,3/2/2015
EXECUTIVE COMMUNICATION SYSTEMS,I&D Claims (Damage Reserve),$215.25 ,7/20/2015
EXECUTIVE COMMUNICATION SYSTEMS,I&D Claims (Damage Reserve),$70.35 ,9/9/2015
EXECUTIVE COMMUNICATION SYSTEMS,I&D Claims (Damage Reserve),$825.95 ,12/24/2015
EXHIBIT 5,I&D Claims (Damage Reserve),$524.70 ,2/25/2015
EXHIBIT 5,I&D Claims (Damage Reserve),$29.70 ,4/6/2015
EXHIBIT 5,I&D Claims (Damage Reserve),$222.75 ,4/6/2015
EXHIBIT 5,I&D Claims (Damage Reserve),$148.50 ,4/6/2015
EXHIBIT 5,I&D Claims (Damage Reserve),$59.40 ,4/6/2015
EXHIBIT 5,I&D Claims (Damage Reserve),$452.35 ,4/6/2015
EXHIBIT 5,I&D Claims (Damage Reserve),$351.25 ,4/27/2015
EXHIBIT 5,Administrative Support,"$1,187.40 ",6/22/2015
EXHIBIT 5,Administrative Support,"$1,069.70 ",6/22/2015
EXHIBIT 5,Administrative Support,$406.25 ,7/20/2015
EXHIBIT 5,Administrative Support,$304.70 ,9/17/2015
"EXP U.S. SERVICES, INC.",Consulting Services,"$125,981.66 ",1/27/2015
"EXP U.S. SERVICES, INC.",Consulting Services,"$41,569.62 ",2/19/2015
"EXP U.S. SERVICES, INC.",Consulting Services,"$17,488.82 ",3/24/2015
"EXP U.S. SERVICES, INC.",Consulting Services,"$1,938.35 ",4/27/2015
"EXP U.S. SERVICES, INC.",Consulting Services,"$25,615.12 ",6/17/2015
"EXP U.S. SERVICES, INC.",Consulting Services,"$129,575.86 ",8/3/2015
"EXP U.S. SERVICES, INC.",Consulting Services,"$163,348.19 ",9/9/2015
"EXP U.S. SERVICES, INC.",Consulting Services,"$108,019.26 ",10/5/2015
"EXP U.S. SERVICES, INC.",Consulting Services,$249.62 ,10/21/2015
"EXP U.S. SERVICES, INC.",Consulting Services,"$188,551.26 ",11/16/2015
"EXP U.S. SERVICES, INC.",Consulting Services,"$150,556.08 ",11/18/2015
"EXP U.S. SERVICES, INC.",Consulting Services,"$211,120.78 ",11/30/2015
"EXP U.S. SERVICES, INC.",Consulting Services,"$96,343.70 ",12/2/2015
"EXP U.S. SERVICES, INC.",Consulting Services,"$148,782.60 ",12/22/2015
"F & G ROOFING COMPANY, LLC",Contract Construction,"$41,841 ",12/23/2015
"F.H. PASCHEN/S.N. NIELSEN & ASSOCIATES, LLC.",Contract Construction,"$196,393.09 ",1/14/2015
"F.H. PASCHEN/S.N. NIELSEN & ASSOCIATES, LLC.",Contract Construction,"$248,648.12 ",1/20/2015
"F.H. PASCHEN/S.N. NIELSEN & ASSOCIATES, LLC.",Contract Construction,"$100,629 ",1/22/2015
"F.H. PASCHEN/S.N. NIELSEN & ASSOCIATES, LLC.",Contract Construction,"$385,729 ",1/27/2015
"F.H. PASCHEN/S.N. NIELSEN & ASSOCIATES, LLC.",Contract Construction,"$4,297,540.59 ",1/29/2015
"F.H. PASCHEN/S.N. NIELSEN & ASSOCIATES, LLC.",Contract Construction,"$99,810.50 ",2/19/2015
"F.H. PASCHEN/S.N. NIELSEN & ASSOCIATES, LLC.",Contract Construction,"$208,858.75 ",2/25/2015
"F.H. PASCHEN/S.N. NIELSEN & ASSOCIATES, LLC.",Contract Construction,"$2,980,560.26 ",3/9/2015
"F.H. PASCHEN/S.N. NIELSEN & ASSOCIATES, LLC.",Contract Construction,"$2,598,566.54 ",3/31/2015
"F.H. PASCHEN/S.N. NIELSEN & ASSOCIATES, LLC.",Contract Construction,"$2,961,198.81 ",4/2/2015
"F.H. PASCHEN/S.N. NIELSEN & ASSOCIATES, LLC.",Contract Construction,"$115,786.44 ",4/14/2015
"F.H. PASCHEN/S.N. NIELSEN & ASSOCIATES, LLC.",Contract Construction,"$152,486.96 ",4/29/2015
"F.H. PASCHEN/S.N. NIELSEN & ASSOCIATES, LLC.",Contract Construction,"$16,141.68 ",5/7/2015
"F.H. PASCHEN/S.N. NIELSEN & ASSOCIATES, LLC.",Contract Construction,"$495,973.76 ",5/14/2015
"F.H. PASCHEN/S.N. NIELSEN & ASSOCIATES, LLC.",Contract Construction,"$216,501.84 ",5/21/2015
"F.H. PASCHEN/S.N. NIELSEN & ASSOCIATES, LLC.",Contract Construction,"$23,224.50 ",5/27/2015
"F.H. PASCHEN/S.N. NIELSEN & ASSOCIATES, LLC.",Contract Construction,"$145,119.32 ",6/3/2015
"F.H. PASCHEN/S.N. NIELSEN & ASSOCIATES, LLC.",Contract Construction,"$226,180.94 ",6/16/2015
"F.H. PASCHEN/S.N. NIELSEN & ASSOCIATES, LLC.",Contract Construction,"$737,906.52 ",6/18/2015
"F.H. PASCHEN/S.N. NIELSEN & ASSOCIATES, LLC.",Deep Clean/Station Renewal Initiative 2011,"$16,132.57 ",6/18/2015
"F.H. PASCHEN/S.N. NIELSEN & ASSOCIATES, LLC.",Contract Construction,"$198,821.73 ",6/22/2015
"F.H. PASCHEN/S.N. NIELSEN & ASSOCIATES, LLC.",Contract Construction,"$8,996.13 ",7/6/2015
"F.H. PASCHEN/S.N. NIELSEN & ASSOCIATES, LLC.",Contract Construction,"$145,276.56 ",7/13/2015
"F.H. PASCHEN/S.N. NIELSEN & ASSOCIATES, LLC.",Contract Construction,"$945,008.66 ",7/22/2015
"F.H. PASCHEN/S.N. NIELSEN & ASSOCIATES, LLC.",Contract Construction,"$311,959.44 ",7/28/2015
"F.H. PASCHEN/S.N. NIELSEN & ASSOCIATES, LLC.",Contract Construction,"$435,345.85 ",7/29/2015
"F.H. PASCHEN/S.N. NIELSEN & ASSOCIATES, LLC.",Contract Construction,"$71,391 ",8/4/2015
"F.H. PASCHEN/S.N. NIELSEN & ASSOCIATES, LLC.",O'Hare train derailment 24-MAR-14,"$96,468 ",8/4/2015
"F.H. PASCHEN/S.N. NIELSEN & ASSOCIATES, LLC.",Contract Construction,"$193,379.85 ",8/5/2015
"F.H. PASCHEN/S.N. NIELSEN & ASSOCIATES, LLC.",Contract Construction,"$985,881.46 ",8/7/2015
"F.H. PASCHEN/S.N. NIELSEN & ASSOCIATES, LLC.",Contract Construction,"$206,982.32 ",8/11/2015
"F.H. PASCHEN/S.N. NIELSEN & ASSOCIATES, LLC.",Contract Construction,"$91,731.89 ",8/19/2015
"F.H. PASCHEN/S.N. NIELSEN & ASSOCIATES, LLC.",Contract Construction,"$1,238,615.35 ",8/28/2015
"F.H. PASCHEN/S.N. NIELSEN & ASSOCIATES, LLC.",Contract Construction,"$2,718.60 ",8/31/2015
"F.H. PASCHEN/S.N. NIELSEN & ASSOCIATES, LLC.",Contract Construction,"$6,923.97 ",9/2/2015
"F.H. PASCHEN/S.N. NIELSEN & ASSOCIATES, LLC.",Contract Construction,"$822,194.78 ",9/4/2015
"F.H. PASCHEN/S.N. NIELSEN & ASSOCIATES, LLC.",Contract Construction,"$494,426.79 ",9/18/2015
"F.H. PASCHEN/S.N. NIELSEN & ASSOCIATES, LLC.",Contract Construction,"$1,249,387.06 ",9/24/2015
"F.H. PASCHEN/S.N. NIELSEN & ASSOCIATES, LLC.",Contract Construction,"$992,003.89 ",9/28/2015
"F.H. PASCHEN/S.N. NIELSEN & ASSOCIATES, LLC.",Contract Construction,"$26,699.36 ",10/1/2015
"F.H. PASCHEN/S.N. NIELSEN & ASSOCIATES, LLC.",Contract Construction,"$371,864.44 ",10/7/2015
"F.H. PASCHEN/S.N. NIELSEN & ASSOCIATES, LLC.",Contract Construction,"$1,559,628.69 ",10/23/2015
"F.H. PASCHEN/S.N. NIELSEN & ASSOCIATES, LLC.",Contract Construction,"$336,559.39 ",11/18/2015
"F.H. PASCHEN/S.N. NIELSEN & ASSOCIATES, LLC.",Contract Construction,"$28,591.82 ",11/23/2015
"F.H. PASCHEN/S.N. NIELSEN & ASSOCIATES, LLC.",Contract Construction,"$167,545.91 ",11/25/2015
"F.H. PASCHEN/S.N. NIELSEN & ASSOCIATES, LLC.",Contract Construction,"$125,944 ",11/30/2015
"F.H. PASCHEN/S.N. NIELSEN & ASSOCIATES, LLC.",Contract Construction,"$1,525,137.72 ",12/1/2015
"F.H. PASCHEN/S.N. NIELSEN & ASSOCIATES, LLC.",Contract Construction,"$38,011.20 ",12/2/2015
"F.H. PASCHEN/S.N. NIELSEN & ASSOCIATES, LLC.",Contract Construction,"$2,074,339 ",12/11/2015
"F.H. PASCHEN/S.N. NIELSEN & ASSOCIATES, LLC.",Contract Construction,"$17,390.22 ",12/16/2015
"F.H. PASCHEN/S.N. NIELSEN & ASSOCIATES, LLC.",Contract Construction,"$267,563.35 ",12/23/2015
"F.H. PASCHEN/S.N. NIELSEN & ASSOCIATES, LLC.",Contract Construction,"$43,722 ",12/28/2015
"F.H. PASCHEN/S.N. NIELSEN & ASSOCIATES, LLC.",Contract Construction,"$183,559 ",12/30/2015
FACTORIAL INC,I&D Claims (Damage Reserve),$509.54 ,6/2/2015
FAIRFIELD INN & SUITES AMES,Administrative Support,$371.84 ,6/18/2015
FAIRFIELD INN & SUITES AMES,Administrative Support,$371.84 ,6/18/2015
FAIRFIELD INN & SUITES AMES,Administrative Support,$371.84 ,6/18/2015
FAIVELEY TRANSPORT NA,Vehicle Rehab,"$61,445.62 ",4/8/2015
FAIVELEY TRANSPORT NA,Vehicle Rehab,"$61,445.62 ",9/18/2015
FAIVELEY TRANSPORT NA,Vehicle Rehab,"$245,782.48 ",11/6/2015
FAIVELEY TRANSPORT NA,Vehicle Rehab,"$245,782.48 ",12/30/2015
FARONICS,Maintain/Repair Communications  Equip,$525 ,3/19/2015
FASTENAL COMPANY,General Shop/Gar/Term Repairs & Svcs,$24.89 ,5/21/2015
FASTSPRING,Computer Operations,$796 ,7/1/2015
"FBS GROUP, INC.",Maintenance of Equipment,"$1,043.85 ",4/3/2015
FEDEX,Misc. Expenditures,$51.94 ,1/28/2015
FEDEX,Travel & Seminar,$43.84 ,2/11/2015
FEDEX,Misc. Expenditures,$15.98 ,2/27/2015
FEDEX,Misc. Expenditures,$9.37 ,3/6/2015
FEDEX,Misc. Expenditures,$30.50 ,3/13/2015
FEDEX,Misc. Expenditures,$3.18 ,3/18/2015
FEDEX,Misc. Expenditures,$9.41 ,3/20/2015
FEDEX,Misc. Expenditures,$10.54 ,3/26/2015
FEDEX,Travel & Seminar,$23.81 ,4/16/2015
FEDEX,Misc. Expenditures,$33.40 ,5/1/2015
FEDEX,Misc. Expenditures,$26.71 ,5/22/2015
FEDEX,Misc. Expenditures,$176.63 ,5/28/2015
FEDEX,Misc. Expenditures,$14.48 ,6/4/2015
FEDEX,Administrative Support,$63.89 ,6/10/2015
FEDEX,Travel & Seminar,$20.23 ,6/17/2015
FEDEX,Misc. Expenditures,$11.01 ,7/24/2015
FEDEX,Misc. Expenditures,$96.56 ,9/11/2015
FEDEX,Applications Support,$32 ,9/16/2015
FEDEX,Misc. Expenditures,$65.99 ,10/1/2015
FEDEX,Misc. Expenditures,$368.47 ,10/7/2015
FEDEX,Misc. Expenditures,$34.20 ,10/14/2015
FEELY LTD,Administrative Support,$88.98 ,3/24/2015
FERRANDINO REPORTING,I&D Claims (Damage Reserve),$310 ,6/8/2015
"FILEMAKER, INC.",Applications Support,"$7,052 ",5/7/2015
FILTER SERVICES. INC,Maintenance of Substations,$986.16 ,3/16/2015
"FISHER SCIENTIFIC COMPANY, LLC",Administrative Support,"$6,162.10 ",1/7/2015
FLEETJOBS.COM,Recruiting / Hiring,$157.50 ,5/22/2015
FOOT AND ANKLE CLINICS OF AMERICA,I&D Claims (Damage Reserve),$500 ,10/27/2015
FOR YOUR HEALTH & WELLNESS,I&D Claims (Damage Reserve),$750 ,10/22/2015
FOREST PRESERVE DISTRICT,"Facilities Operating Expenses (Rent,Utilities,etc)",$750 ,6/29/2015
FORTUNE ROPE & METAL CO INC,Maintenance of Structures,$962 ,12/24/2015
FOX VALLEY FIRE & SAFETY COMPANY,Contract Construction,"$36,786 ",1/27/2015
FOX VALLEY FIRE & SAFETY COMPANY,Contract Construction,"$188,177.39 ",2/17/2015
FOX VALLEY FIRE & SAFETY COMPANY,Contract Construction,"$31,291 ",2/19/2015
FOX VALLEY FIRE & SAFETY COMPANY,Contract Construction,"$16,610 ",2/23/2015
FOX VALLEY FIRE & SAFETY COMPANY,Contract Construction,"$25,159 ",3/11/2015
FOX VALLEY FIRE & SAFETY COMPANY,Contract Construction,"$55,335 ",3/26/2015
FOX VALLEY FIRE & SAFETY COMPANY,Contract Construction,"$17,750 ",3/31/2015
FOX VALLEY FIRE & SAFETY COMPANY,Contract Construction,"$54,701.16 ",4/7/2015
FOX VALLEY FIRE & SAFETY COMPANY,Contract Construction,"$221,731.70 ",4/22/2015
FOX VALLEY FIRE & SAFETY COMPANY,Contract Construction,"$45,388.30 ",5/12/2015
FOX VALLEY FIRE & SAFETY COMPANY,Contract Construction,"$213,583 ",5/21/2015
FOX VALLEY FIRE & SAFETY COMPANY,Contract Construction,"$16,400 ",6/3/2015
FOX VALLEY FIRE & SAFETY COMPANY,Contract Construction,"$266,531 ",7/1/2015
FOX VALLEY FIRE & SAFETY COMPANY,Contract Construction,"$160,710.45 ",8/11/2015
FOX VALLEY FIRE & SAFETY COMPANY,Contract Construction,"$48,821.80 ",8/26/2015
FOX VALLEY FIRE & SAFETY COMPANY,Contract Construction,"$4,083.75 ",10/19/2015
"FRAMES DIRECT, INC. d/b/a IMAGE EXCHANGE",Merchandising,"$5,390.41 ",2/13/2015
FRANCISCAN PHYSICIAN NETWORK,Administrative Support,"$1,500 ",6/12/2015
FRANCZEK RADELET & ROSE,Administrative Support,"$14,219 ",3/2/2015
FRANCZEK RADELET & ROSE,Administrative Support,"$9,823.50 ",8/18/2015
FRANK BARONE M.D.,I&D Claims (Damage Reserve),$500 ,10/6/2015
"FRANKLEN EQUIPMENT, INC.",Maintenance of Equipment,"$6,216 ",5/28/2015
"FRANKLEN EQUIPMENT, INC.",Maintenance of Equipment,"$1,585.50 ",7/22/2015
"FRANKLEN EQUIPMENT, INC.",Maintenance of Equipment,"$9,044.70 ",7/29/2015
"FRANKLEN EQUIPMENT, INC.",Maintenance of Equipment,"$11,344.08 ",8/13/2015
"FRANKLEN EQUIPMENT, INC.",Maintenance of Equipment,"$4,182 ",10/22/2015
"FRANKLEN EQUIPMENT, INC.",Maintenance of Equipment,"$10,357.20 ",12/22/2015
FRED GANDY,I&D Claims (Damage Reserve),$75 ,10/7/2015
FRED GANDY,I&D Claims (Damage Reserve),$75 ,10/7/2015
FRED GANDY,I&D Claims (Damage Reserve),$75 ,10/16/2015
FRED McNEARY,Reimb for lost tools/badges,$20 ,12/29/2015
FREEMAN..,Administrative Support,"$1,565.30 ",9/17/2015
FREEMAN..,Administrative Support,"$2,106.76 ",10/22/2015
FSS LIFT,Maintenance of Equipment,"$1,614 ",7/20/2015
"FUJITEC AMERICA, INC",Maintenance of Escalators,"$45,750 ",9/11/2015
G & O THERMAL SUPPLY COMPANY,Maintenance of Buildings,"$4,524.48 ",1/8/2015
G & O THERMAL SUPPLY COMPANY,Maintenance of Buildings,"$5,565.01 ",1/15/2015
G & O THERMAL SUPPLY COMPANY,Maintenance of Buildings,$815.25 ,1/16/2015
G & O THERMAL SUPPLY COMPANY,Maintenance of Buildings,$317.06 ,1/26/2015
G & O THERMAL SUPPLY COMPANY,Maintenance of Buildings,"$3,149.25 ",2/4/2015
G & O THERMAL SUPPLY COMPANY,Maintenance of Buildings,$156.28 ,2/5/2015
G & O THERMAL SUPPLY COMPANY,Maintenance of Buildings,"$2,065.75 ",2/13/2015
G & O THERMAL SUPPLY COMPANY,Maintenance of Buildings,"$1,660.50 ",2/19/2015
G & O THERMAL SUPPLY COMPANY,Maintenance of Buildings,"$2,501.10 ",2/24/2015
G & O THERMAL SUPPLY COMPANY,Maintenance of Buildings,"$3,776.80 ",3/3/2015
G & O THERMAL SUPPLY COMPANY,Maintenance of Buildings,$38.99 ,3/4/2015
G & O THERMAL SUPPLY COMPANY,Maintenance of Buildings,"$14,041.34 ",3/5/2015
G & O THERMAL SUPPLY COMPANY,Maintenance of Buildings,"$5,475.58 ",3/12/2015
G & O THERMAL SUPPLY COMPANY,Maintenance of Buildings,"$2,928.97 ",3/16/2015
G & O THERMAL SUPPLY COMPANY,Maintenance of Buildings,$933.57 ,3/17/2015
G & O THERMAL SUPPLY COMPANY,Maintenance of Buildings,"$1,174.64 ",3/19/2015
G & O THERMAL SUPPLY COMPANY,Maintenance of Buildings,"$6,704.01 ",3/26/2015
G & O THERMAL SUPPLY COMPANY,Maintenance of Buildings,$505.67 ,4/2/2015
G & O THERMAL SUPPLY COMPANY,Maintenance of Rail Stations,"$1,222 ",4/2/2015
G & O THERMAL SUPPLY COMPANY,Maintenance of Buildings,$399.76 ,4/6/2015
G & O THERMAL SUPPLY COMPANY,Maintenance of Buildings,"$1,249.11 ",4/14/2015
G & O THERMAL SUPPLY COMPANY,Maintenance of Buildings,$316.80 ,4/15/2015
G & O THERMAL SUPPLY COMPANY,Maintenance of Buildings,"$2,982.93 ",4/20/2015
G & O THERMAL SUPPLY COMPANY,Maintenance of Equipment,$655.20 ,4/20/2015
G & O THERMAL SUPPLY COMPANY,Maintenance of Buildings,"$3,271.46 ",4/23/2015
G & O THERMAL SUPPLY COMPANY,Maintenance of Buildings,"$8,093.41 ",5/6/2015
G & O THERMAL SUPPLY COMPANY,Maintenance of Equipment,$276.80 ,5/6/2015
G & O THERMAL SUPPLY COMPANY,Maintenance of Rail Stations,"$4,510.28 ",5/6/2015
G & O THERMAL SUPPLY COMPANY,Maintenance of Buildings,"$7,898.30 ",5/8/2015
G & O THERMAL SUPPLY COMPANY,Maintenance of Buildings,"$5,197.60 ",5/13/2015
G & O THERMAL SUPPLY COMPANY,Maintenance of Buildings,"$2,206.24 ",5/14/2015
G & O THERMAL SUPPLY COMPANY,Maintenance of Buildings,"$2,675.30 ",5/26/2015
G & O THERMAL SUPPLY COMPANY,Maintenance of Buildings,"$1,045.77 ",6/1/2015
G & O THERMAL SUPPLY COMPANY,Maintenance of Buildings,"$3,590.34 ",6/8/2015
G & O THERMAL SUPPLY COMPANY,Maintenance of Buildings,$505.43 ,6/16/2015
G & O THERMAL SUPPLY COMPANY,Maintenance of Buildings,"$3,307.58 ",6/30/2015
G & O THERMAL SUPPLY COMPANY,Maintenance of Buildings,"$1,992.71 ",7/6/2015
G & O THERMAL SUPPLY COMPANY,Maintenance of Buildings,$465.18 ,7/9/2015
G & O THERMAL SUPPLY COMPANY,Maintenance of Buildings,"$1,741.04 ",7/16/2015
G & O THERMAL SUPPLY COMPANY,Maintenance of Buildings,"$1,429.08 ",7/28/2015
G & O THERMAL SUPPLY COMPANY,Maintenance of Buildings,"$1,155 ",8/5/2015
G & O THERMAL SUPPLY COMPANY,Maintenance of Buildings,$555.96 ,8/10/2015
G & O THERMAL SUPPLY COMPANY,Maintenance of Rail Stations,$141.84 ,8/11/2015
G & O THERMAL SUPPLY COMPANY,Maintenance of Rail Stations,$89.28 ,9/3/2015
G & O THERMAL SUPPLY COMPANY,Maintenance of Buildings,$178.86 ,9/10/2015
G & O THERMAL SUPPLY COMPANY,Maintenance of Buildings,"$2,840.55 ",9/14/2015
G & O THERMAL SUPPLY COMPANY,Maintenance of Buildings,$462 ,9/24/2015
G & O THERMAL SUPPLY COMPANY,Maintenance of Buildings,"$1,197.45 ",10/8/2015
G & O THERMAL SUPPLY COMPANY,Maintenance of Rail Stations,$416 ,10/8/2015
G & O THERMAL SUPPLY COMPANY,Engineering,$225.30 ,10/21/2015
G & O THERMAL SUPPLY COMPANY,Maintenance of Buildings,"$1,473.50 ",10/26/2015
G & O THERMAL SUPPLY COMPANY,Maintenance of Buildings,"$4,389.23 ",11/5/2015
G & O THERMAL SUPPLY COMPANY,Maintenance of Rail Stations,$265.68 ,11/5/2015
G & O THERMAL SUPPLY COMPANY,Maintenance of Buildings,"$2,014.21 ",11/17/2015
G & O THERMAL SUPPLY COMPANY,Maintenance of Equipment,"$5,575 ",11/17/2015
G & O THERMAL SUPPLY COMPANY,Maintenance of Buildings,"$5,133.67 ",11/25/2015
G & O THERMAL SUPPLY COMPANY,Maintenance of Equipment,$255 ,11/25/2015
G & O THERMAL SUPPLY COMPANY,Maintenance of Rail Stations,$300 ,11/25/2015
G & O THERMAL SUPPLY COMPANY,Maintenance of Buildings,"$5,153.78 ",12/9/2015
G & O THERMAL SUPPLY COMPANY,Maintenance of Buildings,$41.34 ,12/17/2015
G & O THERMAL SUPPLY COMPANY,Maintenance of Buildings,"$3,350.26 ",12/23/2015
G & O THERMAL SUPPLY COMPANY,Maintenance of Buildings,"$1,194.94 ",12/30/2015
G.A.G. INDUSTRIES CORP.,Maintenance of Buildings,"$35,727.37 ",1/28/2015
G.A.G. INDUSTRIES CORP.,Maintenance of Buildings,"$38,519.93 ",2/27/2015
G.A.G. INDUSTRIES CORP.,Maintenance of Buildings,"$45,277 ",3/26/2015
G.A.G. INDUSTRIES CORP.,Maintenance of Buildings,"$43,294.02 ",4/27/2015
G.A.G. INDUSTRIES CORP.,Maintenance of Buildings,"$43,005.07 ",5/28/2015
G.A.G. INDUSTRIES CORP.,Maintenance of Buildings,"$50,644.86 ",7/2/2015
G.A.G. INDUSTRIES CORP.,Maintenance of Buildings,"$26,734.45 ",7/27/2015
G.A.G. INDUSTRIES CORP.,Maintenance of Buildings,"$42,416.71 ",11/9/2015
G.A.G. INDUSTRIES CORP.,Maintenance of Buildings,"$25,868.31 ",11/25/2015
G.A.G. INDUSTRIES CORP.,Maintenance of Buildings,"$34,876.91 ",12/28/2015
GALCO INDUSTRIAL ELECTRONICS,Maintenance of Track & Roadway,$52.60 ,6/24/2015
GALLAGHER REPORTING & VIDEO,I&D Claims (Damage Reserve),$50.50 ,12/23/2015
"GARDA CL GREAT LAKES, INC.",Money Counting,"$33,223.60 ",1/6/2015
"GARDA CL GREAT LAKES, INC.",Administrative Support,"$14,917.50 ",1/29/2015
"GARDA CL GREAT LAKES, INC.",Administrative Support,"$14,917.50 ",2/27/2015
"GARDA CL GREAT LAKES, INC.",Money Counting,"$14,657.89 ",2/27/2015
"GARDA CL GREAT LAKES, INC.",Money Counting,"$11,416.57 ",3/10/2015
"GARDA CL GREAT LAKES, INC.",Administrative Support,"$4,300 ",3/11/2015
"GARDA CL GREAT LAKES, INC.",Administrative Support,"$14,917.50 ",3/27/2015
"GARDA CL GREAT LAKES, INC.",Money Counting,"$12,956.91 ",4/8/2015
"GARDA CL GREAT LAKES, INC.",Administrative Support,"$2,200 ",4/21/2015
"GARDA CL GREAT LAKES, INC.",Administrative Support,"$14,917.50 ",4/29/2015
"GARDA CL GREAT LAKES, INC.",Administrative Support,"$2,200 ",5/11/2015
"GARDA CL GREAT LAKES, INC.",Money Counting,"$11,936.85 ",5/21/2015
